Workbook

Sheet Mode d'emploi
A1: Module de calcul LIVRE VERT 2017 | F1: Y.Arrigo Agroscope ALP CH-1725 Posieux, E-mail: yves.arrigo@agroscope.admin.ch | P1: Légumineuses
P2: Autres plantes feuilles
A3: Mode d'emploi, remarques et avertissements | P3: Autres plantes tiges
A4: Le module de calcul se réfère aux chapîtres 13 et 15 du Livre vert édition 2017 accessibles par inscription gratuite, www.agroscope | P4: Type inconnu | Q4: équations dMO par CB LV06
P5: Dactyle | Q5: équations dMO par ADF LV06
A6: Les dépassements des champs d'application sont signalés | P6: Ray-grass anglais
A7: Si les valeurs NEL, NEV, PAIE,PAIN n'apparaissent pas, c'est que les données sont incomplètes ou qu'il n'existe pas de régressions d'estimation pour dMO pour ce type de fourrage ! | P7: Vulpin
P8: Trèfle blanc | Q8: floraison
P9: Trèfle violet | Q9: laiteux
A10: Le bouton | C10: vide les cellules de données, remet les fonctions par défaut et annule toutes les options, il n'affecte pas le dernier choix des menus déroulants. | P10: Luzerne | Q10: pâteux-mou
P11: Maïs | Q11: pâteux-dur
A14: Vous disposez de menus déroulants pour choisir les conserves, le type botanique
A15: et la clé pour l'estimation de la dMO (par CB ou par ADF),
A16: ces choix sont signalés dans l'édition imprimée des résultats.
A21: Les données sont introduites dans les cellules réservées grises et bleues foncées. | I21: MS | J21: 100
A22: Des données par défaut sont proposées dans les cellules bleues, elles peuvent être remplacées | I22: MA
A23: par des valeurs connues mais ceci requiert une initialisation pour retrouver la formule d’origine | I23: CB
A24: pour un nouveau calcul. | I24: CE
A25: En principe on travail en g/kg MS et les résultats sont exprimés en unité/kg MS, | I25: ADF
A26: si les données sont dans la MF donnez la MS effective et les résultats seront en unité/kg | I26: NDF | M26: % MS ensilages et maïs (estimation amidon)
L27: Pour les ensilages et le maïs donnez la MS dans la cellule à droite de la grille,
L28: elle est nécessaire au calcul des produits de fermentation et à l'estimation de l'amidon
A31: Pour définir la deMA.du maïs vert choisir une maturité proposée
A33: la valeur nutritive du maïs utilise la digestibilité de la matière organique obtenue par correction de la MOD calculée avec la dMO Livre vert 2006
A34: ou par la nouvelle équation nécessitant l'analyse von Soest (ADF, NDF), présentées aux journées ALP 2012, éditées dans Revue agronomique suisse et Agrarforschung septembre 2012
A35: si vous n'avez pas d'analyses ADF-NDF choisissez Maïs LV06 corrigé
A36: si vous avez les analyses ADF et NDF pour le maïs plante entière choisissez Maïs ALP12 pour PE
A37: si vous avez les analyses ADF et NDF pour le maïs pas plante entière (enrichis, ou récolte partielle) choisissez Maïs ALP12 pas PE
A41: Les résultats sont édités en rouge, pour la dMO la valeur à gauche donne à titre indicatif | H41: 71.81975309 | I41: dMO | J41: 76.81975309 | K41: %
A42: la dMO par régression sans corrections
A44: Des remarques peuvent apparaître pour signaler des informations manquantes,
A45: signaler que les champs d'application sont dépassés, dès lors les résultats perdent leur validité
A58: Les corrections de la dMO en fonction du cycle et du stade si ceux-ci sont connus
A59: doivent être appliquées
A60: si le stade n'est pas connu un stade est estimé en fonction du type de fourrage et de la conserve
A61: voir ci-dessous
A63: Les options de corrections pour les valeurs des tables d'ensilages, de séchage des foins/regains
A64: sont proposées, il ne faut pas les utiliser pour les valeurs analysées, puisque les
A65: dépréciations sont déjà comprises dans l'analyse !
A67: Dès qu'une options est activée elle est signalée dans les remarques
A68: et dans l'édition imprimée des résultats
B75: corrections de la dMO pour les mélanges fourragers non déterminés, autres fourrages voir chap. 15 LV
B77: si le stade n'est pas donné le programme estime | F77: herbe | G77: moyenne des stades 2 et 3
B78: un stade en fonction du type de conserve, soit: | F78: ensilage | G78: moyenne des stades 2 et 3
F79: sec | G79: moyenne des stades 3 et 4
F80: déshumidification | G80: moyenne des stades 2 et 3
A82: Les résultats sont imprimés sur une feuille neutre (sans arrière-plan) pour vous économiser de l'encre !
A83: Les valeurs ADF, NDF et sucres indiquées dans les résultats sont des valeurs indicatives issues d'estimations sommaires
A84: basées sur les valeurs données dans les tables. Elles ne peuvent pas prédire des valeurs sûres des constituants pariétaux à partir de la CB.
P107: 0
P108: 1
G125: 1
G154: 1

Sheet Val. nut. fourrage 2017
B1: LIVRE VERT 2006 | G1: référence | U1: cellules utilisée par la macro pour initialiser la feuille de calcul | W1: référence | AA1: Fourrage: | AB1: =INDEX(A61:A64,B60) -> en vert | AC1: =G1 -> référence | AD1: =INDEX(A67:A82,B66) -> Graminées
A2: FOURRAGES | B2: version 6.6.2017 nouv.corr.2017 dMO bota ind.+stade manque | E2: DONNEES | F2: MS | G2: 100 | H2: % | I2: =IF($B$88=TRUE,A89,"") -> teneur en matière sèche, 100 si les teneurs sont données dans la MS | W2: 100 | Z2: DONNEES | AA2: =F2 -> MS | AB2: =G2 -> 100 | AC2: =H2 -> % | AD2: =I2 -> teneur en matière sèche, 100 si les teneurs sont données dans la MS
F3: MA | H3: 288.4806286 | I3: 97.71206734 | AA3: =F3 -> MA | AB3: =IF(G3="","",G3) ->  | AC3: =H3 -> 288.4806286 | AD3: 97.71206734
F4: CB | H4: =IF($G$2=100,"g/kg MS","g/kg") -> g/kg MS | I4: cellulose brute | AA4: CB | AC4: g/kg MS | AD4: cellulose brute
F5: CE | H5: =IF($G$2=100,"g/kg MS","g/kg") -> g/kg MS | I5: cendres | AA5: CE | AC5: g/kg MS | AD5: cendres
F6: ADF | H6: =IF($G$2=100,"g/kg MS *","g/kg *") -> g/kg MS * | I6: lignocellulose (ADF) | AA6: ADF | AB6: =IF(G6="","",G6) ->  | AC6: g/kg MS * | AD6: lignocellulose (ADF)
F7: NDF | H7: =IF($G$2=100,"g/kg MS *","g/kg *") -> g/kg MS * | I7: parois (NDF) | AA7: NDF | AC7: g/kg MS * | AD7: parois (NDF)
A8: TYPE BOTANIQUE | F8: MG | G8: =IF(G2="","",IF(G3="","",0.35*G2)) ->  | H8: =IF($G$2=100,"g/kg MS *","g/kg *") -> g/kg MS * | I8: matière grasse | W8: =IF(W2="","",IF(W3="","",0.35*W2)) ->  | AA8: MG | AC8: g/kg MS * | AD8: matière grasse
F9: PF | G9: =IF(G2="","",IF(G3="","",IF(B60<>2,0,A255*F255))) ->  | H9: =IF($G$2=100,"g/kg MS *","g/kg *") -> g/kg MS * | I9: produits fermentaires (ensilage) donner % MS > > > | N9: % MS ensilages et maïs (estimation amidon) | W9: =IF(W2="","",IF(W3="","",IF(R60<>2,0,Q255*V255))) ->  | AA9: PF | AC9: g/kg MS * | AD9: =CONCATENATE("produit fermentaire de l'ensilage ",IF(M9="","",M9)," % MS ") -> produit fermentaire de l'ensilage % MS
F10: deMA | G10: =IF(G2="","",IF(G3="","",IF(G5="","",A247))) ->  | H10: % * | I10: degradabilité de la matière azotée | W10: =IF(W2="","",IF(W3="","",IF(W5="","",Q247))) ->  | AA10: deMA | AC10: % * | AD10: degradabilité de la matière azotée
F11: dAAA | G11: =IF(G2="","",IF(G3="","",IF(G5="","",A259))) ->  | H11: % * | I11: digestibilité des acides aminés d'origine alimentaire | W11: =IF(W2="","",IF(W3="","",IF(W5="","",Q259))) ->  | AA11: dAAA | AC11: % * | AD11: digestibilité des acides aminés d'origine alimentaire
F13: dMO | G13: =IF(G2="","",IF(G5="","",IF(AA145=0,"",AA145))) ->  | H13: % | I13: =IF($B$88=TRUE,A99,"") -> digestibilité de la matière organique (valeur connue in vivo ou tables LV, désactiver correction cycle ET stade!) | W13: =IF(W2="","",IF(W5="","",IF(AQ145=0,"",AQ145))) ->  | AA13: dMO | AB13: =IF(G13="","",G13) ->  | AC13: % | AD13: digestibilité de la matière organique (valeur connue in vivo ou tables LV, désactiver correction cycle ET stade!)
F14: dMA | H14: % | I14: =IF($B$88=TRUE,A100,"") -> digestibilité de la matière azotée (valeur in vivo ou tables LV) | AA14: dMA | AB14: =IF(G14="","",G14) ->  | AC14: % | AD14: digestibilité de la matière azotée (valeur in vivo ou tables LV)
B16: =INDEX(C67:C82,B66) -> >70% de graminées | F16: amidon | G16: =IF(B66=16,IF(G2="","",IF(G3="","",IF(M9<20,0,IF(M9<=30,22.571*M9-382.62,315)))),"") ->  | H16: =IF($G$2=100,"g/kg MS *","g/kg *") -> g/kg MS * | I16: =IF($B$88=TRUE,A120,"") -> * par défaut, d'autres valeurs peuvent être données, mais implique initialisation pour nouveau calcul | W16: =IF(R66=16,IF(W2="","",IF(W3="","",IF(AC9<20,0,IF(AC9<=30,22.571*AC9-382.62,315)))),"") ->  | X16: =INDEX(X18:X21,B60) -> en vert | Y16: =C66 -> G | AA16: =IF(AB13="","",IF(P121=1,"dMO pas corrigée !",IF(P122=1,CONCATENATE("dMO corrigée selon cycle ",P121-1," et conserve car le stade manque"),CONCATENATE("dMO corrigée selon cycle ",P121-1," et stade ",P122)))) ->  | AD16: =IF(AND(B60=3,B66=16),"pas d'équation pour ce type de fourrage",CONCATENATE(K60," pour fourrage ",X16," ; type ",Y16)) -> équations dMO par CB LV06 pour fourrage en vert ; type G
AA17: résultats
A18: OPTIONS LV | E18: =IF(G18="","",IF(AA145=0,"",AA145)) ->  | F18: dMO | G18: =IF(G85=1,"",IF(G2="","",IF(G3="","",IF(AD145=0,"",IF(AD145="","",AD145))))) ->  | H18: % | I18: =IF($B$88=TRUE,A101,"") -> digestibilité de la MO ( donnée) , utilisée dans le calcul | W18: =IF(W85=1,"",IF(W2="","",IF(W3="","",IF(AT145=0,"",IF(AT145="","",AT145))))) ->  | X18: en vert | Z18: RESULTATS CALCULES | AA18: dMO | AB18: =IF(G18="","",G18) ->  | AC18: % | AD18: digestibilité de la MO ( donnée) , utilisée dans le calcul
E19: RESULTATS | F19: dMA | G19: =IF(G18="","",IF(G227=TRUE,"",IF(G2="","",F227))) ->  | H19: % | I19: digestibilité de la MA (par régression ) , utilisée dans le calcul | W19: =IF(W18="","",IF(W227=TRUE,"",IF(W2="","",V227))) ->  | X19: ensilage | AA19: dMA | AB19: =IF(G19="","",G19) ->  | AC19: % | AD19: digestibilité de la MA (par régression ) , utilisée dans le calcul
F20: NEL | G20: =IF(G18="","",IF(G239=TRUE,"",IF(G2="","",C239+C239*J140))) ->  | H20: =IF($G$2=100,"MJ/kg MS","MJ/kg") -> MJ/kg MS | I20: énergie nette lait | W20: =IF(W18="","",IF(W239=TRUE,"",IF(W2="","",S239+S239*Z140))) ->  | X20: sec | AA20: NEL | AB20: =IF(G20="","",G20) ->  | AC20: MJ/kg MS | AD20: énergie nette lait
F21: NEV | G21: =IF(G18="","",IF(G240=TRUE,"",IF(G2="","",C240+C240*K140))) ->  | H21: =IF($G$2=100,"MJ/kg MS","MJ/kg") -> MJ/kg MS | I21: énergie nette viande | W21: =IF(W18="","",IF(W240=TRUE,"",IF(W2="","",S240+S240*AA140))) ->  | X21: déshydraté artificiel. | AA21: NEV | AC21: MJ/kg MS | AD21: énergie nette viande
B22: =IF(G3="","",IF(B66=16,"donner maturité maïs et MS","")) ->  | F22: PAIE | G22: =IF(G18="","",IF(G267=TRUE,"",IF(G2="","",C267+C267*L140))) ->  | H22: =IF($G$2=100,"g/kg MS","g/kg") -> g/kg MS | I22: protéines absorbables dans l'intestin synthétisées à partir de l'énergie disponible (deMA/dAAA LV06) | W22: =IF(W18="","",IF(W267=TRUE,"",IF(W2="","",S267+S267*AB140))) ->  | AA22: PAIE | AC22: g/kg MS | AD22: protéines absorbables dans l'intestin synthétisées à partir de l'énergie disponible (deMA/dAAA LV06)
B23: =H65 ->  | C23: =IF(B66=16,IF(G84=1,"manque CB, ADF ou NDF",""),"") ->  | E23: RESULTATS | F23: PAIN | G23: =IF(G18="","",IF(G268=TRUE,"",IF(G2="","",IF(C268=0,"",C268+C268*M140)))) ->  | H23: =IF($G$2=100,"g/kg MS","g/kg") -> g/kg MS | I23: protéines absorbables dans l'intestin synthétisées à partir de la matière azotée dégradée (deMA/dAAA LV06) | W23: =IF(W18="","",IF(W268=TRUE,"",IF(W2="","",IF(S268=0,"",S268+S268*AC140)))) ->  | AA23: PAIN | AC23: g/kg MS | AD23: protéines absorbables dans l'intestin synthétisées à partir de la matière azotée dégradée (deMA/dAAA LV06)
A24: REMARQUES | B24: =IF(G2="","",IF(B60=2,IF(M9="","DONNER LA MS DE L'ENSILAGE !",""),"")) ->  | F24: PME | G24: =IF(G18="","",IF(G2="","",IF(G271=TRUE,"",C271))) ->  | H24: g/kg MS | I24: =IF($B$88=TRUE,A108,"") -> quantité de protéines microbiennes synthétisées à partir de l'énergie fermentescible | W24: =IF(W18="","",IF(W2="","",IF(W271=TRUE,"",S271))) ->  | AA24: =F26 -> PAIMN | AB24: =IF(G26="","",G26) ->  | AC24: =H26 -> g/kg MS | AD24: =I26 -> protéines absorbables dans l'intestin synthétisées à partir de la matière azotée dégradable
B25: =IF(G2="","",IF(B60=1,IF(B66=16,"CHOISIR LA MATURITE DU MAIS VERT",""),"")) ->  | F25: PMN | G25: =IF(G18="","",IF(G270=TRUE,"",IF(G2="","",IF(C270=0,"",C270)))) ->  | H25: g/kg MS | I25: =IF($B$88=TRUE,A109,"") -> quantité de protéines microbiennes synthétisées à partir de la matière azotée dégradable | W25: =IF(W18="","",IF(W270=TRUE,"",IF(W2="","",IF(S270=0,"",S270)))) ->  | AA25: =F24 -> PME | AB25: =IF(G24="","",G24) ->  | AC25: =H24 -> g/kg MS | AD25: =I24 -> quantité de protéines microbiennes synthétisées à partir de l'énergie fermentescible
B26: =IFERROR(IF(G2="","",IF(G3="","",IF(G37>30,"EXCES EN AZOTE !",""))),"") ->  | F26: PAIMN | G26: =IF(G18="","",IF(G2="","",IF(G269=TRUE,"",IF(C269=0,"",C269)))) ->  | H26: g/kg MS | I26: =IF($B$88=TRUE,A107,"") -> protéines absorbables dans l'intestin synthétisées à partir de la matière azotée dégradable | W26: =IF(W18="","",IF(W2="","",IF(W269=TRUE,"",IF(S269=0,"",S269)))) ->  | AA26: =F25 -> PMN | AB26: =IF(G25="","",G25) ->  | AC26: =H25 -> g/kg MS | AD26: =I25 -> quantité de protéines microbiennes synthétisées à partir de la matière azotée dégradable
B27: =IF(G2="","",IF(G3="","",O109)) ->  | F27: PAIA | G27: =IF(G18="","",IF(G2="","",IF(G272=TRUE,"",IF(C272=0,"",C272)))) ->  | H27: g/kg MS | I27: =IF($B$88=TRUE,A110,"") -> protéines alimentaires absorbables dans l'intestin | W27: =IF(W18="","",IF(W2="","",IF(W272=TRUE,"",IF(S272=0,"",S272)))) ->  | AA27: PAIA | AC27: g/kg MS | AD27: protéines alimentaires absorbables dans l'intestin
B28: =IF(G2="","",IF(G4="","",O110)) ->  | F28: PAIM | G28: =IF(G18="","",IF(G266=TRUE,"",IF(G2="","",0.093*(C266*G2/100)))) ->  | H28: g/kg MS | I28: protéines absorbables dans l'intestin d'origine microbienne (MOF*0.093) | W28: =IF(W18="","",IF(W266=TRUE,"",IF(W2="","",0.093*(S266*W2/100)))) ->  | AA28: PAIM | AC28: g/kg MS | AD28: protéines absorbables dans l'intestin d'origine microbienne (MOF*0.093)
B29: =IF(G2="","",IF(G6="","",O112)) ->  | F29: EM | G29: =IF(G18="","",IF(G220=TRUE,"",IF(G2="","",B220))) ->  | H29: =IF($G$2=100,"MJ/kg MS","g/kg") -> MJ/kg MS | I29: énergie métabolisable | W29: =IF(W18="","",IF(W220=TRUE,"",IF(W2="","",R220))) ->  | AA29: EM | AC29: MJ/kg MS | AD29: énergie métabolisable
B30: =IFERROR(IF(G18="","",IF(AD145="","",IF(AD145=0,"",O114))),"") ->  | F30: ADF | G30: =IF(G2="","",IF(G6="",IF(AF145=0,"",AF145),G6)) ->  | H30: g/kg MS | I30: valeur indicative lignocellulose (ADF) par régression base CB et type botanique | W30: =IF(W2="","",IF(W6="",IF(AV145=0,"",AV145),W6)) ->  | AA30: ADF | AC30: g/kg MS | AD30: valeur indicative lignocellulose (ADF) par régression base CB et type botanique
B31: =S63 ->  | F31: NDF | G31: =IF(G2="","",IF(G7="",IF(AH145=0,"",AH145),G7)) ->  | H31: g/kg MS | I31: valeur indicative parois (NDF) par régression base CB et type botanique | W31: =IF(W2="","",IF(W7="",IF(AX145=0,"",AX145),W7)) ->  | AA31: NDF | AC31: g/kg MS | AD31: valeur indicative parois (NDF) par régression base CB et type botanique
B32: =S62 ->  | F32: SUCRES | G32: =IF(G2="","",IF(G4="","",IF(AJ145=0,"",AJ145))) ->  | H32: g/kg MS | I32: valeur indicative sucres par régression base CB et type botanique | W32: =IF(W2="","",IF(W4="","",IF(AZ145=0,"",AZ145))) ->  | AA32: SUCRES | AC32: g/kg MS | AD32: valeur indicative sucres par régression base CB et type botanique
F34: PPL NEL | G34: =IF(G2="","",IF(G20="","",G20/3.14)) ->  | H34: kg lait | I34: =IF($B$88=TRUE,A116,"") -> potentiel production lait selon NEL par kg MS (NEL/3.14) | W34: =IF(W2="","",IF(W20="","",W20/3.14)) ->  | AA34: PPL NEL | AC34: kg lait | AD34: potentiel production lait selon NEL par kg MS (NEL/3.14)
F35: PPL PAIE | G35: =IF(G2="","",IF(G22="","",G22/50)) ->  | H35: kg lait | I35: =IF($B$88=TRUE,A117,"") -> potentiel production lait selon PAIE par kg MS (PAIE/50) | W35: =IF(W2="","",IF(W22="","",W22/50)) ->  | AA35: PPL PAIE | AB35: =G35 ->  | AC35: kg lait | AD35: potentiel production lait selon PAIE par kg MS (PAIE/50)
F36: PPL PAIN | G36: =IF(G2="","",IF(G23="","",G23/50)) ->  | H36: kg lait | I36: =IF($B$88=TRUE,A118,"") -> potentiel production lait selon PAIN par kg MS (PAIN/50) | W36: =IF(W2="","",IF(W23="","",W23/50)) ->  | AA36: PPL PAIN | AB36: =G36 ->  | AC36: kg lait | AD36: potentiel production lait selon PAIN par kg MS (PAIN/50)
B37: yves.arrigo@agroscope.admin.ch | F37: MA/NEL | G37: =IF(G2="","",IF(G3="","",IF(G20="","",G3/G20))) ->  | H37: g/MJ | I37: =IF($B$88=TRUE,A119,"") -> équilibre protéines/énergie (20g lactation, 18g taries & repos, 19g engrais) | W37: =IF(W2="","",IF(W3="","",IF(W20="","",W3/W20))) ->  | AA37: =F37 -> MA/NEL | AB37: =G37 ->  | AC37: =H37 -> g/MJ | AD37: équilibre protéines/énergie (20g lactation, 18g taries & repos, 19g engrais)
E41: CORRECTIONS
G42: correction de la dMO selon cycle et stade | K42: =IF(F66=16,"pas de corrections dMO",INDEX(A67:A82,B66)) -> Graminées | M42: =IF(OR(G3="",G5=""),"",CONCATENATE("correction dMO : ",IF(Y120=0,0,ROUND(Y120-AC145,1)))) -> 
P43: =IF($P$121=1,"",IF($P$122<>1,"","si le stade n'est pas donné la dMO est corrigée en fonction du cycle et du type de fourrage")) -> 
F44: =IF(P122>1,IF(P121=1,"donnez le cycle",""),"") ->  | G44: cycle | P44: =IF($P$121=1,"",IF($P$122<>1,"","herbe = moyenne corrections stades 2 et 3")) ->  | AD44: version 2017.06.06 avec nouvelles corrections dMO pour cycles et stades, auteur aryv
P45: =IF($P$121=1,"",IF($P$122<>1,"","ensilage= moyenne corrections stades 2 et 3")) -> 
F46: =IF(B66=16,"",IF(P121>1,IF(P122=1,"donnez un stade",""),"")) ->  | G46: stade | P46: =IF($P$121=1,"",IF($P$122<>1,"","sec = moyenne corrections stades 3 et 4")) -> 
F47: =IF(P121=1,"",IF(B66<>8,"",IF(P122<>1,"","sinon selon cycle +type de fourrage"))) ->  | P47: =IF($P$121=1,"",IF($P$122<>1,"","déshydraté= moyenne corrections stades 2 et 3")) -> 
H50: corrections conservation pour ensilage | L50: corrections conservation pour foins/regains | P50: les corrections dues à la conservation
P51: sont réservées aux valeurs issues des tables !
G52: qualité fermentaire | K52: séchage | P52: Les valeurs analysées tiennentt déjà compte
P53: des dépréciations dues à la conservation !
G54: postfermentations | K54: cond. météo
G56: corr. autom. MS 20-50 | K56: fermentation
A60: TYPE | B60: 1 | C60: =INDEX(B61:B64,B60) -> VER | E60: EDITION | F60: 1 | H60: CHOIX DMO | I60: équations dMO par CB LV06 | J60: 1 | K60: =INDEX(I60:I62,J60) -> équations dMO par CB LV06 | M60: maturité Maïs v. | P60: corrections ens. | R60: =SUM(G124,G127,G130) -> 3 | S60: =IF(R60>3,"correction ensilage activée","") -> 
A61: en vert | B61: VER | E61: deMA/dAAA LV06 | I61: équations dMO par ADF LV06 | P61: corrections sec | R61: =SUM(G134,G135,G137) -> 3 | S61: =IF(R61>3,"correction conserve foin activée","") -> 
A62: ensilage | B62: ENS | P62: corrections cycle-stade | R62: =SUM(P121:P122) -> 2 | S62: =IF(R62>3,"dMO corrigée selon cycle+stade","") -> 
A63: sec | B63: SEC | E63: différencie calcul deMA, dAAA, PF | P63: pour remarques | S63: =IF(B60=2,S60,IF(B60=3,S61,"")) -> 
A64: déshydraté artificiellement | B64: DZU | H64: formule choix de l'option si dMO 06….. Prendre deMA/dAAA LV06
H65: =IF(J60<>3,IF(F60=1,"","PRENEZ OPTION deMA/dAAA LV06"),IF(F60=1,"PRENEZ OPTION deMA/dAAA LV99","")) -> 
A66: BOTA | B66: 1 | C66: =INDEX(B67:B82,B66) -> G | G66: typlolgie
A67: Graminées | B67: G | C67: >70% de graminées | G67: 10% Ray-gras anglais/ 50% Dactyle/ 20% Vulpin des prés/10% Trèfle blanc/10% Dent-de-lion
A68: G.Ray-grass | B68: GR | C68: >70% de graminées dont >50% de ray-grass | G68: 50% Ray-gras anglais/ 10% Ray-grass d'Italie/ 20% Dactyle/ 10% Trèfle blanc/10% Dent-de-lion
A69: Equilibré | B69: E | C69: 50-70% de graminées | G69: 10% Ray-gras anglais/ 35% Dactyle/ 15% Vulpin des prés/ 15% Trèfle blanc/ 5% Trèfle violet/ 20% Dent-de-lion
A70: Equil.Ray-grass | B70: ER | C70: 50-70% de graminées dont >50% de ray-grass | G70: 35% Ray-gras anglais/ 10% Ray-grass d'Italie/ 15% Dactyle/ 15% Trèfle blanc/ 5% Trèfle violet/ 20% Dent-de-lion
A71: Légumineuses | B71: L | C71: >50% de légumineuses | G71: 15% Ray-gras anglais/ 10% Dactyle/ 50% Trèfle blanc/ 15% Trèfle violet/ 10% Dent-de-lion
A72: Autres plantes feuilles | B72: DF | C72: >50% d'autres plantes fines riches en feuilles | G72: 15% Ray-gras anglais/ 10% Dactyle/ 10% Trèfle blanc/ 65% Dent-de-lion
A73: Autres plantes tiges | B73: DT | C73: >50% d'autres plantes grossières riches en tiges | G73: 15% Dactyle/ 10% Vulpin des prés/ 10% Trèfle blanc/ 5% Dent-de-lion/ 30% Anthrisque sauvage/ 30% Grande berce
A74: Type inconnu | B74: INC | C74: non déterminée | G74: indéterminée
A75: Dactyle | B75: dg | C75: en culture pure | G75: 100% Dactyle
A76: Ray-grass anglais | B76: lp | C76: en culture pure | G76: 100% Ray-grass anglais
A77: Ray-grass italien | B77: li | C77: en culture pure | G77: 100% Ray-grass italien
A78: Vulpin | B78: ap | C78: en culture pure | G78: 100% Vulpin
A79: Trèfle blanc | B79: tr | C79: en culture pure | G79: 100% Trèfle blanc
A80: Trèfle violet | B80: tp | C80: en culture pure | G80: 100% Trèfle violet
A81: Luzerne | B81: LUZ | C81: en culture pure | G81: 100% Luzerne
A82: Maïs | B82: MAÏS | C82: en culture pure | G82: 100% Maïs
A83: MAÏS option équations | C83: Maïs LV06 corrigé | E83: dMO retenue | F83: =AA144 -> FALSE | G83: validation ALP12 besoin CB, ADF, NDF
A84: 1 | C84: Maïs ALP12 pour PE | G84: =IF(A84>1,IF(OR(G6="",G7="",G4=""),1,2),"") ->  | H84: 2,3 ALP12
A85: =IF(B66<>16,2,A84) -> 2 | C85: Maïs ALP12 pas PE | G85: =IF(G84=1,IF(AND(A84>1),1,0)) -> FALSE | H85: si 1 pas de résultats car manque ADF,NDF
A88: DEFINITONStion | B88: TRUE
A89: teneur en matière sèche, 100 si les teneurs sont données dans la MS
A90: matière azotée (protéines)
A91: cellulose brute
A92: cendres
A93: lignocellulose (ADF)
A94: parois (NDF)
A95: matière grasse
A96: produits fermentaires (ensilage) donner % MS > > >
A97: degradabilité de la matière azotée
A98: digestibilité des acides aminés d'origine alimentaire
A99: digestibilité de la matière organique (valeur connue in vivo ou tables LV, désactiver correction cycle ET stade!)
A100: digestibilité de la matière azotée (valeur in vivo ou tables LV)
A101: =IF(G101=TRUE,"",CONCATENATE("digestibilité de la MO (",IF(AA145=AC145,K60," donnée"),") , utilisée dans le calcul")) -> digestibilité de la MO ( donnée) , utilisée dans le calcul | G101: =ISERROR(AA145) -> FALSE
A102: =CONCATENATE("digestibilité de la MA (",IF(G14="","par régression","donnée")," ) , utilisée dans le calcul") -> digestibilité de la MA (par régression ) , utilisée dans le calcul
A103: énergie nette lait
A104: énergie nette viande
A105: =CONCATENATE("protéines absorbables dans l'intestin synthétisées à partir de l'énergie disponible ","(",INDEX(E61:E62,F60),")") -> protéines absorbables dans l'intestin synthétisées à partir de l'énergie disponible (deMA/dAAA LV06) | O105: =IF(B66<9,"mélange","culture pure") -> mélange
A106: =CONCATENATE("protéines absorbables dans l'intestin synthétisées à partir de la matière azotée dégradée ","(",INDEX(E61:E62,F60),")") -> protéines absorbables dans l'intestin synthétisées à partir de la matière azotée dégradée (deMA/dAAA LV06)
A107: protéines absorbables dans l'intestin synthétisées à partir de la matière azotée dégradable | I107: Données exprimée dans la MS | L107: Données exprimée dans la MO | O107: HORS CHAMP D'APPLICATION ! | T107: champ mélange | V107: champ cult. pure
A108: quantité de protéines microbiennes synthétisées à partir de l'énergie fermentescible | I108: MS | J108: =G2*10 -> 1000 | K108: g
A109: quantité de protéines microbiennes synthétisées à partir de la matière azotée dégradable | I109: MA | J109: =G3/$J$108*1000 -> 0 | K109: g/kg MS | L109: MAmo | M109: =J109/J115*1000 ->  | N109: =IF(M109=0,0,1) ->  | O109: =IF($B$66<9,IF(J109<50,Q109,IF(J109>280,Q109,"")),IF(J109<50,Q109,IF(J109>320,Q109,""))) -> MA hors champ d'application | Q109: MA hors champ d'application | T109: 50 - 280 | U109: MA | V109: 50 - 320
A110: protéines alimentaires absorbables dans l'intestin | I110: CB | J110: =G4/$J$108*1000 -> 0 | K110: g/kg MS | L110: CBmo | M110: =J110/J115*1000 ->  | N110: =IF(M110=0,0,1) ->  | O110: =IF($B$66<9,IF(J110<130,Q110,IF(J110>400,Q110,"")),IF(J110<130,Q110,IF(J110>410,Q110,""))) -> CB hors champ d'application | Q110: CB hors champ d'application | T110: 130 - 400 | U110: CB | V110: 130 - 410
A111: protéines absorbables dans l'intestin d'origine microbienne (MOF*0.093) | I111: CE | J111: =IF(G5="",1000,G5/$J$108*1000) -> 1000 | K111: g/kg MS | L111: NDFmo | M111: =J113/J115*1000 -> 
A112: énergie métabolisable | I112: ADF | J112: =G6/$J$108*1000 -> 0 | K112: g/kg MS | L112: ENAmo | M112: =J117/J115*1000 ->  | O112: =IF($B$66<9,IF(J112<170,Q112,IF(J112>420,Q112,"")),IF(J112<150,Q112,IF(J112>450,Q112,""))) -> ADF hors champ d'application | Q112: ADF hors champ d'application | T112: 170 - 420 | U112: ADF | V112: 150 - 450
A113: =IF(G6="","valeur indicative lignocellulose (ADF) par régression base CB et type botanique","lignocellulose (ADF) donnée") -> valeur indicative lignocellulose (ADF) par régression base CB et type botanique | I113: NDF | J113: =G7/$J$108*1000 -> 0 | K113: g/kg MS | L113: MAmo2 | M113: =M109^2 -> 
A114: =IF(G7="","valeur indicative parois (NDF) par régression base CB et type botanique","parois (NDF) donné") -> valeur indicative parois (NDF) par régression base CB et type botanique | I114: MG | J114: =IF(G8="",0,G8/$J$108*1000) -> 0 | K114: g/kg MS | L114: CBmo2 | M114: =M110^2 ->  | O114: =IF($B$66<9,IF(AD155<55,Q114,IF(AD155>84,Q114,"")),IF(AD155<45,Q114,IF(AD155>87,Q114,""))) -> dMO hors champ d'application | Q114: dMO hors champ d'application | T114: 55 - 84 | U114: dMO | V114: 45 - 87 | AT114: TYPE | AU114: =INDEX(AU116:AU119,AU115) -> VER | AV114: botanique: | AW114: =C66 -> G
A115: valeur indicative sucres par régression base CB et type botanique | I115: MO | J115: =1000-J111 -> 0 | K115: g/kg MS | L115: HEMmo | M115: =J116/J115*1000 ->  | AU115: =B60 -> 1 | AW115: =B66 -> 1
A116: potentiel production lait selon NEL par kg MS (NEL/3.14) | I116: HEM | J116: =J113-J112 -> 0 | K116: g/kg MS | AT116: en vert | AU116: VER
A117: potentiel production lait selon PAIE par kg MS (PAIE/50) | I117: ENA | J117: =J115-J109-J110-J114 -> 0 | K117: g/kg MS | AT117: ensilage | AU117: ENS
A118: potentiel production lait selon PAIN par kg MS (PAIN/50) | AT118: sec | AU118: SEC
A119: équilibre protéines/énergie (20g lactation, 18g taries & repos, 19g engrais) | AT119: déshydraté artificiellement | AU119: DZU
A120: * par défaut, d'autres valeurs peuvent être données, mais implique initialisation pour nouveau calcul | O120: corrections 2017 dMo selon cycles et stades | X120: dMO corrigée | Y120: =SUM(Z125:AI139)+BC122+AC145 ->  | Z120: correction dMo selon cycles et stades des espèces pures | AA120: =P120 -> 0 | AK120: correction cycle sans stade donné | AR120: correction sans stades | AV120: stade manque
O121: cycle position | P121: 1 | Q121: = cycle | R121: =P121-1 -> 0 | Z121: cycle | AA121: =P121 -> 1 | AB121: 1=sans correct; 2=cycle 1;3=cycle 2+ | AR121: 1er cycle | AV121: 2em et suivants | AZ121: 1er | BA121: 2ème ss | BB121: pour cycle | BC121: correct selon conserve:
O122: stade position | P122: 1 | Q122: = stade | R122: =P122-1 -> 0 | Z122: stade | AA122: =P122 -> 1 | AB122: 1=sans correct; 2=std 2;3=std 3; 4=std 4 | AR122: herbe | AS122: ensilage | AT122: sec | AU122: déshydr. | AV122: herbe | AW122: ensilage | AX122: sec | AY122: déshydr. | BB122: =AA121-1 -> 0 | BC122: =IF(AND(AA121>1,AA122=1),SUM(BC125:BC139),0) -> 0 | BD122: =IF(BC122=0,0,BC122+AC145) -> 0 | BE122: dMO corrigée
A123: corrections pour ensilages | D123: NEL, NEV | E123: PAIE | F123: PAIN | G123: 1 | H123: MS | J123: NEL | K123: NEV | L123: PAIE | M123: PAIN | P123: 1er cycle | U123: repousses | Z123: 1er cycle | AE123: repousses | AL123: 1er cycle | AO123: repousses | BE123: selon cycle
A124: MS <20% | D124: -1 | E124: -6 | F124: 0 | G124: 1 | H124: sans corrections =1 | J124: =IF(G124=1,0,IF(G123=0,0,IF(G123<20,D124,IF(G123>50,D125,0)))) -> 0 | K124: =IF(G124=1,0,IF(G123=0,0,IF(G123<20,D124,IF(G123>50,D125,0)))) -> 0 | L124: =IF(G124=1,0,IF(G123=0,0,IF(G123<20,E124,IF(G123>50,E125,0)))) -> 0 | M124: =IF(G124=1,0,IF(G123=0,0,IF(G123<20,F124,IF(G123>50,F125,0)))) -> 0 | P124: stade 1 | Q124: stade 2 | R124: stade 3 | S124: stade 4 | T124: stade 5 | U124: stade 1 | V124: stade 2 | W124: stade 3 | X124: stade 4 | Y124: stade 5 | Z124: stade 1 | AA124: stade 2 | AB124: stade 3 | AC124: stade 4 | AD124: stade 5 | AE124: stade 1 | AF124: stade 2 | AG124: stade 3 | AH124: stade 4 | AI124: stade 5 | AL124: stade 2 | AM124: stade 3 | AN124: stade 4 | AO124: stade 2 | AP124: stade 3 | AQ124: stade 4 | AR124: moy st. 2-3 | AS124: moy st. 2-3 | AT124: moy st. 3-4 | AU124: moy st. 2-3 | AV124: moy st. 2-3 | AW124: moy st. 2-3 | AX124: moy st. 3-4 | AY124: moy st. 2-3 | BE124: sans stade mais
A125: MS >50% | D125: -1 | E125: 6 | F125: 0 | O125: G | P125: 5 | Q125: 5 | R125: 4 | S125: 3 | T125: 0 | U125: -2 | V125: -2 | W125: -2 | X125: -2 | Y125: -3 | Z125: =IF($P$121=2,IF($P$122=2,IF($AC$145=0,"",IF($B$66=1,P125,"")),""),"") ->  | AA125: =IF($P$121=2,IF($P$122=3,IF($AC$145=0,"",IF($B$66=1,Q125,"")),""),"") ->  | AB125: =IF($P$121=2,IF($P$122=4,IF($AC$145=0,"",IF($B$66=1,R125,"")),""),"") ->  | AC125: =IF($P$121=2,IF($P$122=5,IF($AC$145=0,"",IF($B$66=1,S125,"")),""),"") ->  | AD125: =IF($P$121=2,IF($P$122=6,IF($AC$145=0,"",IF($B$66=1,T125,"")),""),"") ->  | AE125: =IF($P$121=3,IF($P$122=2,IF($AC$145=0,"",IF($B$66=1,U125,"")),""),"") ->  | AF125: =IF($P$121=3,IF($P$122=3,IF($AC$145=0,"",IF($B$66=1,V125,"")),""),"") ->  | AG125: =IF($P$121=3,IF($P$122=4,IF($AC$145=0,"",IF($B$66=1,W125,"")),""),"") ->  | AH125: =IF($P$121=3,IF($P$122=5,IF($AC$145=0,"",IF($B$66=1,X125,"")),""),"") ->  | AI125: =IF($P$121=3,IF($P$122=6,IF($AC$145=0,"",IF($B$66=1,Y125,"")),""),"") ->  | AK125: G | AL125: =Q125 -> 5 | AM125: =R125 -> 4 | AN125: 3 | AO125: =V125 -> -2 | AP125: =W125 -> -2 | AQ125: -2 | AR125: =ROUND(AVERAGE(AL125:AM125),1) -> 4.5 | AS125: =ROUND(AVERAGE(AL125:AM125),1) -> 4.5 | AT125: =ROUND(AVERAGE(AM125:AN125),1) -> 3.5 | AU125: =ROUND(AVERAGE(AL125:AM125),1) -> 4.5 | AV125: =ROUND(AVERAGE(AO125:AP125),1) -> -2 | AW125: =ROUND(AVERAGE(AO125:AP125),1) -> -2 | AX125: =ROUND(AVERAGE(AP125:AQ125),1) -> -2 | AY125: =ROUND(AVERAGE(AO125:AP125),1) -> -2 | AZ125: =IF($AW$115=1,AR125,IF($AW$115=2,AS125,IF($AW$115=3,AT125,AU125))) -> 4.5 | BA125: =IF($AW$115=1,AW125,IF($AW$115=2,AW125,IF($AW$115=3,AX125,AY125))) -> -2 | BB125: =IF($BB$122+1=2,AZ125,BA125) -> -2 | BC125: =IF($AW$115=1,BB125,"") -> -2 | BE125: conserve
A126: normal | G126: 1 | O126: GR | P126: 6 | Q126: 6 | R126: 5 | S126: 5 | T126: 3 | U126: -1 | V126: -1 | W126: -2 | X126: -4 | Y126: -4 | Z126: =IF($P$121=2,IF($P$122=2,IF($AC$145=0,"",IF($B$66=2,P126,"")),""),"") ->  | AA126: =IF($P$121=2,IF($P$122=3,IF($AC$145=0,"",IF($B$66=2,Q126,"")),""),"") ->  | AB126: =IF($P$121=2,IF($P$122=4,IF($AC$145=0,"",IF($B$66=2,R126,"")),""),"") ->  | AC126: =IF($P$121=2,IF($P$122=5,IF($AC$145=0,"",IF($B$66=2,S126,"")),""),"") ->  | AD126: =IF($P$121=2,IF($P$122=6,IF($AC$145=0,"",IF($B$66=2,T126,"")),""),"") ->  | AE126: =IF($P$121=3,IF($P$122=2,IF($AC$145=0,"",IF($B$66=2,U126,"")),""),"") ->  | AF126: =IF($P$121=3,IF($P$122=3,IF($AC$145=0,"",IF($B$66=2,V126,"")),""),"") ->  | AG126: =IF($P$121=3,IF($P$122=4,IF($AC$145=0,"",IF($B$66=2,W126,"")),""),"") ->  | AH126: =IF($P$121=3,IF($P$122=5,IF($AC$145=0,"",IF($B$66=2,X126,"")),""),"") ->  | AI126: =IF($P$121=3,IF($P$122=6,IF($AC$145=0,"",IF($B$66=2,Y126,"")),""),"") ->  | AK126: GR | AL126: =Q126 -> 6 | AM126: 5 | AN126: 5 | AO126: =V126 -> -1 | AP126: -2 | AQ126: -4 | AR126: =ROUND(AVERAGE(AL126:AM126),1) -> 5.5 | AS126: =ROUND(AVERAGE(AL126:AM126),1) -> 5.5 | AT126: 5 | AU126: =ROUND(AVERAGE(AL126:AM126),1) -> 5.5 | AV126: =ROUND(AVERAGE(AO126:AP126),1) -> -1.5 | AW126: =ROUND(AVERAGE(AO126:AP126),1) -> -1.5 | AX126: -3 | AY126: =ROUND(AVERAGE(AO126:AP126),1) -> -1.5 | AZ126: =IF($AV$115=1,AR126,IF($AV$115=2,AS126,IF($AV$115=3,AT126,AU126))) -> 5.5 | BA126: =IF($AV$115=1,AV126,IF($AV$115=2,AW126,IF($AV$115=3,AX126,AY126))) -> -1.5 | BB126: -1.5 | BC126: =IF($AW$115=2,BB126,"") -> 
A127: qualité fermentaire défectueuse | D127: -2 | E127: -6 | F127: 0 | G127: 1 | H127: =INDEX(A126:A128,G127) -> normal | J127: =IF(G127=2,D127,IF(G127=3,D128,0)) -> 0 | K127: =IF(G127=2,D127,IF(G127=3,D128,0)) -> 0 | L127: =IF(G127=2,E127,IF(G127=3,E128,0)) -> 0 | M127: =IF(G127=2,F127,IF(G127=3,F1192,0)) -> 0 | O127: E | P127: 4 | Q127: 4 | R127: 4 | S127: 3 | T127: 0 | U127: -2 | V127: -2 | W127: -3 | X127: -3 | Y127: -3 | Z127: =IF($P$121=2,IF($P$122=2,IF($AC$145=0,"",IF($B$66=3,P127,"")),""),"") ->  | AA127: =IF($P$121=2,IF($P$122=3,IF($AC$145=0,"",IF($B$66=3,Q127,"")),""),"") ->  | AB127: =IF($P$121=2,IF($P$122=4,IF($AC$145=0,"",IF($B$66=3,R127,"")),""),"") ->  | AC127: =IF($P$121=2,IF($P$122=5,IF($AC$145=0,"",IF($B$66=3,S127,"")),""),"") ->  | AD127: =IF($P$121=2,IF($P$122=6,IF($AC$145=0,"",IF($B$66=3,T127,"")),""),"") ->  | AE127: =IF($P$121=3,IF($P$122=2,IF($AC$145=0,"",IF($B$66=3,U127,"")),""),"") ->  | AF127: =IF($P$121=3,IF($P$122=3,IF($AC$145=0,"",IF($B$66=3,V127,"")),""),"") ->  | AG127: =IF($P$121=3,IF($P$122=4,IF($AC$145=0,"",IF($B$66=3,W127,"")),""),"") ->  | AH127: =IF($P$121=3,IF($P$122=5,IF($AC$145=0,"",IF($B$66=3,X127,"")),""),"") ->  | AI127: =IF($P$121=3,IF($P$122=6,IF($AC$145=0,"",IF($B$66=3,Y127,"")),""),"") ->  | AK127: E | AL127: 4 | AM127: 4 | AN127: 3 | AO127: -2 | AP127: -3 | AQ127: -3 | AR127: 4 | AS127: 4 | AT127: 3.5 | AU127: 4 | AV127: -2.5 | AW127: -2.5 | AX127: -3 | AY127: -2.5 | AZ127: 4 | BA127: -2.5 | BB127: -2.5 | BC127: =IF($AW$115=3,BB127,"") -> 
A128: qualité fermentaire mauvaise | D128: -5 | E128: -15 | F128: -3 | O128: ER | P128: 5 | Q128: 5 | R128: 5 | S128: 5 | T128: 2 | U128: -1 | V128: -1 | W128: -2 | X128: -3 | Y128: -3 | Z128: =IF($P$121=2,IF($P$122=2,IF($AC$145=0,"",IF($B$66=4,P128,"")),""),"") ->  | AA128: =IF($P$121=2,IF($P$122=3,IF($AC$145=0,"",IF($B$66=4,Q128,"")),""),"") ->  | AB128: =IF($P$121=2,IF($P$122=4,IF($AC$145=0,"",IF($B$66=4,R128,"")),""),"") ->  | AC128: =IF($P$121=2,IF($P$122=5,IF($AC$145=0,"",IF($B$66=4,S128,"")),""),"") ->  | AD128: =IF($P$121=2,IF($P$122=6,IF($AC$145=0,"",IF($B$66=4,T128,"")),""),"") ->  | AE128: =IF($P$121=3,IF($P$122=2,IF($AC$145=0,"",IF($B$66=4,U128,"")),""),"") ->  | AF128: =IF($P$121=3,IF($P$122=3,IF($AC$145=0,"",IF($B$66=4,V128,"")),""),"") ->  | AG128: =IF($P$121=3,IF($P$122=4,IF($AC$145=0,"",IF($B$66=4,W128,"")),""),"") ->  | AH128: =IF($P$121=3,IF($P$122=5,IF($AC$145=0,"",IF($B$66=4,X128,"")),""),"") ->  | AI128: =IF($P$121=3,IF($P$122=6,IF($AC$145=0,"",IF($B$66=4,Y128,"")),""),"") ->  | AK128: ER | AL128: 5 | AM128: 5 | AN128: 5 | AO128: -1 | AP128: -2 | AQ128: -3 | AR128: 5 | AS128: 5 | AT128: 5 | AU128: 5 | AV128: -1.5 | AW128: -1.5 | AX128: -2.5 | AY128: -1.5 | AZ128: 5 | BA128: -1.5 | BB128: -1.5 | BC128: =IF($AW$115=4,BB128,"") -> 
A129: normal | G129: 1 | O129: L | P129: 3 | Q129: 4 | R129: 5 | S129: 5 | T129: 3 | U129: 2 | V129: 1 | W129: 0 | X129: 0 | Y129: -1 | Z129: =IF($P$121=2,IF($P$122=2,IF($AC$145=0,"",IF($B$66=5,P129,"")),""),"") ->  | AA129: =IF($P$121=2,IF($P$122=3,IF($AC$145=0,"",IF($B$66=5,Q129,"")),""),"") ->  | AB129: =IF($P$121=2,IF($P$122=4,IF($AC$145=0,"",IF($B$66=5,R129,"")),""),"") ->  | AC129: =IF($P$121=2,IF($P$122=5,IF($AC$145=0,"",IF($B$66=5,S129,"")),""),"") ->  | AD129: =IF($P$121=2,IF($P$122=6,IF($AC$145=0,"",IF($B$66=5,T129,"")),""),"") ->  | AE129: =IF($P$121=3,IF($P$122=2,IF($AC$145=0,"",IF($B$66=5,U129,"")),""),"") ->  | AF129: =IF($P$121=3,IF($P$122=3,IF($AC$145=0,"",IF($B$66=5,V129,"")),""),"") ->  | AG129: =IF($P$121=3,IF($P$122=4,IF($AC$145=0,"",IF($B$66=5,W129,"")),""),"") ->  | AH129: =IF($P$121=3,IF($P$122=5,IF($AC$145=0,"",IF($B$66=5,X129,"")),""),"") ->  | AI129: =IF($P$121=3,IF($P$122=6,IF($AC$145=0,"",IF($B$66=5,Y129,"")),""),"") ->  | AK129: L | AL129: 4 | AM129: 5 | AN129: 5 | AO129: 1 | AP129: 0 | AQ129: 0 | AR129: 4.5 | AS129: 4.5 | AT129: 5 | AU129: 4.5 | AV129: 0.5 | AW129: 0.5 | AX129: 0 | AY129: 0.5 | AZ129: 4.5 | BA129: 0.5 | BB129: 0.5 | BC129: =IF($AW$115=5,BB129,"") -> 
A130: postfermentations légèrement échauffé | D130: -4 | E130: -15 | F130: -3 | G130: 1 | H130: =INDEX(A129:A130,G130) -> normal | J130: =IF(G130=2,D130,0) -> 0 | K130: =IF(G130=2,D130,0) -> 0 | L130: =IF(G130=2,E130,0) -> 0 | M130: =IF(G130=2,F130,0) -> 0 | O130: DF | P130: 3 | Q130: 3 | R130: 3 | S130: 3 | T130: 2 | U130: -2 | V130: -2 | W130: -2 | X130: -2 | Y130: -4 | Z130: =IF($P$121=2,IF($P$122=2,IF($AC$145=0,"",IF($B$66=6,P130,"")),""),"") ->  | AA130: =IF($P$121=2,IF($P$122=3,IF($AC$145=0,"",IF($B$66=6,Q130,"")),""),"") ->  | AB130: =IF($P$121=2,IF($P$122=4,IF($AC$145=0,"",IF($B$66=6,R130,"")),""),"") ->  | AC130: =IF($P$121=2,IF($P$122=5,IF($AC$145=0,"",IF($B$66=6,S130,"")),""),"") ->  | AD130: =IF($P$121=2,IF($P$122=6,IF($AC$145=0,"",IF($B$66=6,T130,"")),""),"") ->  | AE130: =IF($P$121=3,IF($P$122=2,IF($AC$145=0,"",IF($B$66=6,U130,"")),""),"") ->  | AF130: =IF($P$121=3,IF($P$122=3,IF($AC$145=0,"",IF($B$66=6,V130,"")),""),"") ->  | AG130: =IF($P$121=3,IF($P$122=4,IF($AC$145=0,"",IF($B$66=6,W130,"")),""),"") ->  | AH130: =IF($P$121=3,IF($P$122=5,IF($AC$145=0,"",IF($B$66=6,X130,"")),""),"") ->  | AI130: =IF($P$121=3,IF($P$122=6,IF($AC$145=0,"",IF($B$66=6,Y130,"")),""),"") ->  | AK130: DF | AL130: 3 | AM130: 3 | AN130: 3 | AO130: -2 | AP130: -2 | AQ130: -2 | AR130: 3 | AS130: 3 | AT130: 3 | AU130: 3 | AV130: -2 | AW130: -2 | AX130: -2 | AY130: -2 | AZ130: 3 | BA130: -2 | BB130: -2 | BC130: =IF($AW$115=6,BB130,"") -> 
I131: % corrections | J131: =SUM(J124,J127,J130)/100 -> 0 | K131: =SUM(K124,K127,K130)/100 -> 0 | L131: =SUM(L124,L127,L130)/100 -> 0 | M131: =SUM(M124,M127,M130)/100 -> 0 | O131: DT | P131: 2 | Q131: 2 | R131: 2 | S131: -1 | T131: -5 | U131: 1 | V131: -1 | W131: -4 | X131: -6 | Y131: -11 | Z131: =IF($P$121=2,IF($P$122=2,IF($AC$145=0,"",IF($B$66=7,P131,"")),""),"") ->  | AA131: =IF($P$121=2,IF($P$122=3,IF($AC$145=0,"",IF($B$66=7,Q131,"")),""),"") ->  | AB131: =IF($P$121=2,IF($P$122=4,IF($AC$145=0,"",IF($B$66=7,R131,"")),""),"") ->  | AC131: =IF($P$121=2,IF($P$122=5,IF($AC$145=0,"",IF($B$66=7,S131,"")),""),"") ->  | AD131: =IF($P$121=2,IF($P$122=6,IF($AC$145=0,"",IF($B$66=7,T131,"")),""),"") ->  | AE131: =IF($P$121=3,IF($P$122=2,IF($AC$145=0,"",IF($B$66=7,U131,"")),""),"") ->  | AF131: =IF($P$121=3,IF($P$122=3,IF($AC$145=0,"",IF($B$66=7,V131,"")),""),"") ->  | AG131: =IF($P$121=3,IF($P$122=4,IF($AC$145=0,"",IF($B$66=7,W131,"")),""),"") ->  | AH131: =IF($P$121=3,IF($P$122=5,IF($AC$145=0,"",IF($B$66=7,X131,"")),""),"") ->  | AI131: =IF($P$121=3,IF($P$122=6,IF($AC$145=0,"",IF($B$66=7,Y131,"")),""),"") ->  | AK131: DT | AL131: 2 | AM131: 2 | AN131: -1 | AO131: -1 | AP131: -4 | AQ131: -6 | AR131: 2 | AS131: 2 | AT131: 0.5 | AU131: 2 | AV131: -2.5 | AW131: -2.5 | AX131: -5 | AY131: -2.5 | AZ131: 2 | BA131: -2.5 | BB131: -2.5 | BC131: =IF($AW$115=7,BB131,"") -> 
O132: Dactyle | P132: -2 | Q132: 0 | R132: 3 | S132: 5 | T132: 4 | U132: 1 | V132: 0 | W132: 0 | X132: -3 | Y132: -2 | Z132: =IF($P$121=2,IF($P$122=2,IF($AC$145=0,"",IF($B$66=9,P132,"")),""),"") ->  | AA132: =IF($P$121=2,IF($P$122=3,IF($AC$145=0,"",IF($B$66=9,Q132,"")),""),"") ->  | AB132: =IF($P$121=2,IF($P$122=4,IF($AC$145=0,"",IF($B$66=9,R132,"")),""),"") ->  | AC132: =IF($P$121=2,IF($P$122=5,IF($AC$145=0,"",IF($B$66=9,S132,"")),""),"") ->  | AD132: =IF($P$121=2,IF($P$122=6,IF($AC$145=0,"",IF($B$66=9,T132,"")),""),"") ->  | AE132: =IF($P$121=3,IF($P$122=2,IF($AC$145=0,"",IF($B$66=9,U132,"")),""),"") ->  | AF132: =IF($P$121=3,IF($P$122=3,IF($AC$145=0,"",IF($B$66=9,V132,"")),""),"") ->  | AG132: =IF($P$121=3,IF($P$122=4,IF($AC$145=0,"",IF($B$66=9,W132,"")),""),"") ->  | AH132: =IF($P$121=3,IF($P$122=5,IF($AC$145=0,"",IF($B$66=9,X132,"")),""),"") ->  | AI132: =IF($P$121=3,IF($P$122=6,IF($AC$145=0,"",IF($B$66=9,Y132,"")),""),"") ->  | AK132: Dactyle | AL132: 0 | AM132: 3 | AN132: 5 | AO132: 0 | AP132: 0 | AQ132: -3 | AR132: 1.5 | AS132: 1.5 | AT132: 4 | AU132: 1.5 | AV132: 0 | AW132: 0 | AX132: -1.5 | AY132: 0 | AZ132: 1.5 | BA132: 0 | BB132: 0 | BC132: =IF($AW$115=9,BB132,"") -> 
A133: corrections pour fourrages secs | D133: NEL, NEV | E133: PAIE | F133: PAIN | G133: 1 | J133: NEL | K133: NEV | L133: PAIE | M133: PAIN | O133: RG anglais | P133: -2 | Q133: 0 | R133: 3 | S133: 5 | T133: 5 | U133: -1 | V133: -2 | W133: -4 | X133: -4 | Y133: -4 | Z133: =IF($P$121=2,IF($P$122=2,IF($AC$145=0,"",IF($B$66=10,P133,"")),""),"") ->  | AA133: =IF($P$121=2,IF($P$122=3,IF($AC$145=0,"",IF($B$66=10,Q133,"")),""),"") ->  | AB133: =IF($P$121=2,IF($P$122=4,IF($AC$145=0,"",IF($B$66=10,R133,"")),""),"") ->  | AC133: =IF($P$121=2,IF($P$122=5,IF($AC$145=0,"",IF($B$66=10,S133,"")),""),"") ->  | AD133: =IF($P$121=2,IF($P$122=6,IF($AC$145=0,"",IF($B$66=10,T133,"")),""),"") ->  | AE133: =IF($P$121=3,IF($P$122=2,IF($AC$145=0,"",IF($B$66=10,U133,"")),""),"") ->  | AF133: =IF($P$121=3,IF($P$122=3,IF($AC$145=0,"",IF($B$66=10,V133,"")),""),"") ->  | AG133: =IF($P$121=3,IF($P$122=4,IF($AC$145=0,"",IF($B$66=10,W133,"")),""),"") ->  | AH133: =IF($P$121=3,IF($P$122=5,IF($AC$145=0,"",IF($B$66=10,X133,"")),""),"") ->  | AI133: =IF($P$121=3,IF($P$122=6,IF($AC$145=0,"",IF($B$66=10,Y133,"")),""),"") ->  | AK133: RG anglais | AL133: 0 | AM133: 3 | AN133: 5 | AO133: -2 | AP133: -4 | AQ133: -4 | AR133: 1.5 | AS133: 1.5 | AT133: 4 | AU133: 1.5 | AV133: -3 | AW133: -3 | AX133: -4 | AY133: -3 | AZ133: 1.5 | BA133: -3 | BB133: -3 | BC133: =IF($AW$115=10,BB133,"") -> 
A134: séchage au sol | D134: -4 | E134: -3 | F134: 0 | G134: 1 | J134: =IF(G134=2,D134,0) -> 0 | K134: =IF(G134=2,D134,0) -> 0 | L134: =IF(G134=2,E134,0) -> 0 | M134: =IF(G134=2,F134,0) -> 0 | O134: RG itallien | P134: -3 | Q134: -1 | R134: 3 | S134: 4 | T134: -2 | U134: 0 | V134: 3 | W134: 4 | X134: 2 | Y134: -3 | Z134: =IF($P$121=2,IF($P$122=2,IF($AC$145=0,"",IF($B$66=11,P134,"")),""),"") ->  | AA134: =IF($P$121=2,IF($P$122=3,IF($AC$145=0,"",IF($B$66=11,Q134,"")),""),"") ->  | AB134: =IF($P$121=2,IF($P$122=4,IF($AC$145=0,"",IF($B$66=11,R134,"")),""),"") ->  | AC134: =IF($P$121=2,IF($P$122=5,IF($AC$145=0,"",IF($B$66=11,S134,"")),""),"") ->  | AD134: =IF($P$121=2,IF($P$122=6,IF($AC$145=0,"",IF($B$66=11,T134,"")),""),"") ->  | AE134: =IF($P$121=3,IF($P$122=2,IF($AC$145=0,"",IF($B$66=11,U134,"")),""),"") ->  | AF134: =IF($P$121=3,IF($P$122=3,IF($AC$145=0,"",IF($B$66=11,V134,"")),""),"") ->  | AG134: =IF($P$121=3,IF($P$122=4,IF($AC$145=0,"",IF($B$66=11,W134,"")),""),"") ->  | AH134: =IF($P$121=3,IF($P$122=5,IF($AC$145=0,"",IF($B$66=11,X134,"")),""),"") ->  | AI134: =IF($P$121=3,IF($P$122=6,IF($AC$145=0,"",IF($B$66=11,Y134,"")),""),"") ->  | AK134: RG itallien | AL134: -1 | AM134: 3 | AN134: 4 | AO134: 3 | AP134: 4 | AQ134: 2 | AR134: 1 | AS134: 1 | AT134: 3.5 | AU134: 1 | AV134: 3.5 | AW134: 3.5 | AX134: 3 | AY134: 3.5 | AZ134: 1 | BA134: 3.5 | BB134: 3.5 | BC134: =IF($AW$115=11,BB134,"") -> 
A135: 1 jour de pluie | D135: -5 | E135: -8 | F135: -2 | G135: 1 | J135: =IF(G135=2,D135,IF(G135=3,D136,0)) -> 0 | K135: =IF(G135=2,D135,IF(G135=3,D136,0)) -> 0 | L135: =IF(G135=2,E135,IF(G135=3,E136,0)) -> 0 | M135: =IF(G135=2,F135,IF(H135=3,F136,0)) -> 0 | O135: Vulpin | P135: 0 | Q135: 5 | R135: 3 | S135: 2 | T135: 0 | U135: -2 | V135: -3 | W135: -3 | X135: -3 | Y135: -3 | Z135: =IF($P$121=2,IF($P$122=2,IF($AC$145=0,"",IF($B$66=12,P135,"")),""),"") ->  | AA135: =IF($P$121=2,IF($P$122=3,IF($AC$145=0,"",IF($B$66=12,Q135,"")),""),"") ->  | AB135: =IF($P$121=2,IF($P$122=4,IF($AC$145=0,"",IF($B$66=12,R135,"")),""),"") ->  | AC135: =IF($P$121=2,IF($P$122=5,IF($AC$145=0,"",IF($B$66=12,S135,"")),""),"") ->  | AD135: =IF($P$121=2,IF($P$122=6,IF($AC$145=0,"",IF($B$66=12,T135,"")),""),"") ->  | AE135: =IF($P$121=3,IF($P$122=2,IF($AC$145=0,"",IF($B$66=12,U135,"")),""),"") ->  | AF135: =IF($P$121=3,IF($P$122=3,IF($AC$145=0,"",IF($B$66=12,V135,"")),""),"") ->  | AG135: =IF($P$121=3,IF($P$122=4,IF($AC$145=0,"",IF($B$66=12,W135,"")),""),"") ->  | AH135: =IF($P$121=3,IF($P$122=5,IF($AC$145=0,"",IF($B$66=12,X135,"")),""),"") ->  | AI135: =IF($P$121=3,IF($P$122=6,IF($AC$145=0,"",IF($B$66=12,Y135,"")),""),"") ->  | AK135: Vulpin | AL135: 5 | AM135: 3 | AN135: 2 | AO135: -3 | AP135: -3 | AQ135: -3 | AR135: 4 | AS135: 4 | AT135: 2.5 | AU135: 4 | AV135: -3 | AW135: -3 | AX135: -3 | AY135: -3 | AZ135: 4 | BA135: -3 | BB135: -3 | BC135: =IF($AW$115=12,BB135,"") -> 
A136: 2 jours et plus de pluie | D136: -8 | E136: -15 | F136: -3 | G136: 1 | O136: Trèfle blanc | P136: 2 | Q136: 3 | R136: 3 | S136: 2 | T136: 1 | U136: 1 | V136: 1 | W136: 1 | X136: 0 | Y136: -3 | Z136: =IF($P$121=2,IF($P$122=2,IF($AC$145=0,"",IF($B$66=13,P136,"")),""),"") ->  | AA136: =IF($P$121=2,IF($P$122=3,IF($AC$145=0,"",IF($B$66=13,Q136,"")),""),"") ->  | AB136: =IF($P$121=2,IF($P$122=4,IF($AC$145=0,"",IF($B$66=13,R136,"")),""),"") ->  | AC136: =IF($P$121=2,IF($P$122=5,IF($AC$145=0,"",IF($B$66=13,S136,"")),""),"") ->  | AD136: =IF($P$121=2,IF($P$122=6,IF($AC$145=0,"",IF($B$66=13,T136,"")),""),"") ->  | AE136: =IF($P$121=3,IF($P$122=2,IF($AC$145=0,"",IF($B$66=13,U136,"")),""),"") ->  | AF136: =IF($P$121=3,IF($P$122=3,IF($AC$145=0,"",IF($B$66=13,V136,"")),""),"") ->  | AG136: =IF($P$121=3,IF($P$122=4,IF($AC$145=0,"",IF($B$66=13,W136,"")),""),"") ->  | AH136: =IF($P$121=3,IF($P$122=5,IF($AC$145=0,"",IF($B$66=13,X136,"")),""),"") ->  | AI136: =IF($P$121=3,IF($P$122=6,IF($AC$145=0,"",IF($B$66=13,Y136,"")),""),"") ->  | AK136: Trèfle blanc | AL136: 3 | AM136: 3 | AN136: 2 | AO136: 1 | AP136: 1 | AQ136: 0 | AR136: 3 | AS136: 3 | AT136: 2.5 | AU136: 3 | AV136: 1 | AW136: 1 | AX136: 0.5 | AY136: 1 | AZ136: 3 | BA136: 1 | BB136: 1 | BC136: =IF($AW$115=13,BB136,"") -> 
A137: Echauffement, légèrement brun | D137: 0 | E137: 3 | F137: 0 | G137: 1 | J137: =IF(G137=2,D137,IF(G137=3,D138,0)) -> 0 | K137: =IF(G137=2,D137,IF(G137=3,D138,0)) -> 0 | L137: =IF(G137=2,E137,IF(G137=3,E138,0)) -> 0 | M137: =IF(G137=2,F137,IF(H137=3,F138,0)) -> 0 | O137: Trèfle violet | P137: 0 | Q137: 3 | R137: 3 | S137: 2 | T137: 0 | U137: -2 | V137: -1 | W137: -1 | X137: -1 | Y137: -3 | Z137: =IF($P$121=2,IF($P$122=2,IF($AC$145=0,"",IF($B$66=14,P137,"")),""),"") ->  | AA137: =IF($P$121=2,IF($P$122=3,IF($AC$145=0,"",IF($B$66=14,Q137,"")),""),"") ->  | AB137: =IF($P$121=2,IF($P$122=4,IF($AC$145=0,"",IF($B$66=14,R137,"")),""),"") ->  | AC137: =IF($P$121=2,IF($P$122=5,IF($AC$145=0,"",IF($B$66=14,S137,"")),""),"") ->  | AD137: =IF($P$121=2,IF($P$122=6,IF($AC$145=0,"",IF($B$66=14,T137,"")),""),"") ->  | AE137: =IF($P$121=3,IF($P$122=2,IF($AC$145=0,"",IF($B$66=14,U137,"")),""),"") ->  | AF137: =IF($P$121=3,IF($P$122=3,IF($AC$145=0,"",IF($B$66=14,V137,"")),""),"") ->  | AG137: =IF($P$121=3,IF($P$122=4,IF($AC$145=0,"",IF($B$66=14,W137,"")),""),"") ->  | AH137: =IF($P$121=3,IF($P$122=5,IF($AC$145=0,"",IF($B$66=14,X137,"")),""),"") ->  | AI137: =IF($P$121=3,IF($P$122=6,IF($AC$145=0,"",IF($B$66=14,Y137,"")),""),"") ->  | AK137: Trèfle violet | AL137: 3 | AM137: 3 | AN137: 2 | AO137: -1 | AP137: -1 | AQ137: -1 | AR137: 3 | AS137: 3 | AT137: 2.5 | AU137: 3 | AV137: -1 | AW137: -1 | AX137: -1 | AY137: -1 | AZ137: 3 | BA137: -1 | BB137: -1 | BC137: =IF($AW$115=14,BB137,"") -> 
A138: Echauffement, brun odeur de roussi | D138: -5 | E138: -1 | F138: -2 | I138: foins / regains | O138: Luzerne | P138: 1 | Q138: 1 | R138: 1 | S138: 1 | T138: 1 | U138: -3 | V138: -2 | W138: -1 | X138: -2 | Y138: -1 | Z138: =IF($P$121=2,IF($P$122=2,IF($AC$145=0,"",IF($B$66=15,P138,"")),""),"") ->  | AA138: =IF($P$121=2,IF($P$122=3,IF($AC$145=0,"",IF($B$66=15,Q138,"")),""),"") ->  | AB138: =IF($P$121=2,IF($P$122=4,IF($AC$145=0,"",IF($B$66=15,R138,"")),""),"") ->  | AC138: =IF($P$121=2,IF($P$122=5,IF($AC$145=0,"",IF($B$66=15,S138,"")),""),"") ->  | AD138: =IF($P$121=2,IF($P$122=6,IF($AC$145=0,"",IF($B$66=15,T138,"")),""),"") ->  | AE138: =IF($P$121=3,IF($P$122=2,IF($AC$145=0,"",IF($B$66=15,U138,"")),""),"") ->  | AF138: =IF($P$121=3,IF($P$122=3,IF($AC$145=0,"",IF($B$66=15,V138,"")),""),"") ->  | AG138: =IF($P$121=3,IF($P$122=4,IF($AC$145=0,"",IF($B$66=15,W138,"")),""),"") ->  | AH138: =IF($P$121=3,IF($P$122=5,IF($AC$145=0,"",IF($B$66=15,X138,"")),""),"") ->  | AI138: =IF($P$121=3,IF($P$122=6,IF($AC$145=0,"",IF($B$66=15,Y138,"")),""),"") ->  | AK138: Luzerne | AL138: 1 | AM138: 1 | AN138: 1 | AO138: -2 | AP138: -1 | AQ138: -2 | AR138: 1 | AS138: 1 | AT138: 1 | AU138: 1 | AV138: -1.5 | AW138: -1.5 | AX138: -1.5 | AY138: -1.5 | AZ138: 1 | BA138: -1.5 | BB138: -1.5 | BC138: =IF($AW$115=15,BB138,"") -> 
I139: % corrections | J139: =SUM(J134,J135,J137)/100 -> 0 | K139: =SUM(K134,K135,K137)/100 -> 0 | L139: =SUM(L134,L135,L137)/100 -> 0 | M139: =SUM(M134,M135,M137)/100 -> 0 | O139: indéterminé | P139: 5 | Q139: 5 | R139: 5 | S139: 4 | T139: 4 | U139: -3 | V139: -3 | W139: -4 | X139: -3 | Y139: -3 | Z139: =IF($P$121=2,IF($P$122=2,IF($AC$145=0,"",IF($B$66=8,P139,"")),""),"") ->  | AA139: =IF($P$121=2,IF($P$122=3,IF($AC$145=0,"",IF($B$66=8,Q139,"")),""),"") ->  | AB139: =IF($P$121=2,IF($P$122=4,IF($AC$145=0,"",IF($B$66=8,R139,"")),""),"") ->  | AC139: =IF($P$121=2,IF($P$122=5,IF($AC$145=0,"",IF($B$66=8,S139,"")),""),"") ->  | AD139: =IF($P$121=2,IF($P$122=6,IF($AC$145=0,"",IF($B$66=8,T139,"")),""),"") ->  | AE139: =IF($P$121=3,IF($P$122=2,IF($AC$145=0,"",IF($B$66=8,U139,"")),""),"") ->  | AF139: =IF($P$121=3,IF($P$122=3,IF($AC$145=0,"",IF($B$66=8,V139,"")),""),"") ->  | AG139: =IF($P$121=3,IF($P$122=4,IF($AC$145=0,"",IF($B$66=8,W139,"")),""),"") ->  | AH139: =IF($P$121=3,IF($P$122=5,IF($AC$145=0,"",IF($B$66=8,X139,"")),""),"") ->  | AI139: =IF($P$121=3,IF($P$122=6,IF($AC$145=0,"",IF($B$66=8,Y139,"")),""),"") ->  | AK139: indéterminé | AL139: 5 | AM139: 5 | AN139: 4 | AO139: -3 | AP139: -4 | AQ139: -3 | AR139: 5 | AS139: 5 | AT139: 4.5 | AU139: 5 | AV139: -3.5 | AW139: -3.5 | AX139: -3.5 | AY139: -3.5 | AZ139: 5 | BA139: -3.5 | BB139: -3.5 | BC139: =IF($AW$115=8,BB139,"") -> 
H140: corrections | I140: =INDEX(A61:A64,B60) -> en vert | J140: =IF(B60=2,J131,IF(B60=3,J139,0)) -> 0 | K140: =IF(B60=2,K131,IF(B60=3,K139,0)) -> 0 | L140: =IF(B60=2,L131,IF(B60=3,L139,0)) -> 0 | M140: =IF(B60=2,M131,IF(B60=3,M139,0)) -> 0
A141: =CONCATENATE(B60,B66) -> 11
U143: données MA,CB existantes | AE143: valeurs indicatives à partir mini régression issues des tables 2006
A144: EQUATIONS dMO et ADF, NDF, Sucres | P144: priorité ADF donné | V144: =SUM(N109:N110) ->  | Y144: conserve | Z144: bota | AA144: =ISERROR(AA145) -> FALSE | AB144: dMO donné prioritaire | AC144: dMO utilisée | AD144: dMO pour correction cycle-stade | AE144: ADFreg | AF144: ADFreg | AG144: NDFreg | AH144: NDFreg | AI144: SUCREreg | AJ144: SUCREreg
D145: MA | E145: CB | F145: ADF donné | G145: NDF donné | H145: CE | I145: ADF reg2006 | J145: NDF reg | K145: sucre reg | L145: NDF(donné/reg) | M145: ADF(donné/reg) | N145: MO | O145: MA/MO | P145: CB/MO | Q145: ADF/MO | R145: MA2/MO | S145: CB2/MO | T145: ADF2/MO | U145: dMO par CB | V145: dMO par ADF | W145: LV99 | X145: dMO reg | AA145: =SUM(AA146:AA209) -> 0 | AB145: dMO | AC145: =IF(AA144=TRUE,"",IF(G13<>AA145,G13,AA145)) ->  | AD145: =IF(Y120=0,AC145,Y120) ->  | AF145: =(SUM(AF146:AF209))*G2/100 -> 0 | AH145: =(SUM(AH146:AH209))*G2/100 -> 0 | AJ145: =(SUM(AJ146:AJ209))*G2/100 -> 0
B146: vert | C146: G | D146: =$J$109 -> 0 | E146: =$J$110 -> 0 | F146: =$J$112 -> 0 | G146: =$J$113 -> 0 | H146: =$J$111 -> 1000 | I146: =IF(E146=0,"",1.0503*E146 + 18.642) ->  | J146: =IF(E146=0,"", 1.753*E146 + 40.45) ->  | K146: =IF(E146=0,"", -0.0035*E146^2 + 1.7676*E146 - 115.4) ->  | L146: =IF(G146="",J146,G146) -> 0 | M146: =IF(F146="",I146,F146) -> 0 | N146: =1000-H146 -> 0 | O146: =D146/N146*1000 ->  | P146: =E146/N146*1000 ->  | Q146: =M146/N146*1000 ->  | R146: =O146^2 ->  | S146: =P146^2 ->  | T146: =Q146^2 ->  | U146: =IF(E146=0,"",34+0.1654*O146+0.1776*P146-0.000257*R146-0.000391*S146) ->  | V146: =IF(M146=0,"",25.7+0.1654*O146+0.2169*Q146-0.000256*R146-0.000413*T146) ->  | W146: =IF(V144=0,"",84.8+0.0109*O146-0.000167*S146) ->  | X146: =IF($J$60=1,U146,IF($J$60=2,V146,W146)) ->  | Y146: =IF(X146=U146,"dMO par CB",IF(X146=V146,"dMO par ADF","dMO reg LV99")) -> dMO par CB | Z146: =IF($C$60="VER",X146,"") ->  | AA146: =IF($C$66="G",Z146,0) ->  | AB146: G | AE146: =IF($C$60="VER",I146,"") ->  | AF146: =IF($C$66="G",AE146,0) ->  | AG146: =IF($C$60="VER",J146,"") ->  | AH146: =IF($C$66="G",AG146,0) ->  | AI146: =IF($C$60="VER",K146,"") ->  | AJ146: =IF($C$66="G",AI146,0) -> 
B147: vert | C147: GR | D147: 0 | E147: 0 | F147: 0 | G147: 0 | H147: 1000 | I147: =IF(E147=0,"", 1.0649*E147 + 14.478) ->  | J147: =IF(E147=0,"", 1.913*E147 - 1.668) ->  | K147: =IF(E147=0,"", 0.0037*E147^2 - 1.8885*E147 + 396.24) ->  | L147: =IF(G147="",J147,G147) -> 0 | M147: =IF(F147="",I147,F147) -> 0 | N147: 0 | Q147: =M147/N147*1000 ->  | R147: =O147^2 ->  | U147: =IF(E147=0,"",21.9+0.1209*O147+0.358*P147-0.000186*R147-0.000794*S147) ->  | V147: =IF(M147=0,"",13.3+0.1209*O147+0.3823*Q147-0.000186*R147-0.000746*T147) ->  | W147: =IF(V144=0,"",87.9+0.0006*O147+0.0028*P147-0.000179*S147) ->  | X147: =IF($J$60=1,U147,IF($J$60=2,V147,W147)) ->  | Y147: =IF(X147=U147,"dMO par CB",IF(X147=V147,"dMO par ADF","dMO reg LV99")) -> dMO par CB | AA147: =IF($C$66="GR",Z147,0) -> 0 | AB147: GR | AF147: =IF($C$66="GR",AE147,0) -> 0 | AH147: =IF($C$66="GR",AG147,0) -> 0 | AJ147: =IF($C$66="GR",AI147,0) -> 0
B148: vert | C148: E | D148: 0 | E148: 0 | F148: 0 | G148: 0 | H148: 1000 | I148: =IF(E148=0,"", 1.0238*E148 + 29.95) ->  | J148: =IF(E148=0,"", 1.7735*E148 + 20.628) ->  | K148: =IF(E148=0,"", -0.0027*E148^2 + 1.2332*E148 - 27.716) ->  | L148: =IF(G148="",J148,G148) -> 0 | M148: 0 | N148: 0 | U148: =IF(E148=0,"",40.6+0.1599*O148+0.1431*P148-0.000248*R148-0.000351*S148) ->  | V148: =IF(M148=0,"",32.3+0.1599*O148+0.1866*Q148-0.000248*R148-0.000382*T148) ->  | W148: =IF(V144=0,"",83.5+0.0114*O148-0.000145*S148) ->  | Y148: dMO par CB | AA148: =IF($C$66="E",Z148,0) -> 0 | AB148: E | AF148: =IF($C$66="E",AE148,0) -> 0 | AH148: =IF($C$66="E",AG148,0) -> 0 | AJ148: =IF($C$66="E",AI148,0) -> 0
B149: vert | C149: ER | D149: 0 | E149: 0 | F149: 0 | G149: 0 | H149: 1000 | I149: =IF(E149=0,"", 1.0747*E149 + 18.157) ->  | J149: =IF(E149=0,"",1.9227*E149 - 15.022) ->  | K149: =IF(E149=0,"", 0.0008*E149^2 - 0.4282*E149 + 201.3) ->  | L149: 0 | M149: 0 | N149: 0 | U149: =IF(E149=0,"",43.2+0.0859*O149+0.2559*P149-0.000132*R149-0.000678*S149) ->  | V149: =IF(M149=0,"",34.4+0.0863*O149+0.2914*Q149-0.000133*R149-0.000647*T149) ->  | W149: =IF(V144=0,"",94.4+0.0011*O149-0.0466*P149-0.000075*S149) ->  | Y149: dMO par CB | AA149: =IF($C$66="ER",Z149,0) -> 0 | AB149: ER | AF149: =IF($C$66="ER",AE149,0) -> 0 | AH149: =IF($C$66="ER",AG149,0) -> 0 | AJ149: =IF($C$66="ER",AI149,0) -> 0
B150: vert | C150: L | D150: 0 | E150: 0 | F150: 0 | G150: 0 | H150: 1000 | I150: =IF(E150=0,"", 1.0964*E150 + 22.686) ->  | J150: =IF(E150=0,"", 1.5566*E150 + 34.674) ->  | K150: =IF(E150=0,"", -0.0013*E150^2 + 0.666*E150 + 36.244) ->  | L150: 0 | M150: 0 | N150: 0 | U150: =IF(E150=0,"",86-0.000231*S150) ->  | V150: =IF(M150=0,"",87.4-0.000179*T150) ->  | W150: =IF(V144=0,"",72.6+0.0035*O150+0.1206*P150-0.000435*S150) ->  | Y150: dMO par CB | AA150: =IF($C$66="L",Z150,0) -> 0 | AB150: L | AF150: =IF($C$66="L",AE150,0) -> 0 | AH150: =IF($C$66="L",AG150,0) -> 0 | AJ150: =IF($C$66="L",AI150,0) -> 0
B151: vert | C151: DF | D151: 0 | E151: 0 | F151: 0 | G151: 0 | H151: 1000 | I151: =IF(E151=0,"", 1.1167*E151 + 24.749) ->  | J151: =IF(E151=0,"", 1.9332*E151 - 31.121) ->  | K151: =IF(E151=0,"", 0.0035*E151^2 - 1.3962*E151 + 265.53) ->  | L151: 0 | M151: 0 | N151: 0 | U151: =IF(E151=0,"",58.9+0.0792*O151+0.132*P151-0.000121*R151-0.000428*S151) ->  | V151: =IF(M151=0,"",48.6+0.0779*O151+0.2008*Q151-0.000118*R151-0.000487*T151) ->  | W151: =IF(V144=0,"",174.6-0.1409*O151-0.4803*P151+0.000543*S151) ->  | Y151: dMO par CB | AA151: =IF($C$66="DF",Z151,0) -> 0 | AB151: DF | AF151: =IF($C$66="DF",AE151,0) -> 0 | AH151: =IF($C$66="DF",AG151,0) -> 0 | AJ151: =IF($C$66="DF",AI151,0) -> 0
B152: vert | C152: DT | D152: 0 | E152: 0 | F152: 0 | G152: 0 | H152: 1000 | I152: =IF(E152=0,"", 1.1896*E152 + 14.282) ->  | J152: =IF(E152=0,"", 1.9337*E152 - 32.211) ->  | K152: =IF(E152=0,"", 0.0011*E152^2 - 0.6024*E152 + 209.31) ->  | L152: 0 | M152: 0 | N152: 0 | U152: =IF(E152=0,"",43.6+0.1806*O152+0.1384*P152-0.000298*R152-0.000475*S152) ->  | V152: =IF(M152=0,"",35.2+0.1813*O152+0.1512*Q152-0.000299*R152-0.000311*T152) ->  | W152: =IF(V144=0,"",174.6-0.1409*O152-0.4803*P152+0.000543*S152) ->  | Y152: dMO par CB | AA152: =IF($C$66="DT",Z152,0) -> 0 | AB152: DT | AF152: =IF($C$66="DT",AE152,0) -> 0 | AH152: =IF($C$66="DT",AG152,0) -> 0 | AJ152: =IF($C$66="DT",AI152,0) -> 0
B153: vert | C153: IND | D153: 0 | E153: 0 | F153: 0 | G153: 0 | H153: 1000 | I153: =IF(E153=0,"", 0.9296*E153 + 55.229) ->  | J153: =IF(E153=0,"", 1.8457*E153 - 10.667) ->  | K153: =IF(E153=0,"", -0.0074*E153^2 + 3.2716*E153 - 221.76) ->  | L153: 0 | M153: 0 | N153: 0 | U153: =IF(E153=0,"",56.7+0.1262*O153+0.0939*P153-0.000231*R153-0.000312*S153) ->  | V153: =IF(M153=0,"",54.8+0.1121*O153+0.1221*Q153-0.000207*R153-0.000335*T153) ->  | W153: =IF(V144=0,"",72.7+0.0291*O153+0.0481*P153-0.000211*S153) ->  | Y153: dMO par CB | AA153: =IF($C$66="INC",Z153,0) -> 0 | AB153: IND | AF153: =IF($C$66="INC",AE153,0) -> 0 | AH153: =IF($C$66="INC",AG153,0) -> 0 | AJ153: =IF($C$66="INC",AI153,0) -> 0
B154: vert | C154: dg | D154: 0 | E154: 0 | F154: 0 | G154: 0 | H154: 1000 | I154: =IF(E154=0,"", 0.9853*E154 + 28.437) ->  | J154: =IF(E154=0,"", 1.3785*E154 + 156.77) ->  | K154: =IF(E154=0,"", -0.0086*E154^2 + 5.0791*E154 - 639.52) ->  | L154: 0 | M154: 0 | N154: 0 | U154: =IF(E154=0,"",93.6-0.000221*S154) ->  | V154: =IF(M154=0,"",96.3-0.000212*T154) ->  | Y154: dMO par CB | AA154: =IF($C$66="dg",Z154,0) -> 0 | AB154: dg | AF154: =IF($C$66="dg",AE154,0) -> 0 | AH154: =IF($C$66="dg",AG154,0) -> 0 | AJ154: =IF($C$66="dg",AI154,0) -> 0
B155: vert | C155: lp | D155: 0 | E155: 0 | F155: 0 | G155: 0 | H155: 1000 | I155: =IF(E155=0,"", 2.106*E155 - 35.434) ->  | J155: =IF(E155=0,"", 1.1817*E155 - 20.908) ->  | K155: =IF(E155=0,"", 0.0136*E155^2 - 7.0911*E155 + 1098.3) ->  | L155: 0 | M155: 0 | N155: 0 | U155: =IF(E155=0,"",95.5+0.0122*O155-0.000316*S155) ->  | V155: =IF(M155=0,"",98.3+0.0013*O155-0.000279*T155) ->  | W155: =IF(W144=0,"",74.4+0.0085*O155+0.1103*P155-0.000411*S155) ->  | Y155: dMO par CB | AA155: =IF($C$66="lp",Z155,0) -> 0 | AB155: lp | AC155: =IF($J$60=3,W161,0) -> 0 | AD155: dMOmaïs LV99 | AF155: =IF($C$66="lp",AE155,0) -> 0 | AH155: =IF($C$66="lp",AG155,0) -> 0 | AJ155: =IF($C$66="lp",AI155,0) -> 0
B156: vert | C156: li | D156: 0 | E156: 0 | F156: 0 | G156: 0 | H156: 1000 | I156: =IF(E156=0,"", 1.2035*E156 - 16.67) ->  | J156: =IF(E156=0,"", 1.7517*E156 + 47.237) ->  | K156: =IF(E156=0,"", -0.001*E156^2 + 0.3864*E156 + 171.38) ->  | L156: 0 | M156: 0 | N156: 0 | U156: =IF(E156=0,"",101.7-0.000446*S156) ->  | V156: =IF(M156=0,"",101.1-0.000339*T156) ->  | W156: =IF(V144=0,"",74.4+0.0085*O156+0.1103*P156-0.000411*S156) ->  | Y156: dMO par CB | AA156: =IF($C$66="li",Z156,0) -> 0 | AB156: li | AC156: =IF(AND($A$84=4,$J$60=1),U161,0) -> 0 | AD156: dMOmaïs LV06 par CB (INRA) | AF156: =IF($C$66="li",AE156,0) -> 0 | AH156: =IF($C$66="li",AG156,0) -> 0 | AJ156: =IF($C$66="li",AI156,0) -> 0
B157: vert | C157: ap | D157: 0 | E157: 0 | F157: 0 | G157: 0 | H157: 1000 | I157: =IF(E157=0,"", 1.2025*E157 - 25.099) ->  | J157: =IF(E157=0,"", 2.1605*E157 - 53.052) ->  | K157: =IF(E157=0,"", 0.0044*E157^2 - 2.8995*E157 + 547.51) ->  | L157: 0 | M157: 0 | N157: 0 | U157: =IF(E157=0,"",90.1+0.0414*O157-0.000309*S157) ->  | V157: =IF(M157=0,"",98.6+0.0144*O157-0.000282*T157) ->  | Y157: dMO par CB | AA157: =IF($C$66="ap",Z157,0) -> 0 | AB157: ap | AC157: =IF(AND($A$84=4,$J$60=2),U161,0) -> 0 | AD157: dMO maïs LV06 par ADFNDF (INRA) | AF157: =IF($C$66="ap",AE157,0) -> 0 | AH157: =IF($C$66="ap",AG157,0) -> 0 | AJ157: =IF($C$66="ap",AI157,0) -> 0
B158: vert | C158: tr | D158: 0 | E158: 0 | F158: 0 | G158: 0 | H158: 1000 | I158: =IF(E158=0,"", 1.2727*E158 + 8.4545) ->  | J158: =IF(E158=0,"", 1.5973*E158 - 9.5709) ->  | K158: =IF(E158=0,"", -0.0069*E158^2 + 2.2686*E158 - 100.25) ->  | L158: 0 | M158: 0 | N158: 0 | U158: =IF(E158=0,"",58.2+0.0732*O158-0.000022*S158) ->  | V158: =IF(M158=0,"",61.7+0.0642*O158-0.00003*T158) ->  | Y158: dMO par CB | AA158: =IF($C$66="tr",Z158,0) -> 0 | AB158: tr | AC158: =IF(AND($A$84=1,$J$60=1),100*((((N161*U161/100)*1.2812)-180.35)/N161),0) ->  | AD158: dMOmaïscorr. Par MOD dMOCB: 1.2812 x MOD CB -180.35 | AF158: =IF($C$66="tr",AE158,0) -> 0 | AH158: =IF($C$66="tr",AG158,0) -> 0 | AJ158: =IF($C$66="tr",AI158,0) -> 0
B159: vert | C159: tp | D159: 0 | E159: 0 | F159: 0 | G159: 0 | H159: 1000 | I159: =IF(E159=0,"", 1.125*E159 + 20.242) ->  | J159: =IF(E159=0,"", 1.3119*E159 + 58.139) ->  | K159: =IF(E159=0,"", -0.0004*E159^2 + 0.0843*E159 +101.68) ->  | L159: 0 | M159: 0 | N159: 0 | U159: =IF(E159=0,"",78.8+0.000047*R159-0.000154*S159) ->  | V159: =IF(M159=0,"",80.2+0.000041*R159-0.000118*T159) ->  | Y159: dMO par CB | AA159: =IF($C$66="tp",Z159,0) -> 0 | AB159: tp | AC159: =IF(AND($A$84=1,$J$60=2),100*((((N161*V161/100)*1.2653)-156.12)/N161),0) -> 0 | AD159: dMOmaïs corr. Par MOD dMOADF : 1.2653 x MOD ADF - 156.12 | AF159: =IF($C$66="tp",AE159,0) -> 0 | AH159: =IF($C$66="tp",AG159,0) -> 0 | AJ159: =IF($C$66="tp",AI159,0) -> 0
B160: vert | C160: luz | D160: 0 | E160: 0 | F160: 0 | G160: 0 | H160: 1000 | I160: =IF(E160=0,"",1.0526*E160 + 34.944) ->  | J160: =IF(E160=0,"", 1.2979*E160 + 32.529) ->  | K160: =IF(E160=0,"", -0.00004*E160^2 - 0.0411*E160 + 71.168) ->  | L160: 0 | M160: 0 | N160: 0 | U160: =IF(E160=0,"",52.4+0.0898*O160-0.000062*S160) ->  | V160: =IF(M160=0,"",56.7+0.0796*O160-0.00006*T160) ->  | W160: =IF(V144=0,"",100.1-0.0989*P160) ->  | Y160: dMO par CB | AA160: =IF($C$66="LUZ",Z160,0) -> 0 | AB160: luz | AC160: =IF(AND($A$84=2,$J$60<3),100*((-1016.7+($J$115*1.8)+(($J$109*$J$117/1000)*1.106)+(($M$109*$M$115/1000)*(-3.01))+(($M$110*$M$111/1000)*(-0.0013))+10.3)/$J$115),0) -> 0 | AD160: dMOmaïs PE équation ALP12 | AF160: =IF($C$66="LUZ",AE160,0) -> 0 | AH160: =IF($C$66="LUZ",AG160,0) -> 0 | AJ160: =IF($C$66="LUZ",AI160,0) -> 0
B161: vert | C161: maïs | D161: 0 | E161: 0 | F161: 0 | G161: 0 | H161: 1000 | I161: =IF(E161=0,"", 1.0966*E161 + 16.236) ->  | J161: =IF(E161=0,"",1.5282*E161 + 125.25) ->  | K161: =IF(E161=0,"", 0.2348*E161 + 4.8502) ->  | L161: 0 | M161: 0 | N161: 0 | U161: =IF(E161=0,"",79.4+0.0652*O161-0.0591*P161) ->  | V161: =IF(M161=0,"",IF(L161=0,"",75.7+0.0701*O161+0.0156*L161/N161*1000-0.072*Q161)) ->  | W161: =IF(V144=0,"",82.5+0.0758*O161-0.0729*P161) ->  | Y161: dMO par CB | AA161: =IF(Z161="","",IF($C$66="MAÏS",SUM(AC155:AC161),0)) ->  | AB161: maïs | AC161: =IF(AND($A$84=3,$J$60<3),100*((-1016.7+($J$115*1.8)+(($J$109*$J$117/1000)*1.106)+(($M$109*$M$115/1000)*(-3.01))+(($M$110*$M$111/1000)*(-0.0013))-10.3)/$J$115),0) -> 0 | AD161: dMOmaïs pas PE équation ALP12 | AE161: =IF($C$60="VER",I161,"") ->  | AF161: =IF($C$66="MAÏS",AE161,0) -> 0 | AH161: =IF($C$66="MAÏS",AG161,0) -> 0 | AJ161: =IF($C$66="MAÏS",AI161,0) -> 0
B162: ensilé | C162: G | D162: 0 | E162: 0 | F162: 0 | G162: 0 | H162: 1000 | I162: =IF(E162=0,"", 0.9982*E162 + 38.072) ->  | J162: =IF(E162=0,"", 1.5508*E162 + 35.621) ->  | K162: =IF(E162=0,"", -0.0017*E162^2 + 0.9258*E162 - 84.881) ->  | L162: 0 | M162: 0 | N162: 0 | U162: =IF(E162=0,"",26.3+0.1653*O162+0.2041*P162-0.000241*R162-0.000419*S162) ->  | V162: =IF(M162=0,"",10.8+0.1652*O162+0.2793*Q162-0.00024*R162-0.000484*T162) ->  | W162: =IF(V144=0,"",110.8-0.000032*R162-0.1298*P162) ->  | Y162: dMO par CB | Z162: =IF($C$60="ENS",X162,"") ->  | AA162: =IF($C$66="G",Z162,0) ->  | AB162: G | AE162: =IF($C$60="ENS",I162,"") ->  | AF162: =IF($C$66="G",AE162,0) ->  | AG162: =IF($C$60="ENS",J162,"") ->  | AH162: =IF($C$66="G",AG162,0) ->  | AI162: =IF($C$60="ENS",K162,"") ->  | AJ162: =IF($C$66="G",AI162,0) -> 
B163: ensilé | C163: GR | D163: 0 | E163: 0 | F163: 0 | G163: 0 | H163: 1000 | I163: =IF(E163=0,"", 1.0241*E163 + 30.808) ->  | J163: =IF(E163=0,"", 1.7027*E163 - 6.0565) ->  | K163: =IF(E163=0,"",0.0017*E163^2 - 0.8951*E163 + 178.35) ->  | L163: 0 | M163: 0 | N163: 0 | U163: =IF(E163=0,"",10.4+0.1206*O163+0.4102*P163-0.000174*R163-0.000849*S163) ->  | V163: =IF(M163=0,"",-9.4+0.1206*O163+0.4916*Q163-0.000174*R163-0.000872*T163) ->  | W163: =IF(V144=0,"",94.1-0.0067*O163-0.0262*P163-0.000141*S163) ->  | Y163: dMO par CB | Z163: =IF($C$60="ENS",X163,"") ->  | AA163: =IF($C$66="GR",Z163,0) -> 0 | AB163: GR | AF163: =IF($C$66="GR",AE163,0) -> 0 | AH163: =IF($C$66="GR",AG163,0) -> 0 | AJ163: =IF($C$66="GR",AI163,0) -> 0
B164: ensilé | C164: E | D164: 0 | E164: 0 | F164: 0 | G164: 0 | H164: 1000 | I164: =IF(E164=0,"", 1.0005*E164 + 42.48) ->  | J164: =IF(E164=0,"", 1.6001*E164 + 10.376) ->  | K164: =IF(E164=0,"", -0.0005*E164^2 + 0.2288*E164 +16.541) ->  | L164: 0 | M164: 0 | N164: 0 | U164: =IF(E164=0,"",34.1+0.1596*O164+0.1653*P164-0.000233*R164-0.000376*S164) ->  | V164: =IF(M164=0,"",19.4+0.1596*O164+0.2424*Q164-0.000232*R164-0.000447*T164) ->  | W164: =IF(V144=0,"",122.1-0.0423*O164-0.1478*P164) ->  | Y164: dMO par CB | AA164: =IF($C$66="E",Z164,0) -> 0 | AB164: E | AF164: =IF($C$66="E",AE164,0) -> 0 | AH164: =IF($C$66="E",AG164,0) -> 0 | AJ164: =IF($C$66="E",AI164,0) -> 0
B165: ensilé | C165: ER | D165: 0 | E165: 0 | F165: 0 | G165: 0 | H165: 1000 | I165: =IF(E165=0,"", 1.026*E165 + 35.952) ->  | J165: =IF(E165=0,"", 1.7144*E165 - 17.949) ->  | K165: =IF(E165=0,"", 0.0001*E165^2 - 0.081*E165 + 68.852) ->  | L165: 0 | M165: 0 | N165: 0 | U165: =IF(E165=0,"",34.9+0.0857*O165+0.2967*P165-0.000124*R165-0.000724*S165) ->  | V165: =IF(M165=0,"",16.9+0.0864*O165+0.3815*Q165-0.000125*R165-0.000755*T165) ->  | W165: =IF(V144=0,"",95.4-0.0002*O165-0.0513*P165-0.000068*S165) ->  | Y165: dMO par CB | AA165: =IF($C$66="ER",Z165,0) -> 0 | AB165: ER | AF165: =IF($C$66="ER",AE165,0) -> 0 | AH165: =IF($C$66="ER",AG165,0) -> 0 | AJ165: =IF($C$66="ER",AI165,0) -> 0
B166: ensilé | C166: L | D166: 0 | E166: 0 | F166: 0 | G166: 0 | H166: 1000 | I166: =IF(E166=0,"", 1.0405*E166 + 41.457) ->  | J166: =IF(E166=0,"", 1.369*E166 + 34.55) ->  | K166: =IF(E166=0,"", 0.00003*E166^2 -0.051*E166 + 53.265) ->  | L166: 0 | M166: 0 | N166: 0 | U166: =IF(E166=0,"",85.8-0.000229*S166) ->  | V166: =IF(M166=0,"",88.3-0.000181*T166) ->  | W166: =IF(V144=0,"",70.4+0.0086*O166+0.1247*P166-0.000436*S166) ->  | Y166: dMO par CB | AA166: =IF($C$66="L",Z166,0) -> 0 | AB166: L | AF166: =IF($C$66="L",AE166,0) -> 0 | AH166: =IF($C$66="L",AG166,0) -> 0 | AJ166: =IF($C$66="L",AI166,0) -> 0
B167: ensilé | C167: DF | D167: 0 | E167: 0 | F167: 0 | G167: 0 | H167: 1000 | I167: =IF(E167=0,"",1.0842*E167 + 38.447) ->  | J167: =IF(E167=0,"", 1.7333*E167 - 34.721) ->  | K167: =IF(E167=0,"", 0.0015*E167^2 - 0.6373*E167 + 114.42) ->  | L167: 0 | M167: 0 | N167: 0 | U167: =IF(E167=0,"",54+0.078*O167+0.1557*P167-0.000111*R167-0.000457*S167) ->  | V167: =IF(M167=0,"",36.1+0.0759*O167+0.268*Q167-0.000107*R167-0.000572*T167) ->  | W167: =IF(V144=0,"",122.4-0.0213*O167-0.2763*P167+0.000294*S167) ->  | Y167: dMO par CB | AA167: =IF($C$66="DF",Z167,0) -> 0 | AB167: DF | AF167: =IF($C$66="DF",AE167,0) -> 0 | AH167: =IF($C$66="DF",AG167,0) -> 0 | AJ167: =IF($C$66="DF",AI167,0) -> 0
B168: ensilé | C168: DT | D168: 0 | E168: 0 | F168: 0 | G168: 0 | H168: 1000 | I168: =IF(E168=0,"", 1.1428*E168 + 29.545) ->  | J168: =IF(E168=0,"", 1.7401*E168 - 37.006) ->  | K168: =IF(E168=0,"", 0.0008*E168^2 - 0.3693*E168 + 94.79) ->  | L168: 0 | M168: 0 | N168: 0 | U168: =IF(E168=0,"",37.4+0.1809*O168+0.1622*P168-0.00028*R168-0.0005*S168) ->  | V168: =IF(M168=0,"",24.2+0.1819*O168+0.1929*Q168-0.000282*R168-0.000355*T168) ->  | W168: =IF(V144=0,"",122.4-0.0213*O168-0.2763*P168+0.000294*S168) ->  | Y168: dMO par CB | AA168: =IF($C$66="DT",Z168,0) -> 0 | AB168: DT | AF168: =IF($C$66="DT",AE168,0) -> 0 | AH168: =IF($C$66="DT",AG168,0) -> 0 | AJ168: =IF($C$66="DT",AI168,0) -> 0
B169: ensilé | C169: IND | D169: 0 | E169: 0 | F169: 0 | G169: 0 | H169: 1000 | I169: =IF(E169=0,"", 0.8941*E169 + 68.218) ->  | J169: =IF(E169=0,"", 1.6092*E169 + 18.402) ->  | K169: =IF(E169=0,"", -0.0031*E169^2 + 1.4524*E169 - 117.39) ->  | L169: 0 | M169: 0 | N169: 0 | U169: =IF(E169=0,"",51.8+0.1275*O169+0.1116*P169-0.000219*R169-0.000333*S169) ->  | V169: =IF(M169=0,"",45.7+0.1145*O169+0.1661*Q169-0.000199*R169-0.00039*T169) ->  | W169: =IF(V144=0,"",61.6+0.0386*O169+0.0965*P169-0.000274*S169) ->  | Y169: dMO par CB | AA169: =IF($C$66="INC",Z169,0) -> 0 | AB169: IND | AF169: =IF($C$66="INC",AE169,0) -> 0 | AH169: =IF($C$66="INC",AG169,0) -> 0 | AJ169: =IF($C$66="INC",AI169,0) -> 0
B170: ensilé | C170: dg | D170: 0 | E170: 0 | F170: 0 | G170: 0 | H170: 1000 | I170: =IF(E170=0,"", 0.9309*E170 + 50.049) ->  | J170: =IF(E170=0,"", 1.2196*E170 + 143.54) ->  | K170: =IF(E170=0,"", 0.0004*E170^2 -0.2612*E170 +82.006) ->  | L170: 0 | M170: 0 | N170: 0 | U170: =IF(E170=0,"",94.5-0.000225*S170) ->  | V170: =IF(M170=0,"",99.2-0.000224*T170) ->  | Y170: dMO par CB | AA170: =IF($C$66="dg",Z170,0) -> 0 | AB170: dg | AF170: =IF($C$66="dg",AE170,0) -> 0 | AH170: =IF($C$66="dg",AG170,0) -> 0 | AJ170: =IF($C$66="dg",AI170,0) -> 0
B171: ensilé | C171: lp | D171: 0 | E171: 0 | F171: 0 | G171: 0 | H171: 1000 | I171: =IF(E171=0,"", 1.122*E171 - 0.7226) ->  | J171: =IF(E171=0,"", 1.8755*E171 - 38.083) ->  | K171: =IF(E171=0,"", 0.0064*E171^2 - 3.4633*E171 + 538.08) ->  | L171: 0 | M171: 0 | N171: 0 | U171: =IF(E171=0,"",101.5-0.000352*S171) ->  | V171: =IF(M171=0,"",102.2-0.000293*T171) ->  | W171: =IF(V144=0,"",109.7-0.0205*O171-0.0766*P171-0.000151*S171) ->  | Y171: dMO par CB | AA171: =IF($C$66="lp",Z171,0) -> 0 | AB171: lp | AC171: =IF($J$60=3,W177,0) -> 0 | AD171: dMOmaïs LV99 | AF171: =IF($C$66="lp",AE171,0) -> 0 | AH171: =IF($C$66="lp",AG171,0) -> 0 | AJ171: =IF($C$66="lp",AI171,0) -> 0
B172: ensilé | C172: li | D172: 0 | E172: 0 | F172: 0 | G172: 0 | H172: 1000 | I172: =IF(E172=0,"", 1.1351*E172 + 4.7669) ->  | J172: =IF(E172=0,"", 1.5509*E172 + 41.592) ->  | K172: =IF(E172=0,"", -0.0005*E172^2 + 0.1982*E172 + 62.47) ->  | L172: 0 | M172: 0 | N172: 0 | U172: =IF(E172=0,"",103.8-0.000449*S172) ->  | V172: =IF(M172=0,"",104.1-0.000341*T172) ->  | W172: =IF(V144=0,"",109.7-0.0205*O172-0.0766*P172-0.000151*S172) ->  | Y172: dMO par CB | AA172: =IF($C$66="li",Z172,0) -> 0 | AB172: li | AC172: =IF(AND($A$84=4,$J$60=1),U177,0) -> 0 | AD172: dMOmaïs LV06 par CB (INRA) | AF172: =IF($C$66="li",AE172,0) -> 0 | AH172: =IF($C$66="li",AG172,0) -> 0 | AJ172: =IF($C$66="li",AI172,0) -> 0
B173: ensilé | C173: ap | D173: 0 | E173: 0 | F173: 0 | G173: 0 | H173: 1000 | I173: =IF(E173=0,"", 1.1742*E173 - 13.802) ->  | J173: =IF(E173=0,"", 1.9325*E173 - 56.89) ->  | K173: =IF(E173=0,"", 0.0016*E173^2 - 1.119*E173 + 218.21) ->  | L173: 0 | M173: 0 | N173: 0 | U173: =IF(E173=0,"",86.1+0.0573*O173-0.000291*S173) ->  | V173: =IF(M173=0,"",101.8+0.0173*O173-0.000293*T173) ->  | Y173: dMO par CB | AA173: =IF($C$66="ap",Z173,0) -> 0 | AB173: ap | AC173: =IF(AND($A$84=4,$J$60=2),U177,0) -> 0 | AD173: dMO maïs LV06 par ADFNDF (INRA) | AF173: =IF($C$66="ap",AE173,0) -> 0 | AH173: =IF($C$66="ap",AG173,0) -> 0 | AJ173: =IF($C$66="ap",AI173,0) -> 0
B174: ensilé | C174: tr | D174: 0 | E174: 0 | F174: 0 | G174: 0 | H174: 1000 | I174: =IF(E174=0,"", 1.2468*E174 + 18.486) ->  | J174: =IF(E174=0,"", 1.4135*E174 - 7.8475) ->  | K174: =IF(E174=0,"", -0.0035*E174^2 + 1.2495*E174 - 80.005) ->  | L174: 0 | M174: 0 | N174: 0 | U174: =IF(E174=0,"",86.5-0.000261*S174) ->  | V174: =IF(M174=0,"",87.1-0.000152*T174) ->  | Y174: dMO par CB | AA174: =IF($C$66="tr",Z174,0) -> 0 | AB174: tr | AC174: =IF(AND($A$84=1,$J$60=1),100*((((N177*U177/100)*1.2812)-180.35)/N177),0) ->  | AD174: dMOmaïscorr. Par MOD dMOCB: 1.2812 x MOD CB -180.35 | AF174: =IF($C$66="tr",AE174,0) -> 0 | AH174: =IF($C$66="tr",AG174,0) -> 0 | AJ174: =IF($C$66="tr",AI174,0) -> 0
B175: ensilé | C175: tp | D175: 0 | E175: 0 | F175: 0 | G175: 0 | H175: 1000 | I175: =IF(E175=0,"", 1.0699*E175 + 38.695) ->  | J175: =IF(E175=0,"", 1.1597*E175 + 56.057) ->  | K175: =IF(E175=0,"", -0.0001*E175^2 + 0.0244*E175 +37.2) ->  | L175: 0 | M175: 0 | N175: 0 | U175: =IF(E175=0,"",82.5-0.000189*S175) ->  | V175: =IF(M175=0,"",84.1-0.000141*T175) ->  | Y175: dMO par CB | AA175: =IF($C$66="tp",Z175,0) -> 0 | AB175: tp | AC175: =IF(AND($A$84=1,$J$60=2),100*((((N177*V177/100)*1.2653)-156.12)/N177),0) -> 0 | AD175: dMOmaïs corr. Par MOD dMOADF : 1.2653 x MOD ADF - 156.12 | AF175: =IF($C$66="tp",AE175,0) -> 0 | AH175: =IF($C$66="tp",AG175,0) -> 0 | AJ175: =IF($C$66="tp",AI175,0) -> 0
B176: ensilé | C176: luz | D176: 0 | E176: 0 | F176: 0 | G176: 0 | H176: 1000 | I176: =IF(E176=0,"", 1.0188*E176 + 49.137) ->  | J176: =IF(E176=0,"", 1.1564*E176 + 31.521) ->  | K176: =IF(E176=0,"", 0.00002*E176^2 - 0.0342*E176 + 25.721) ->  | L176: 0 | M176: 0 | N176: 0 | U176: =IF(E176=0,"",72.3+0.0249*O176-0.000128*S176) ->  | V176: =IF(M176=0,"",65.3+0.0517*O176-0.000088*T176) ->  | W176: =IF(V144=0,"",80.5+0.0133*O176-0.0051*P176-0.000135*S176) ->  | Y176: dMO par CB | AA176: =IF($C$66="LUZ",Z176,0) -> 0 | AB176: luz | AC176: =IF(AND($A$84=2,$J$60<3),100*((-1016.7+($J$115*1.8)+(($J$109*$J$117/1000)*1.106)+(($M$109*$M$115/1000)*(-3.01))+(($M$110*$M$111/1000)*(-0.0013))+10.3)/$J$115),0) -> 0 | AD176: dMOmaïs PE équation ALP12 | AF176: =IF($C$66="LUZ",AE176,0) -> 0 | AH176: =IF($C$66="LUZ",AG176,0) -> 0 | AJ176: =IF($C$66="LUZ",AI176,0) -> 0
B177: ensilé | C177: maïs | D177: 0 | E177: 0 | F177: 0 | G177: 0 | H177: 1000 | I177: =IF(E177=0,"",1.1218*E177 + 6.4254) ->  | J177: =IF(E177=0,"", 1.4325*E177 + 157.81) ->  | K177: =IF(E177=0,"", -0.0003*E177^2 +0.1992*E177 -14.604) ->  | L177: 0 | M177: 0 | N177: 0 | U177: =IF(E177=0,"",79.4+0.0652*O177-0.0591*P177) ->  | V177: =IF(M177=0,"",IF(L177=0,"",75.7+0.0701*O177+0.0156*L177/N177*1000-0.072*Q177)) ->  | W177: =IF(V144=0,"",97.6-0.1711*P177+0.00028*S177) ->  | Y177: dMO par CB | AA177: =IF(Z177="","",IF($C$66="MAÏS",SUM(AC171:AC177),0)) ->  | AB177: maïs | AC177: =IF(AND($A$84=3,$J$60<3),100*((-1016.7+($J$115*1.8)+(($J$109*$J$117/1000)*1.106)+(($M$109*$M$115/1000)*(-3.01))+(($M$110*$M$111/1000)*(-0.0013))-10.3)/$J$115),0) -> 0 | AD177: dMOmaïs pas PE équation ALP12 | AE177: =IF($C$60="ENS",I177,"") ->  | AF177: =IF($C$66="MAÏS",AE177,0) -> 0 | AH177: =IF($C$66="MAÏS",AG177,0) -> 0 | AJ177: =IF($C$66="MAÏS",AI177,0) -> 0
B178: séché | C178: G | D178: 0 | E178: 0 | F178: 0 | G178: 0 | H178: 1000 | I178: =IF(E178=0,"", 0.9804*E178 + 36.115) ->  | J178: =IF(E178=0,"", 1.577*E178 + 73.373) ->  | K178: =IF(E178=0,"", -0.0006*E178^2 + 0.2497*E178 + 60.394) ->  | L178: 0 | M178: 0 | N178: 0 | U178: =IF(E178=0,"",28.5+0.1769*O178+0.173*P178-0.000313*R178-0.000351*S178) ->  | V178: =IF(M178=0,"",20.4+0.1769*O178+0.209*Q178-0.000312*R178-0.000371*T178) ->  | W178: =IF(V144=0,"",116.1-0.000075*R178-0.1976*P178+0.000132*S178) ->  | Y178: dMO par CB | Z178: =IF($C$60="SEC",X178,"") ->  | AA178: =IF($C$66="G",Z178,0) ->  | AB178: G | AE178: =IF($C$60="SEC",I178,"") ->  | AF178: =IF($C$66="G",AE178,0) ->  | AG178: =IF($C$60="SEC",J178,"") ->  | AH178: =IF($C$66="G",AG178,0) ->  | AI178: =IF($C$60="SEC",K178,"") ->  | AJ178: =IF($C$66="G",AI178,0) -> 
B179: séché | C179: GR | D179: 0 | E179: 0 | F179: 0 | G179: 0 | H179: 1000 | I179: =IF(E179=0,"", 1.0684*E179 + 12.246) ->  | J179: =IF(E179=0,"", 1.9027*E179 - 15.55) ->  | K179: =IF(E179=0,"", 0.0023*E179^2 - 1.3048*E179 + 306.95) ->  | L179: 0 | M179: 0 | N179: 0 | U179: =IF(E179=0,"",14.8+0.1292*O179+0.3494*P179-0.000226*R179-0.000713*S179) ->  | V179: =IF(M179=0,"",6.6+0.1292*O179+0.3694*Q179-0.000226*R179-0.00067*T179) ->  | W179: =IF(V144=0,"",75+0.0117*O179+0.0288*P179-0.000175*S179) ->  | Y179: dMO par CB | Z179: =IF($C$60="SEC",X179,"") ->  | AA179: =IF($C$66="GR",Z179,0) -> 0 | AB179: GR | AF179: =IF($C$66="GR",AE179,0) -> 0 | AH179: =IF($C$66="GR",AG179,0) -> 0 | AJ179: =IF($C$66="GR",AI179,0) -> 0
B180: séché | C180: E | D180: 0 | E180: 0 | F180: 0 | G180: 0 | H180: 1000 | I180: =IF(E180=0,"", 0.9673*E180 + 43.126) ->  | J180: =IF(E180=0,"", 1.6443*E180 + 38.422) ->  | K180: =IF(E180=0,"", -0.0004*E180^2 + 0.1396*E180 + 78.539) ->  | L180: 0 | M180: 0 | N180: 0 | U180: =IF(E180=0,"",35.1+0.171*O180+0.1408*P180-0.000302*R180-0.000315*S180) ->  | V180: =IF(M180=0,"",26.9+0.1711*O180+0.1809*Q180-0.000302*R180-0.000343*T180) ->  | W180: =IF(V144=0,"",110.7-0.0476*O180-0.121*P180) ->  | Y180: dMO par CB | AA180: =IF($C$66="E",Z180,0) -> 0 | AB180: E | AF180: =IF($C$66="E",AE180,0) -> 0 | AH180: =IF($C$66="E",AG180,0) -> 0 | AJ180: =IF($C$66="E",AI180,0) -> 0
B181: séché | C181: ER | D181: 0 | E181: 0 | F181: 0 | G181: 0 | H181: 1000 | I181: =IF(E181=0,"", 1.0747*E181 + 16.812) ->  | J181: =IF(E181=0,"", 1.9253*E181 - 31.412) ->  | K181: =IF(E181=0,"", 0.0007*E181^2 - 0.3657*E181 + 166.76) ->  | L181: 0 | M181: 0 | N181: 0 | U181: =IF(E181=0,"",35.8+0.092*O181+0.2539*P181-0.000162*R181-0.000609*S181) ->  | V181: =IF(M181=0,"",27.3+0.0924*O181+0.2846*Q181-0.000162*R181-0.000581*T181) ->  | W181: =IF(V144=0,"",91.6-0.0072*O181-0.0513*P181-0.000055*S181) ->  | Y181: dMO par CB | AA181: =IF($C$66="ER",Z181,0) -> 0 | AB181: ER | AF181: =IF($C$66="ER",AE181,0) -> 0 | AH181: =IF($C$66="ER",AG181,0) -> 0 | AJ181: =IF($C$66="ER",AI181,0) -> 0
B182: séché | C182: L | D182: 0 | E182: 0 | F182: 0 | G182: 0 | H182: 1000 | I182: =IF(E182=0,"", 1.0964*E182 + 20.95) ->  | J182: =IF(E182=0,"", 1.547*E182 + 27.134) ->  | K182: =IF(E182=0,"", 0.001*E182^2 -0.4922*E182 + 153.24) ->  | L182: 0 | M182: 0 | N182: 0 | U182: =IF(E182=0,"",80.4-0.000189*S182) ->  | V182: =IF(M182=0,"",81.6-0.000149*T182) ->  | W182: =IF(V144=0,"",118.8-0.000229*R182-0.1546*P182) ->  | Y182: dMO par CB | AA182: =IF($C$66="L",Z182,0) -> 0 | AB182: L | AF182: =IF($C$66="L",AE182,0) -> 0 | AH182: =IF($C$66="L",AG182,0) -> 0 | AJ182: =IF($C$66="L",AI182,0) -> 0
B183: séché | C183: DF | D183: 0 | E183: 0 | F183: 0 | G183: 0 | H183: 1000 | I183: =IF(E183=0,"", 0.9484*E183 + 54.064) ->  | J183: =IF(E183=0,"", 1.8063*E183 - 23.954) ->  | K183: =IF(E183=0,"", 0.0004*E183^2 - 0.266*E183 + 140.2) ->  | L183: 0 | M183: 0 | N183: 0 | U183: =IF(E183=0,"",52.2+0.0845*O183+0.1341*P183-0.000147*R183-0.000385*S183) ->  | V183: =IF(M183=0,"",41.7+0.0829*O183+0.1981*Q183-0.000143*R183-0.000439*T183) ->  | W183: =IF(V144=0,"",133.5-0.0638*O183-0.3265*P183+0.000369*S183) ->  | Y183: dMO par CB | AA183: =IF($C$66="DF",Z183,0) -> 0 | AB183: DF | AF183: =IF($C$66="DF",AE183,0) -> 0 | AH183: =IF($C$66="DF",AG183,0) -> 0 | AJ183: =IF($C$66="DF",AI183,0) -> 0
B184: séché | C184: DT | D184: 0 | E184: 0 | F184: 0 | G184: 0 | H184: 1000 | I184: =IF(E184=0,"", 1.2405*E184 + 1.1376) ->  | J184: =IF(E184=0,"", 1.8784*E184 - 37.912) ->  | K184: =IF(E184=0,"", 0.0004*E184^2 - 0.2928*E184 + 153.75) ->  | L184: 0 | M184: 0 | N184: 0 | U184: =IF(E184=0,"",37.6+0.194*O184+0.1411*P184-0.000363*R184-0.000425*S184) ->  | V184: =IF(M184=0,"",29.9+0.1947*O184+0.1464*Q184-0.000365*R184-0.000278*T184) ->  | W184: =IF(V144=0,"",133.5-0.0638*O184-0.3265*P184+0.000369*S184) ->  | Y184: dMO par CB | AA184: =IF($C$66="DT",Z184,0) -> 0 | AB184: DT | AF184: =IF($C$66="DT",AE184,0) -> 0 | AH184: =IF($C$66="DT",AG184,0) -> 0 | AJ184: =IF($C$66="DT",AI184,0) -> 0
B185: séché | C185: IND | D185: 0 | E185: 0 | F185: 0 | G185: 0 | H185: 1000 | I185: =IF(E185=0,"", 1.0607*E185 + 25.317) ->  | J185: =IF(E185=0,"", 1.5436*E193 + 68.821) ->  | K185: =IF(E185=0,"", -0.003*E185^2 + 1.4813*E185 - 73.603) ->  | L185: 0 | M185: 0 | N185: 0 | U185: =IF(E185=0,"",50.6+0.136*O185+0.0952*P185-0.000282*R185-0.00028*S185) ->  | V185: =IF(M185=0,"",48.5+0.121*O185+0.1214*Q185-0.000254*R185-0.0003*T185) ->  | W185: =IF(V144=0,"",70.6+0.0815*O185-0.000173*R185-0.000109*S185) ->  | Y185: dMO par CB | AA185: =IF($C$66="INC",Z185,0) -> 0 | AB185: IND | AF185: =IF($C$66="INC",AE185,0) -> 0 | AH185: =IF($C$66="INC",AG185,0) -> 0 | AJ185: =IF($C$66="INC",AI185,0) -> 0
B186: séché | C186: dg | D186: 0 | E186: 0 | F186: 0 | G186: 0 | H186: 1000 | I186: =IF(E186=0,"", 0.9741*E186 + 31.782) ->  | J186: =IF(E186=0,"", 1.358*E186 + 156) ->  | K186: =IF(E186=0,"", 0.0011*E186^2 -0.6995*E186 +195.45) ->  | L186: 0 | M186: 0 | N186: 0 | U186: =IF(E186=0,"",87.6-0.000187*S186) ->  | V186: =IF(M186=0,"",90.1-0.00018*T186) ->  | Y186: dMO par CB | AA186: =IF($C$66="dg",Z186,0) -> 0 | AB186: dg | AF186: =IF($C$66="dg",AE186,0) -> 0 | AH186: =IF($C$66="dg",AG186,0) -> 0 | AJ186: =IF($C$66="dg",AI186,0) -> 0
B187: séché | C187: lp | D187: 0 | E187: 0 | F187: 0 | G187: 0 | H187: 1000 | I187: =IF(E187=0,"", 1.1871*E187 - 25.321) ->  | J187: =IF(E187=0,"", 2.0965*E187 - 52.379) ->  | K187: =IF(E187=0,"", 0.0109*E187^2 - 6.0701*E187 + 988.42) ->  | L187: 0 | M187: 0 | N187: 0 | U187: =IF(E187=0,"",93.5-0.000291*S187) ->  | V187: =IF(M187=0,"",92.3-0.000236*T187) ->  | W187: =IF(V144=0,"",131.1-0.0159*O187-0.3102*P187+0.000369*S187) ->  | Y187: dMO par CB | AA187: =IF($C$66="lp",Z187,0) -> 0 | AB187: lp | AF187: =IF($C$66="lp",AE187,0) -> 0 | AH187: =IF($C$66="lp",AG187,0) -> 0 | AJ187: =IF($C$66="lp",AI187,0) -> 0
B188: séché | C188: li | D188: 0 | E188: 0 | F188: 0 | G188: 0 | H188: 1000 | I188: =IF(E188=0,"", 1.2035*E188 - 20.333) ->  | J188: =IF(E188=0,"", 1.7517*E188 + 34.706) ->  | K188: =IF(E188=0,"", -0.0004*E188^2 + 0.1567*E188 + 154.25) ->  | L188: 0 | M188: 0 | N188: 0 | U188: =IF(E188=0,"",95.5-0.00037*S188) ->  | V188: =IF(M188=0,"",93.9-0.000277*T188) ->  | W188: =IF(V144=0,"",131.1-0.0159*O188-0.3102*P188+0.000369*S188) ->  | Y188: dMO par CB | AA188: =IF($C$66="li",Z188,0) -> 0 | AB188: li | AF188: =IF($C$66="li",AE188,0) -> 0 | AH188: =IF($C$66="li",AG188,0) -> 0 | AJ188: =IF($C$66="li",AI188,0) -> 0
B189: séché | C189: ap | D189: 0 | E189: 0 | F189: 0 | G189: 0 | H189: 1000 | I189: =IF(E189=0,"", 1.2149*E189 - 32.263) ->  | J189: =IF(E189=0,"", 2.1722*E189 - 76.853) ->  | K189: =IF(E189=0,"", 0.0032*E189^2 - 2.2697*E189 + 456.68) ->  | L189: 0 | M189: 0 | N189: 0 | U189: =IF(E189=0,"",98-0.000322*S189) ->  | V189: =IF(M189=0,"",95.8-0.000249*T189) ->  | Y189: dMO par CB | AA189: =IF($C$66="ap",Z189,0) -> 0 | AB189: ap | AF189: =IF($C$66="ap",AE189,0) -> 0 | AH189: =IF($C$66="ap",AG189,0) -> 0 | AJ189: =IF($C$66="ap",AI189,0) -> 0
B190: séché | C190: tr | D190: 0 | E190: 0 | F190: 0 | G190: 0 | H190: 1000 | I190: =IF(E190=0,"", 1.2727*E190 + 3.5455) ->  | J190: =IF(E190=0,"", 1.5621*E190 - 13.457) ->  | K190: =IF(E190=0,"", -0.0069*E190^2 + 2.517*E190 - 160.32) ->  | L190: 0 | M190: 0 | N190: 0 | U190: =IF(E190=0,"",81-0.000216*S190) ->  | V190: =IF(M190=0,"",80.9-0.000129*T190) ->  | Y190: dMO par CB | AA190: =IF($C$66="tr",Z190,0) -> 0 | AB190: tr | AF190: =IF($C$66="tr",AE190,0) -> 0 | AH190: =IF($C$66="tr",AG190,0) -> 0 | AJ190: =IF($C$66="tr",AI190,0) -> 0
B191: séché | C191: tp | D191: 0 | E191: 0 | F191: 0 | G191: 0 | H191: 1000 | I191: =IF(E191=0,"", 1.125*E191 + 17.991) ->  | J191: =IF(E191=0,"", 1.3119*E191 + 52.525) ->  | K191: =IF(E191=0,"", -0.002*E191^2 -0.0002*E191 +89.572) ->  | L191: 0 | M191: 0 | N191: 0 | U191: =IF(E191=0,"",77.6-0.000156*S191) ->  | V191: =IF(M191=0,"",78.3-0.000116*T191) ->  | Y191: dMO par CB | AA191: =IF($C$66="tp",Z191,0) -> 0 | AB191: tp | AF191: =IF($C$66="tp",AE191,0) -> 0 | AH191: =IF($C$66="tp",AG191,0) -> 0 | AJ191: =IF($C$66="tp",AI191,0) -> 0
B192: séché | C192: luz | D192: 0 | E192: 0 | F192: 0 | G192: 0 | H192: 1000 | I192: =IF(E192=0,"", 1.057*E192 + 32.991) ->  | J192: =IF(E192=0,"", 1.2979*E192 + 27.166) ->  | K192: =IF(E192=0,"",0.0001*E192^2 - 0.1174*E192 + 68.617) ->  | L192: 0 | M192: 0 | N192: 0 | U192: =IF(E192=0,"",76.8-0.000131*S192) ->  | V192: =IF(M192=0,"",78.1-0.000107*T192) ->  | W192: =IF(V144=0,"",96.8-0.0218*O192-0.0655*P192-0.000057*S192) ->  | Y192: dMO par CB | AA192: =IF($C$66="LUZ",Z192,0) -> 0 | AB192: luz | AF192: =IF($C$66="LUZ",AE192,0) -> 0 | AH192: =IF($C$66="LUZ",AG192,0) -> 0 | AJ192: =IF($C$66="LUZ",AI192,0) -> 0
B193: séché | C193: maïs | D193: 0 | E193: 0 | F193: 0 | G193: 0 | H193: 1000 | I193: =IF(E193=0,"","pas d'équation") ->  | J193: =IF(E193=0,"","pas d'équation") ->  | K193: =IF(E193=0,"","pas d'équation") ->  | L193: 0 | M193: 0 | X193: 0 | Y193: dMO par CB | Z193: =IF($C$60="SEC",X193,"") ->  | AA193: =IF($C$66="MAÏS",Z193,0) -> 0 | AB193: maïs | AE193: =IF($C$60="SEC",I193,"") ->  | AF193: =IF($C$66="MAÏS",AE193,0) -> 0 | AH193: =IF($C$66="MAÏS",AG193,0) -> 0 | AJ193: =IF($C$66="MAÏS",AI193,0) -> 0
B194: dzu | C194: G | D194: 0 | E194: 0 | F194: 0 | G194: 0 | H194: 1000 | I194: =IF(E194=0,"", 1.0106*E194 + 40.486) ->  | J194: =IF(E194=0,"", 1.7104*E194 + 59.376) ->  | K194: =IF(E194=0,"", -0.0011*E194^2 + 0.5214*E194 +31.798) ->  | L194: 0 | M194: 0 | N194: 0 | O194: =D194/N194*1000 ->  | P194: =E194/N194*1000 ->  | U194: =IF(E194=0,"",65.3+0.0869*O194+0.0692*P194-0.000175*R194-0.000299*S194) ->  | V194: =IF(F194=0,"",57.4+0.1132*O194+0.1171*Q194-0.000271*R194-0.000336*T194) ->  | W194: =IF(V144=0,"",82.5-0.000145*S194) ->  | Y194: dMO par CB | Z194: =IF($C$60="DZU",X194,"") ->  | AA194: =IF($C$66="G",Z194,0) ->  | AB194: G | AE194: =IF($C$60="DZU",I194,"") ->  | AF194: =IF($C$66="G",AE194,0) ->  | AG194: =IF($C$60="DZU",J194,"") ->  | AH194: =IF($C$66="G",AG194,0) ->  | AI194: =IF($C$60="DZU",K194,"") ->  | AJ194: =IF($C$66="G",AI194,0) -> 
B195: dzu | C195: GR | D195: 0 | E195: 0 | F195: 0 | G195: 0 | H195: 1000 | I195: =IF(E195=0,"",1.0697*E195 + 25.013) ->  | J195: =IF(E195=0,"", 1.889*E195 + 11.584) ->  | K195: =IF(E195=0,"", 0.0023*E195^2 - 1.2472*E195 + 298.7) ->  | L195: 0 | M195: 0 | N195: 0 | U195: =IF(E195=0,"",63.8+0.1905*P195-0.000602*S195) ->  | V195: =IF(F195=0,"",41.4+0.3186*Q195-0.000707*T195) ->  | W195: =IF(V144=0,"",82.7-0.000124*S195) ->  | Y195: dMO par CB | Z195: =IF($C$60="DZU",X195,"") ->  | AA195: =IF($C$66="GR",Z195,0) -> 0 | AB195: GR | AE195: =IF($C$60="DZU",I195,"") ->  | AF195: =IF($C$66="GR",AE195,0) -> 0 | AH195: =IF($C$66="GR",AG195,0) -> 0 | AJ195: =IF($C$66="GR",AI195,0) -> 0
B196: dzu | C196: E | D196: 0 | E196: 0 | F196: 0 | G196: 0 | H196: 1000 | I196: =IF(E196=0,"", 1.0213*E196 + 42.825) ->  | J196: =IF(E196=0,"", 1.7604*E196 + 32.268) ->  | K196: =IF(E196=0,"", -0.0008*E196^2 + 0.3532*E196 +57.161) ->  | L196: 0 | M196: 0 | N196: 0 | U196: =IF(E196=0,"",80.8+0.0383*P196-0.000285*S196) ->  | V196: =IF(F196=0,"",66.4+0.1432*Q196-0.000404*T196) ->  | W196: =IF(V144=0,"",84.1-0.00003*R196-0.000145*S196) ->  | Y196: dMO par CB | AA196: =IF($C$66="E",Z196,0) -> 0 | AB196: E | AF196: =IF($C$66="E",AE196,0) -> 0 | AH196: =IF($C$66="E",AG196,0) -> 0 | AJ196: =IF($C$66="E",AI196,0) -> 0
B197: dzu | C197: ER | D197: 0 | E197: 0 | F197: 0 | G197: 0 | H197: 1000 | I197: =IF(E197=0,"", 1.022*E197 + 42.236) ->  | J197: =IF(E197=0,"", 1.8612*E197 + 7.4654) ->  | K197: =IF(E197=0,"", 0.0011*E197^2 - 0.5642*E197 + 193.99) ->  | L197: 0 | M197: 0 | N197: 0 | U197: =IF(E197=0,"",63.2+0.1888*P197-0.00061*S197) ->  | V197: =IF(F197=0,"",42.7+0.309*Q197-0.000697*T197) ->  | W197: =IF(V144=0,"",84.4-0.0029*O197-0.000124*S197) ->  | Y197: dMO par CB | AA197: =IF($C$66="ER",Z197,0) -> 0 | AB197: ER | AF197: =IF($C$66="ER",AE197,0) -> 0 | AH197: =IF($C$66="ER",AG197,0) -> 0 | AJ197: =IF($C$66="ER",AI197,0) -> 0
B198: dzu | C198: L | D198: 0 | E198: 0 | F198: 0 | G198: 0 | H198: 1000 | I198: =IF(E198=0,"", 1.0657*E198 + 41.069) ->  | J198: =IF(E198=0,"", 1.5277*E198 + 51.073) ->  | K198: =IF(E198=0,"", 0.0007*E198^2 -0.3378*E198 + 140.87) ->  | L198: 0 | M198: 0 | N198: 0 | U198: =IF(E198=0,"",74.8+0.0693*P198-0.000363*S198) ->  | V198: =IF(F198=0,"",68.3+0.1159*Q198-0.00036*T198) ->  | W198: =IF(V144=0,"",91.5-0.0336*O198-0.00018*S198) ->  | Y198: dMO par CB | AA198: =IF($C$66="L",Z198,0) -> 0 | AB198: L | AF198: =IF($C$66="L",AE198,0) -> 0 | AH198: =IF($C$66="L",AG198,0) -> 0 | AJ198: =IF($C$66="L",AI198,0) -> 0
B199: dzu | C199: DF | D199: 0 | E199: 0 | F199: 0 | G199: 0 | H199: 1000 | I199: =IF(E199=0,"", 1.1106*E199 + 38.491) ->  | J199: =IF(E199=0,"", 1.9114*E199 - 18.378) ->  | K199: =IF(E199=0,"", 0.0031*E199^2 - 1.2797*E199 + 238.44) ->  | L199: 0 | M199: 0 | N199: 0 | U199: =IF(E199=0,"",70.2+0.1057*P199-0.000414*S199) ->  | V199: =IF(F199=0,"",50.21+0.2478*Q199-0.000582*T199) ->  | W199: =IF(V144=0,"",82-0.000232*S199) ->  | Y199: dMO par CB | AA199: =IF($C$66="DF",Z199,0) -> 0 | AB199: DF | AF199: =IF($C$66="DF",AE199,0) -> 0 | AH199: =IF($C$66="DF",AG199,0) -> 0 | AJ199: =IF($C$66="DF",AI199,0) -> 0
B200: dzu | C200: DT | D200: 0 | E200: 0 | F200: 0 | G200: 0 | H200: 1000 | I200: =IF(E200=0,"", 1.1808*E200 + 28.253) ->  | J200: =IF(E200=0,"", 1.9087*E200 - 18.369) ->  | K200: =IF(E200=0,"", 0.0013*E200^2 - 0.6398*E200 + 190.2) ->  | L200: 0 | M200: 0 | N200: 0 | U200: =IF(E200=0,"",56.6+0.1229*O200+0.1021*P200-0.000237*R200-0.000459*S200) ->  | V200: =IF(F200=0,"",48.4+0.2396*O200+0.0452*Q200-0.000507*R200-0.0002*T200) ->  | W200: =IF(V144=0,"",82-0.000323*S200) ->  | Y200: dMO par CB | AA200: =IF($C$66="DT",Z200,0) -> 0 | AB200: DT | AF200: =IF($C$66="DT",AE200,0) -> 0 | AH200: =IF($C$66="DT",AG200,0) -> 0 | AJ200: =IF($C$66="DT",AI200,0) -> 0
B201: dzu | C201: IND | D201: 0 | E201: 0 | F201: 0 | G201: 0 | H201: 1000 | I201: =IF(E201=0,"", 0.912*E201 + 69.778) ->  | J201: =IF(E201=0,"", 1.9765*E201 - 28.485) ->  | K201: =IF(E201=0,"", -0.0061*E201^2 + 2.7316*E201 - 190.18) ->  | L201: 0 | M201: 0 | N201: 0 | U201: =IF(E201=0,"",48.6+0.1603*O201+0.071*P201-0.000344*R201-0.00025*S201) ->  | V201: =IF(F201=0,"",42.8+0.145*O201+0.1241*Q201-0.00032*R201-0.000305*T201) ->  | W201: =IF(V144=0,"",76.6+0.0165*O201-0.000097*S201) ->  | Y201: dMO par CB | AA201: =IF($C$66="INC",Z201,0) -> 0 | AB201: IND | AF201: =IF($C$66="INC",AE201,0) -> 0 | AH201: =IF($C$66="INC",AG201,0) -> 0 | AJ201: =IF($C$66="INC",AI201,0) -> 0
B202: dzu | C202: dg | D202: 0 | E202: 0 | F202: 0 | G202: 0 | H202: 1000 | I202: =IF(E202=0,"", 0.9485*E202 + 50.603) ->  | J202: =IF(E202=0,"", 1.3544*E202 + 173.43) ->  | K202: =IF(E202=0,"", 0.0003*E202^2 -0.2328*E202+130.78) ->  | L202: 0 | M202: 0 | N202: 0 | U202: =IF(E202=0,"",0) ->  | W202: =IF(V144=0,"",0) ->  | Y202: dMO par CB | AA202: =IF($C$66="dg",Z202,0) -> 0 | AB202: dg | AF202: =IF($C$66="dg",AE202,0) -> 0 | AH202: =IF($C$66="dg",AG202,0) -> 0 | AJ202: =IF($C$66="dg",AI202,0) -> 0
B203: dzu | C203: lp | D203: 0 | E203: 0 | F203: 0 | G203: 0 | H203: 1000 | I203: =IF(E203=0,"", 1.1394*E203 + 0.7383) ->  | J203: =IF(E203=0,"", 2.0725*E203 - 20.701) ->  | K203: =IF(E203=0,"", 0.012*E203^2 - 6.3581*E203 + 991.84) ->  | L203: 0 | M203: 0 | N203: 0 | Y203: dMO par CB | AA203: =IF($C$66="lp",Z203,0) -> 0 | AB203: lp | AC203: =IF($J$60=3,W209,0) -> 0 | AD203: dMOmaïs LV99 | AF203: =IF($C$66="lp",AE203,0) -> 0 | AH203: =IF($C$66="lp",AG203,0) -> 0 | AJ203: =IF($C$66="lp",AI203,0) -> 0
B204: dzu | C204: li | D204: 0 | E204: 0 | F204: 0 | G204: 0 | H204: 1000 | I204: =IF(E204=0,"", 1.1721*E204 + 2.3354) ->  | J204: =IF(E204=0,"", 1.722*E204 + 63.087) ->  | K204: =IF(E204=0,"", -0.0009*E204^2 + 0.3681*E204 + 141.55) ->  | L204: 0 | M204: 0 | N204: 0 | Y204: dMO par CB | AA204: =IF($C$66="li",Z204,0) -> 0 | AB204: li | AC204: =IF(AND($A$84=4,$J$60=1),U208,0) -> 0 | AD204: dMOmaïs LV06 par CB (INRA) | AF204: =IF($C$66="li",AE204,0) -> 0 | AH204: =IF($C$66="li",AG204,0) -> 0 | AJ204: =IF($C$66="li",AI204,0) -> 0
B205: dzu | C205: ap | D205: 0 | E205: 0 | F205: 0 | G205: 0 | H205: 1000 | I205: =IF(E205=0,"", 1.1677*E205 - 4.0533) ->  | J205: =IF(E205=0,"",2.1029*E205 - 30.814) ->  | K205: =IF(E205=0,"", 0.004*E205^2 - 2.6453*E205 + 498.69) ->  | L205: 0 | M205: 0 | N205: 0 | U205: =IF(E205=0,"",0) ->  | Y205: dMO par CB | AA205: =IF($C$66="ap",Z205,0) -> 0 | AB205: ap | AC205: =IF(AND($A$84=4,$J$60=2),U208,0) -> 0 | AD205: dMO maïs LV06 par ADFNDF (INRA) | AF205: =IF($C$66="ap",AE205,0) -> 0 | AH205: =IF($C$66="ap",AG205,0) -> 0 | AJ205: =IF($C$66="ap",AI205,0) -> 0
B206: dzu | C206: tr | D206: 0 | E206: 0 | F206: 0 | G206: 0 | H206: 1000 | I206: =IF(E206=0,"", 1.2857*E206 + 18.429) ->  | J206: =IF(E206=0,"", 1.5594*E206 + 8.3748) ->  | K206: =IF(E206=0,"", -0.0063*E206^2 + 2.1074*E206 - 104.16) ->  | L206: 0 | M206: 0 | N206: 0 | U206: =IF(E206=0,"",0) ->  | Y206: dMO par CB | AA206: =IF($C$66="tr",Z206,0) -> 0 | AB206: tr | AC206: =IF(AND($A$84=1,$J$60=1),100*((((N209*U209/100)*1.2812)-180.35)/N209),0) ->  | AD206: dMOmaïscorr. Par MOD dMOCB: 1.2812 x MOD CB -180.35 | AF206: =IF($C$66="tr",AE206,0) -> 0 | AH206: =IF($C$66="tr",AG206,0) -> 0 | AJ206: =IF($C$66="tr",AI206,0) -> 0
B207: dzu | C207: tp | D207: 0 | E207: 0 | F207: 0 | G207: 0 | H207: 1000 | I207: =IF(E207=0,"", 1.1148*E207 + 35.265) ->  | J207: =IF(E207=0,"", 1.2903*E207 + 74.94) ->  | K207: =IF(E207=0,"", 0.0001*E207^2 -0.0619*E207 +95.389) ->  | L207: 0 | M207: 0 | N207: 0 | U207: =IF(E207=0,"",0) ->  | Y207: dMO par CB | AA207: =IF($C$66="tp",Z207,0) -> 0 | AB207: tp | AC207: =IF(AND($A$84=1,$J$60=2),100*((((N209*V209/100)*1.2653)-156.12)/N209),0) -> 0 | AD207: dMOmaïs corr. Par MOD dMOADF : 1.2653 x MOD ADF - 156.12 | AF207: =IF($C$66="tp",AE207,0) -> 0 | AH207: =IF($C$66="tp",AG207,0) -> 0 | AJ207: =IF($C$66="tp",AI207,0) -> 0
B208: dzu | C208: luz | D208: 0 | E208: 0 | F208: 0 | G208: 0 | H208: 1000 | I208: =IF(E208=0,"", 1.0342*E208 + 51.855) ->  | J208: =IF(E208=0,"",1.2761*E208 + 49.236) ->  | K208: =IF(E208=0,"", 0.00005*E208^2 - 0.0826*E208 + 66.837) ->  | L208: 0 | M208: 0 | N208: 0 | U208: =IF(E208=0,"",78.7-0.000149*S208) ->  | V208: =IF(M208=0,"",80.8-0.000118*T208) ->  | W208: =IF(_Wv43=0,"",115.3-0.0479*O208-0.1409*P208+0.000063*S208) ->  | Y208: dMO par CB | AA208: =IF($C$66="LUZ",Z208,0) -> 0 | AB208: luz | AC208: =IF(AND($A$84=2,$J$60<3),100*((-1016.7+($J$115*1.8)+(($J$109*$J$117/1000)*1.106)+(($M$109*$M$115/1000)*(-3.01))+(($M$110*$M$111/1000)*(-0.0013))+10.3)/$J$115),0) -> 0 | AD208: dMOmaïs PE équation ALP12 | AF208: =IF($C$66="LUZ",AE208,0) -> 0 | AH208: =IF($C$66="LUZ",AG208,0) -> 0 | AJ208: =IF($C$66="LUZ",AI208,0) -> 0
B209: dzu | C209: maïs | D209: 0 | E209: 0 | F209: 0 | G209: 0 | H209: 1000 | I209: =IF(E209=0,"", 1.1186*E209 + 8.0113) ->  | J209: =IF(E209=0,"", 1.4381*E209 +155.24) ->  | K209: =IF(E209=0,"", 0.0028*E209^2 + 1.2371*E209 -74.894) ->  | L209: 0 | M209: 0 | N209: 0 | U209: =IF(E209=0,"",79.4+0.0652*O209-0.0591*P209) ->  | V209: =IF(M209=0,"",IF(L209=0,"",75.7+0.0701*O209+0.0156*L209/N209*1000-0.072*Q209)) ->  | W209: =IF(V144=0,"",69.2+0.164*O209-0.000218*S209) ->  | Y209: dMO par CB | AA209: =IF(Z209="","",IF($C$66="MAÏS",SUM(AC204:AC209),0)) ->  | AB209: maïs | AC209: =IF(AND($A$84=3,$J$60<3),100*((-1016.7+($J$115*1.8)+(($J$109*$J$117/1000)*1.106)+(($M$109*$M$115/1000)*(-3.01))+(($M$110*$M$111/1000)*(-0.0013))-10.3)/$J$115),0) -> 0 | AD209: dMOmaïs pas PE équation ALP12 | AF209: =IF($C$66="MAÏS",AE209,0) -> 0 | AH209: =IF($C$66="MAÏS",AG209,0) -> 0 | AJ209: =IF($C$66="MAÏS",AI209,0) -> 0
I210: pas de régressions ou rég. LV99 | U210: pas de regressions
I211: reg ARY base dig-feva
A213: Calcul de la valeur énergétique des fourrages
A215: EB | B215: =IF(B66=16,B218,B217) -> 0
A217: EB exc.maïs | B217: =0.0188*J115+0.0078*J109 -> 0
A218: EB maïs | B218: =0.0196*(J108-J111) -> 0
... 62 more rows

Sheet Einführung
A1: Berechnungsweise GRÜNES BUCH 2006 | F1: Y.Arrigo Agroscope CH-1725 Posieux, E-mail: yves.arrigo@agroscope.admin.ch
P2: Gräser | Q2: Grünfutter
A3: Anwendung, Bemerkungen und Warnungen
A4: Die Berechnungsweise nimmt Bezug auf die Kapitel 13 und 15 des Grünen Buchs, Ausgabe 2017, auf welche der Zugriff auf der Website www.agroscope frei per Anmeldung erfolgen kann. | P4: G.Ray-grass | Q4: Silagen
P5: Ausgewogene | Q5: Dürrfutter
A6: Die Überschreitungen des Anwendungsbereichs werden angezeigt. | P6: Ausgew.Ray-grass | Q6: künst.getrocknet
A7: Wenn die Werte für NEL, NEV, APDE, APDN nicht erscheinen, liegt dies daran, dass die Daten unvollständig sind oder keine Regressionen für die Schätzung der vOS dieser Futterart existieren. | P7: Leguminosen
P8: Kräuter feinblättrige
P9: Kräuter grobständelige
A10: Die Taste | C10: löscht die Daten in den Zellen, lässt die Funktionen der standardmässigen Vorgabe wieder erscheinen und annulliert alle Optionen, verändert aber die letzte Wahl des Mausklick-Menüs nicht. | P10: Unbekannter Best. | Q10: Schätzung vOS mit RF GB06
P11: Knaulgras | Q11: Schätzung vOS mit ADF GB06
P12: Italienisches Ray-grass
P13: Wiesenfuchsschwanz
A14: Sie verfügen über Mausklick-Menüs für die Wahl der Futterkonserven, | P14: Weissklee | Q14: Blüte
A15: der botanischen Zusammensetzung und des Schätzschlüssels der vOS (über RF oder ADF) | P15: Rotklee | Q15: Milchreife
A16: Diese Auswahl wird in der Druckversion der Ergebnisse markiert. | P16: Luzern | Q16: Beginn Teigreife
P17: Maïs | Q17: Teigreife
A21: Die Daten (RP, RF, RA und falls bekannt ADF, NDF, vOS, vRP) sind in den dafür vorgesehenen grauen und dunkelblauen Zellen einzugeben. | J21: TS | K21: 100
A22: Die standardmässig vorgegebenen Daten werden in den blauen Zellen vorgeschlagen. | J22: RP
A23: Sie können durch bekannte Werte ersetzt werden. Dann ist jedoch eine Initialisierung erforderlich, | J23: RF
A24: um die Ausgangsformel für eine Neuberechnung wieder zu finden. | J24: RA | L24: Bei Silagen und Maïs ist die TS in der Zelle rechts neben dem Rahmen einzutragen.
A25: Generell wird mit g/kg TS gearbeitet und die Resultate werden in Einheiten/kg TS angegeben. | J25: ADF | L25: Sie ist für die Berechnung vergärter Produkte und Stärke erforderlich.
A26: Liegen die Werte in FS vor, ist die effektive TS anzugeben und die Ergebnisse erscheinen in Einheiten/kg. | J26: NDF | N26: % TS Silage und Maïs (Stärkeschätzung)
J27: RL | K27: =IF(K21="","",IF(K22="","",0.35*K21)) -> 
A32: Um die aRP von Grünmais zu definieren, ist ein vorgeschlagener Reifegrad zu wählen.
A34: die Verdaulichkeit der organischen Substanz (vOS) von Mais kann auf zwei Arten geschätzt werden:
A35: 1. über die Korrektur der VOS, die mit der vOS Ausgabe Grünes Buch 2006 gerechnet wurde, oder
A36: 2. über die neue Regressionsgleichung auf der Basis von ADF und NDF (Analyse van Soest). Diese wurde an der ALP-Tagung 2012 erstmals vorgestellt und in der Agrarforschung bzw.
A37: Revue agronomique suisse Sept. 2012 veröffentlicht.
A38: Falls keine ADF-NDF-Analysen vorliegen, dann wählen Sie "Mais GB06 korrigiert".
A39: Sind ADF-NDF vorhanden, dann wählen sie für Mais ganze Pflanze "Mais ALP12 für GP";
A40: Sind ADF-NDF vorhanden bei Teilernten (Hochschnitt, nur Stängel, mit Kolben angereichert) ist die Gleichung "Mais ALP12 nicht GP" zu benutzen.
A44: Die Ergebnisse erscheinen in Rot. Für die vOS wird links ein durch Regression | H44: 71.81975309 | I44: vOS | J44: 76.81975309 | K44: %
A45: erhaltener Richtwert der vOS ohne Korrekturen angegeben.
A47: Bei fehlenden Informationen können Bemerkungen erscheinen.
A48: Sobald der Anwendungsbereich überschritten wird, verlieren die Ergebnisse ihre Gültigkeit.
A59: vOS muss mit Hilfe vom Aufwuchs und Stadium (beide anklicken) korrigiert werden
A60: Für unbekannte Mischungen wurden neue Korrekturen miteinbeziehen
A61: Sie wurden zusammen aus den Korrekturen von den Mischungen und reinen Pflanzen gebildet.
A62: Für alle Raufutter falls Stadium fehlt wird die vOS Korrektur nach Aufwuchs (1. oder folgende)
A63: und Konserve-Type gebildet:
A64: für Grün, Silage und künstlich getrocknete Raufutter gilt die Durchschnitte der Stadien 2 und 3.
A65: für Dürfutter die Durchschnitte der Korreturen der Stadien 3 und 4.
A66: Die abgerundeten Durschnitte werden bei der vOS angewendet.
A69: Korrekturoptionen für Silagen, Heu- und Emd werden vorgeschlagen.
A70: Diese werden nicht bei analysierten Werten verwendet, da die Abzüge bereits inbegriffen sind.
A75: Sobald eine Korrektur aktiviert ist, wird diese bei den Ergebnissen angegeben.
I79: Erster Aufwuchs | L79: Weitere Aufwüchse
A80: Korrekturen für unbestimmte Mischbestände und andere Raufutter | I80: Stadium 2 | J80: Stadium 3 | K80: Stadium 4 | L80: Stadium 2 | M80: Stadium 3 | N80: Stadium 4
I81: 4.83 | J81: 4.66 | K81: 4.38 | L81: -2.75 | M81: -3.77 | N81: -3.06
A82: falls das Stadium fehlt schätz das Programm die
A83: Korrektur nach dem Typ des Futters: | E83: Grünfutter | G83: Durchschnitt der Stadien 2 und 3 | J83: 4.623333333 | M83: -3.193333333
E84: Silagen | G84: Durchschnitt der Stadien 2 und 3 | J84: 4.83 | M84: -2.75
E85: Dürrfutter | G85: Durchschnitt der Stadien 3 und 4 | J85: 4.52 | M85: -3.415
E86: künstl. getrocknet | G86: Durchschnitt der Stadien 2 und 3 | J86: 4.745 | M86: -3.26
A88: Um Tinte zu sparen, werden die Ergebnisse auf neutralem Papier (ohne Hintergrund) gedruckt.
A89: Die in den Ergebnissen angezeigten Werte für ADF, NDF und Zucker sind Richtwerte, die aus groben Schätzungen hervorgehen. Sie basieren auf den Werten, die in den Tabellen angegebenen werden.
A90: Mit ihnen lassen sich keine sicheren Vorhersagen über die Zellwandbestandteile ausgehend von der RF treffen.
P138: 0
P139: 0

Sheet Futterw. Raufutter 2017
B1: Das Grüne Buch 2006 (GB06) | G1: Frei für Referenz | U1: cellules utilisée par la macro pour initialiser la feuille de calcul | W1: Frei für Referenz | AA1: Futter: | AB1: =INDEX(A61:A64,B60) -> Grünfutter | AC1: =IF(G1="","",G1) -> Frei für Referenz | AD1: =INDEX(A67:A82,B66) -> Gräser
A2: RAUFUTTER | B2: Version 6.6.2017 neue Korr.vOS unb. Bestand+ unb.Stadium | E2: DATEN | F2: TS | G2: 100 | H2: % | I2: =IF($B$88=TRUE,A89,"") -> Trockensubstanzgehalt, 100 wenn die Gehalte in der TS angegeben werden | W2: 100 | Z2: DATEN | AA2: =F2 -> TS | AB2: 100 | AC2: % | AD2: Trockensubstanzgehalt, 100 wenn die Gehalte in der TS angegeben werden
F3: RP | H3: =IF($G$2=100,"g/kg TS","g/kg") -> g/kg TS | I3: Rohprotein | AA3: RP | AB3: =IF(G3="","",G3) ->  | AC3: g/kg TS | AD3: Rohprotein
F4: RF | H4: =IF($G$2=100,"g/kg TS","g/kg") -> g/kg TS | I4: Rohfaser | AA4: RF | AC4: g/kg TS | AD4: Rohfaser
F5: RA | H5: =IF($G$2=100,"g/kg TS","g/kg") -> g/kg TS | I5: Rohasche | AA5: RA | AC5: g/kg TS | AD5: Rohasche
F6: ADF | H6: =IF($G$2=100,"g/kg TS *","g/kg *") -> g/kg TS * | I6: Lignozellulose (ADF) | AA6: ADF | AC6: g/kg TS * | AD6: Lignozellulose (ADF)
F7: NDF | H7: =IF($G$2=100,"g/kg TS *","g/kg *") -> g/kg TS * | I7: Zellwände (NDF) | AA7: NDF | AC7: g/kg TS * | AD7: Zellwände (NDF)
A8: BESTANDESTYP | F8: RL | G8: =IF(G2="","",IF(G3="","",0.35*G2)) ->  | H8: =IF($G$2=100,"g/kg TS *","g/kg *") -> g/kg TS * | I8: Rohfett (Rohlipide) | W8: =IF(W2="","",IF(W3="","",0.35*W2)) ->  | AA8: RL | AC8: g/kg TS * | AD8: Rohfett (Rohlipide)
F9: FP | G9: =IF(G2="","",IF(G3="","",IF(B60<>2,0,A255*F255))) ->  | H9: =IF($G$2=100,"g/kg TS *","g/kg *") -> g/kg TS * | I9: Fermentationsprodukte der Silagen % TS angeben > > > | M9: 35 | N9: % TS Silage und Maïs (Stärkeschätzung) | W9: =IF(W2="","",IF(W3="","",IF(R60<>2,0,Q255*V255))) ->  | AA9: FP | AC9: =H9 -> g/kg TS * | AD9: =CONCATENATE("Fermentationsprodukte der Silagen ",IF(M9="","",M9)," % TS ") -> Fermentationsprodukte der Silagen 35 % TS
F10: aRP | G10: =IF(G2="","",IF(G3="","",IF(G5="","",A247))) ->  | H10: % * | I10: Abbaubarkeit des Rohproteins | W10: =IF(W2="","",IF(W3="","",IF(W5="","",Q247))) ->  | AA10: aRP | AC10: =H10 -> % * | AD10: =I10 -> Abbaubarkeit des Rohproteins
F11: vASF | G11: =IF(G2="","",IF(G3="","",IF(G5="","",A259))) ->  | H11: % * | I11: Verdaulichkeit der aus dem Futter stammenden Aminosäuren | W11: =IF(W2="","",IF(W3="","",IF(W5="","",Q259))) ->  | AA11: vASF | AC11: =H11 -> % * | AD11: =I11 -> Verdaulichkeit der aus dem Futter stammenden Aminosäuren
F13: vOS | G13: =IF(G2="","",IF(G5="","",IF(AA145=0,"",AA145))) ->  | H13: % * | I13: =IF($B$88=TRUE,A99,"") -> Verdaulichkeit der Organischen Substanz (Daten in vivo oder Tabelle GB06, Korrekturen Aufwuchs und Stadium ausschalten!) | W13: =IF(W2="","",IF(W5="","",IF(AQ145=0,"",AQ145))) ->  | AA13: =F13 -> vOS | AB13: =IF(G13="","",G13) ->  | AC13: =H13 -> % * | AD13: =I13 -> Verdaulichkeit der Organischen Substanz (Daten in vivo oder Tabelle GB06, Korrekturen Aufwuchs und Stadium ausschalten!)
F14: vRP | H14: %* | I14: =IF($B$88=TRUE,A100,"") -> Verdaulichkeit des Rohprotein (Daten in vivo oder Tabelle GB06) | AA14: =F14 -> vRP | AB14: =IF(G14="","",G14) ->  | AC14: =H14 -> %* | AD14: =I14 -> Verdaulichkeit des Rohprotein (Daten in vivo oder Tabelle GB06)
B16: =INDEX(C67:C82,B66) -> >70% Gräser | F16: Stärke | G16: =IF(B66=16,IF(G2="","",IF(G3="","",IF(M9<20,0,IF(M9<=30,22.571*M9-382.62,315)))),"") ->  | H16: =IF($G$2=100,"g/kg TS *","g/kg *") -> g/kg TS * | I16: =IF($B$88=TRUE,A120,"") -> * Standardeinstellung, andere Daten können engefügt werden, dann braucht es ein Zurücksetzen für weitere Berchnungen | W16: =IF(R66=16,IF(W2="","",IF(W3="","",IF(AC9<20,0,IF(AC9<=30,22.571*AC9-382.62,315)))),"") ->  | X16: =INDEX(X18:X21,B60) -> Grünfutter | Y16: =C66 -> G | AA16: =IF(AB18="","",IF(P121=1,"vOS nicht korrigiert !",IF(P122=1,CONCATENATE("vOS korrigiert nach Aufwuchs ",P121-1," und Art des Futters, da Stadium fehlt"),CONCATENATE("vOS korrigiert nach Aufwuchs: ",P121-1," und Stadium ",P122)))) ->  | AD16: =IF(AND(B60=3,B66=16),"keine Gleichung für diese Raufuttertyp",CONCATENATE(K60," für Raufutter: ",X16,"; Typ: ",P67)) -> Schätzung vOS mit RF GB06 für Raufutter: Grünfutter; Typ: G
AA17: résultats
A18: OPTIONEN GB | E18: =IF(G18="","",IF(AA145=0,"",AA145)) ->  | F18: vOS | G18: =IF(G85=1,"",IF(G2="","",IF(G3="","",IF(AD145=0,"",IF(AD145="","",AD145))))) ->  | H18: % | I18: =IF($B$88=TRUE,A101,"") -> Verdaulichkeit der OS ( gegeben), benutzt für die Berechnung | W18: =IF(W85=1,"",IF(W2="","",IF(W3="","",IF(AT145=0,"",IF(AT145="","",AT145))))) ->  | X18: Grünfutter | Z18: BERECHNETE RESULTATE | AA18: =F18 -> vOS | AB18: =IF(G18="","",G18) ->  | AC18: =H18 -> % | AD18: Verdaulichkeit der OS ( gegeben), benutzt für die Berechnung
E19: ERGEBNISSE | F19: vRP | G19: =IF(G18="","",IF(G227=TRUE,"",IF(G2="","",F227))) ->  | H19: % | I19: Verdaulichkeit des RP (aus Gleichung ), benutzt für die Berechnung | W19: =IF(W18="","",IF(W227=TRUE,"",IF(W2="","",V227))) ->  | X19: Silagen | AA19: vRP | AC19: % | AD19: Verdaulichkeit des RP (aus Gleichung ), benutzt für die Berechnung
F20: NEL | G20: =IF(G18="","",IF(G239=TRUE,"",IF(G2="","",C239+C239*J140))) ->  | H20: =IF($G$2=100,"MJ/kg MS","MJ/kg") -> MJ/kg MS | I20: Nettoenergie Milch | W20: =IF(W18="","",IF(W239=TRUE,"",IF(W2="","",S239+S239*Z140))) ->  | X20: Dürrfutter | AA20: NEL | AC20: MJ/kg MS | AD20: Nettoenergie Milch
F21: NEV | G21: =IF(G18="","",IF(G240=TRUE,"",IF(G2="","",C240+C240*K140))) ->  | H21: =IF($G$2=100,"MJ/kg MS","MJ/kg") -> MJ/kg MS | I21: Nettoenergie Mast | W21: =IF(W18="","",IF(W240=TRUE,"",IF(W2="","",S240+S240*AA140))) ->  | X21: künstlich getrocknet | AA21: NEV | AC21: MJ/kg MS | AD21: Nettoenergie Mast
F22: APDE | G22: =IF(G18="","",IF(G267=TRUE,"",IF(G2="","",C267+C267*L140))) ->  | H22: =IF($G$2=100,"g/kg TS","g/kg") -> g/kg TS | I22: Absorbierbares Protein im Darm, das auf Grund der verfügbaren Energiemenge aufgebaut werden kann (aRP/vASF GB06) | W22: =IF(W18="","",IF(W267=TRUE,"",IF(W2="","",S267+S267*AB140))) ->  | AA22: APDE | AC22: g/kg TS | AD22: Absorbierbares Protein im Darm, das auf Grund der verfügbaren Energiemenge aufgebaut werden kann (aRP/vASF GB06)
B23: =IF(G2="","",IF(B66=16," Stadium MAIS und TS","")) ->  | F23: APDN | G23: =IF(G18="","",IF(G268=TRUE,"",IF(G2="","",IF(C268=0,"",C268+C268*M140)))) ->  | H23: g/kg TS | I23: Absorbierbares Protein im Darm, das auf Grund des abgebauten Rohproteins aufgebaut werden kann (aRP/vASF GB06) | W23: =IF(W18="","",IF(W268=TRUE,"",IF(W2="","",IF(S268=0,"",S268+S268*AC140)))) ->  | AA23: APDN | AC23: g/kg TS | AD23: Absorbierbares Protein im Darm, das auf Grund des abgebauten Rohproteins aufgebaut werden kann (aRP/vASF GB06)
A24: BEMERKUNGEN | B24: =H65 ->  | C24: =IF(B66=16,IF(G84=1," fehlt RF, ADF oder NDF",""),"") ->  | F24: PME | G24: =IF(G18="","",IF(G2="","",IF(G271=TRUE,"",C271))) ->  | H24: g/kg TS | I24: =IF($B$88=TRUE,A108,"") -> Menge Mikroorganismen-Protein, das aus der fermentierbaren Energie aufgebaut werden kann | W24: =IF(W18="","",IF(W2="","",IF(W271=TRUE,"",S271))) ->  | AA24: =F26 -> APDMN | AB24: =IF(G26="","",G26) ->  | AC24: =H26 -> g/kg TS | AD24: =I26 -> Absorbierbares Protein im Darm, das aus dem abbaubaren Rohprotein aufgebaut werden kann
B25: =IF(G2="","",IF(B60=2,IF(M9="","TS DER SILAGE EINGEBEN !",""),"")) ->  | F25: PMN | G25: =IF(G18="","",IF(G270=TRUE,"",IF(G2="","",IF(C270=0,"",C270)))) ->  | H25: g/kg TS | I25: =IF($B$88=TRUE,A109,"") -> Menge Mikroorganismen-Protein, das aus dem abbaubaren Rohprotein aufgebaut werden kann | W25: =IF(W18="","",IF(W270=TRUE,"",IF(W2="","",IF(S270=0,"",S270)))) ->  | AA25: =F24 -> PME | AB25: =IF(G24="","",G24) ->  | AC25: =H24 -> g/kg TS | AD25: =I24 -> Menge Mikroorganismen-Protein, das aus der fermentierbaren Energie aufgebaut werden kann
B26: =IFERROR(IF(G37="","",IF(G2="","",IF(G3="","",IF(G37>30,"PROTEINUEBERSCHUSS !","")))),"") ->  | F26: APDMN | G26: =IF(G18="","",IF(G2="","",IF(G269=TRUE,"",IF(C269=0,"",C269)))) ->  | H26: g/kg TS | I26: =IF($B$88=TRUE,A107,"") -> Absorbierbares Protein im Darm, das aus dem abbaubaren Rohprotein aufgebaut werden kann | W26: =IF(W18="","",IF(W2="","",IF(W269=TRUE,"",IF(S269=0,"",S269)))) ->  | AA26: =F25 -> PMN | AB26: =IF(G25="","",G25) ->  | AC26: =H25 -> g/kg TS | AD26: =I25 -> Menge Mikroorganismen-Protein, das aus dem abbaubaren Rohprotein aufgebaut werden kann
B27: =IF(G2="","",IF(G3="","",O109)) ->  | F27: APDF | G27: =IF(G18="","",IF(G2="","",IF(G272=TRUE,"",IF(C272=0,"",C272)))) ->  | H27: g/kg TS | I27: =IF($B$88=TRUE,A110,"") -> Absorbierbares Protein im Darm aus dem Futter | W27: =IF(W18="","",IF(W2="","",IF(W272=TRUE,"",IF(S272=0,"",S272)))) ->  | AA27: =F27 -> APDF | AB27: =IF(G27="","",G27) ->  | AC27: =H27 -> g/kg TS | AD27: Absorbierbares Protein im Darm aus dem Futter
B28: =IF(G2="","",IF(G4="","",O110)) ->  | F28: APDM | G28: =IF(G18="","",IF(G266=TRUE,"",IF(G2="","",0.093*(C266*G2/100)))) ->  | H28: g/kg TS | I28: Mikrobielles absorbierbares Protein im Darm (FOS x 0.093) | W28: =IF(W18="","",IF(W266=TRUE,"",IF(W2="","",0.093*(S266*W2/100)))) ->  | AA28: APDM | AC28: g/kg TS | AD28: Mikrobielles absorbierbares Protein im Darm (FOS x 0.093)
B29: =IF(G2="","",IF(G6="","",O112)) ->  | F29: UE | G29: =IF(G18="","",IF(G220=TRUE,"",IF(G2="","",B220))) ->  | H29: =IF($G$2=100,"MJ/kg MS","g/kg") -> MJ/kg MS | I29: Umsetzbare Energie | W29: =IF(W18="","",IF(W220=TRUE,"",IF(W2="","",R220))) ->  | AA29: UE | AC29: MJ/kg MS | AD29: Umsetzbare Energie
B30: =IFERROR(IF(G18="","",IF(AD145="","",IF(AD145=0,"",O114))),"") ->  | F30: ADF | G30: =IF(G2="","",IF(G6="",IF(AF145=0,"",AF145),G6)) ->  | H30: =IF($G$2=100,"g/kg TS","g/kg") -> g/kg TS | I30: Orientierungswert für Lignozellulose (ADF) aus Gleichung Basis RF und botanische Zus. | W30: =IF(W2="","",IF(W6="",IF(AV145=0,"",AV145),W6)) ->  | AA30: ADF | AC30: g/kg TS | AD30: Orientierungswert für Lignozellulose (ADF) aus Gleichung Basis RF und botanische Zus.
B31: =S63 ->  | F31: NDF | G31: =IF(G2="","",IF(G7="",IF(AH145=0,"",AH145),G7)) ->  | H31: =IF($G$2=100,"g/kg TS","g/kg") -> g/kg TS | I31: Orientierungswert für Zellwände (NDF) aus Gleichung Basis RF und botanische Zus. | W31: =IF(W2="","",IF(W7="",IF(AX145=0,"",AX145),W7)) ->  | AA31: NDF | AC31: g/kg TS | AD31: Orientierungswert für Zellwände (NDF) aus Gleichung Basis RF und botanische Zus.
B32: =S62 ->  | F32: ZUCKER | G32: =IF(G2="","",IF(G4="","",IF(AJ145=0,"",AJ145))) ->  | H32: =IF($G$2=100,"g/kg TS","g/kg") -> g/kg TS | I32: Orientierungswert für Zucker aus Gleichung Basis RF und botanische Zus. | W32: =IF(W2="","",IF(W4="","",IF(AZ145=0,"",AZ145))) ->  | AA32: ZUCKER | AC32: g/kg TS | AD32: Orientierungswert für Zucker aus Gleichung Basis RF und botanische Zus.
F34: MPP NEL | G34: =IF(G2="","",IF(G20="","",G20/3.14)) ->  | H34: kg Milch | I34: =IF($B$88=TRUE,A116,"") -> Milchproduktionspotenzial nach NEL pro kg TS (NEL/3.14) | W34: =IF(W2="","",IF(W20="","",W20/3.14)) ->  | AA34: =F34 -> MPP NEL | AB34: =IF(G34="","",G34) ->  | AC34: =H34 -> kg Milch | AD34: Milchproduktionspotenzial nach NEL pro kg TS (NEL/3.14)
F35: MPP APDE | G35: =IF(G2="","",IF(G22="","",G22/50)) ->  | H35: kg Milch | I35: =IF($B$88=TRUE,A117,"") -> Milchproduktionspotenzial nach APDE pro kg TS (APDE/50) | W35: =IF(W2="","",IF(W22="","",W22/50)) ->  | AA35: =F35 -> MPP APDE | AB35: =G35 ->  | AC35: kg Milch | AD35: Milchproduktionspotenzial nach APDE pro kg TS (APDE/50)
F36: MPP APDN | G36: =IF(G2="","",IF(G23="","",G23/50)) ->  | H36: kg Milch | I36: =IF($B$88=TRUE,A118,"") -> Milchproduktionspotenzial nach APDN pro kg TS (APDN/50) | W36: =IF(W2="","",IF(W23="","",W23/50)) ->  | AA36: =F36 -> MPP APDN | AB36: =G36 ->  | AC36: kg Milch | AD36: Milchproduktionspotenzial nach APDN pro kg TS (APDN/50)
B37: yves.arrigo@agroscope.admin.ch | F37: RP/NEL | G37: =IF(G2="","",IF(G3="","",IF(G20="","",G3/G20))) ->  | H37: g/MJ | I37: =IF($B$88=TRUE,A119,"") -> Protein/Energie-Verhältnis (20g Laktation, 18g Galt & Ruhezeit, 19g Mast) | W37: =IF(W2="","",IF(W3="","",IF(W20="","",W3/W20))) ->  | AA37: =F37 -> RP/NEL | AB37: =G37 ->  | AC37: g/MJ | AD37: Protein/Energie-Verhältnis (20g Laktation, 18g Galt & Ruhezeit, 19g Mast)
AD39: =I39 -> 0
E41: KORREKTUREN
F42: Korrekturen der vOS nach Aufwuchs UND Entwicklungsstadium | L42: =IF(B66=16,"keine Korrekture vOS",INDEX(A67:A82,B66)) -> Gräser | N42: =IF(OR(G3="",G5=""),"",CONCATENATE("Korrekture vOS : ",IF(Y120=0,0,ROUND(Y120-AC145,1)))) -> 
P43: =IF($P$121=1,"",IF($P$122<>1,"","Wenn das Stadium fehlt, wird die vOS mit dem Aufwuchs und der Art des Futters korrigiert")) -> 
F44: =IF(P122>1,IF(P121=1,"Aufwuchs wählen",""),"") ->  | G44: Aufwuchs | P44: =IF($P$121=1,"",IF($P$122<>1,"","Gras = Durchschnitt der Korrekturen für Stadium 2 und 3")) ->  | AD44: Version 2017.06.06 mit neuen Korrekturen der vOS nach Aufwuchs und Entwicklungsstadium, Autor aryv
P45: =IF($P$121=1,"",IF($P$122<>1,"","Silage = Durchschnitt der Korrekturen für Stadium 2 und 3")) -> 
F46: =IF(P121>1,IF(P122=1,"Stadium wählen",""),"") ->  | G46: Stadium | P46: =IF($P$121=1,"",IF($P$122<>1,"","Dürrfutter = Durchschnitt der Korrekturen für Stadium 3 und 4")) -> 
F47: =IF(P121=1,"",IF(P122<>1,"","sonst nach Aufwuchs+Art des Futters")) ->  | P47: =IF($P$121=1,"",IF($P$122<>1,"","Künstl. getrocknet = Durchschnitt der Korrekturen für Stadium 2 und 3")) -> 
H50: Korrekturen für Silagen | L50: Korrekturen für Dürrfutter (Heu/Emd)
P51: Korrekturen bei konserviertem Futter nur für
G52: Gärqualität | K52: Trocknungsart | P52: Tabellenwerte verwenden.
P53: Diese Abzüge sind bei den analysierten Werten inbegriffen !
G54: Nachgärungen | K54: Witterung
G56: Korr. autom. TS 20-50 | K56: Gärung
A60: TYPE | B60: 1 | C60: =INDEX(B61:B64,B60) -> VER | D60: =INDEX(C61:C64,B60) -> en vert | E60: EDITION | F60: 1 | H60: CHOIX DMO | I60: Schätzung vOS mit RF GB06 | J60: 1 | K60: =INDEX(I60:I62,J60) -> Schätzung vOS mit RF GB06 | M60: maturité Maïs v. | P60: corrections ens. | R60: =SUM(G124,G127,G130) -> 3 | S60: =IF(R60>3,"Korrekturen Silagen eingeschaltet","") -> 
A61: Grünfutter | B61: VER | C61: en vert | E61: aRP/vASF GB06 | I61: Schätzung vOS mit ADF GB06 | P61: corrections sec | R61: =SUM(G134,G135,G137) -> 3 | S61: =IF(R61>3,"Korrekturen Dürrfutter eingeschaltet","") -> 
A62: Silagen | B62: ENS | C62: ensilé | P62: corrections cycle-stade | R62: =SUM(P121:P122) -> 2 | S62: =IF(R62>3,"vOS korrigiert nach Aufw.+Stadium","") -> 
A63: Dürrfutter | B63: SEC | C63: séché | E63: différencie calcul deMA, dAAA, PF | P63: pour remarques | S63: =IF(B60=2,S60,IF(B60=3,S61,"")) -> 
A64: künstl. getrocknet | B64: DZU | C64: déshydraté | H64: formule choix de l'option si dMO 06….. Prendre deMA/dAAA LV06
H65: =IF(J60<>3,IF(F60=1,"","PRENEZ OPTION deMA/dAAA LV06"),IF(F60=1,"PRENEZ OPTION deMA/dAAA LV99","")) -> 
A66: BOTA | B66: 1 | C66: =INDEX(B67:B82,B66) -> G | G66: Typolgie
A67: Gräser | B67: G | C67: >70% Gräser | G67: 10% englisches Raigras/ 50% Knaulgras/ 20% Wiesenfuchsschwanz/10% Weissklee/10% Löwenzahn | O67: G | P67: =INDEX(O67:O82,B66) -> G | Q67: Grünfutter | R67: =INDEX(Q67:Q70,B60) -> Grünfutter
A68: Gräser (Raigras) | B68: GR | C68: >70% Gräser mit >50% Raigras | G68: 50% englisches Raigras/ 10% italienisches Raigras/ 20% Knaulgrass/ 10% Weissklee/10% Löwenzahn | O68: GR | Q68: Silagen
A69: Ausgewogen | B69: E | C69: 50-70% Gräser | G69: 10% englisches Raigras/ 35% Knaulgras/ 15% Wiesenfuchsschwanz/ 15% Weissklee/ 5% Rotklee/ 20% Löwenzahn | O69: A | Q69: Dürrfutter
A70: Ausgewogen (Raigras) | B70: ER | C70: 50-70% Gräser mit >50% Raigras | G70: 35% englisches Raigras/ 10% italienisches Raigras/ 15% Knaulgras/ 15% Weissklee/ 5%Rotklee/ 20% Löwenzahn | O70: AR | Q70: künstl. getrock.
A71: Leguminosen | B71: L | C71: >50% Leguminosen | G71: 15% englisches Raigras/ 10% Knaulgras/ 50% Weissklee/ 15% Rotklee/ 10% Löwenzahn | O71: L
A72: Kräuter feinblättrige | B72: DF | C72: >50% feinblättrige Kräuter | G72: 15% englisches Raigras/ 10% Knaulgras/ 10% Weissklee/ 65% Löwenzahn | O72: KF
A73: Kräuter grobstängelige | B73: DT | C73: >50% grobstängelige Kräuter | G73: 15% Knaulgras/ 10% Wiesenfuchsschwanz/ 10% Weissklee/ 5% Löwenzahn/ 30% Wiesenkerbel/ 30% Bärenklau | O73: KG
A74: Unbekannter Bestand | B74: INC | C74: nicht bestimmt | G74: Unbejkannter Best. | O74: unbekannt
A75: Knaulgras | B75: dg | C75: Reinbestande | G75: 100% Knaulgras | O75: Knaulgrass
A76: Englisches Raigras | B76: lp | C76: Reinbestande | G76: 100% Englisches Raigras | O76: engl. Raigras
A77: Italienisches Raigras | B77: li | C77: Reinbestande | G77: 100% Italienisches Raigras | O77: ital. Raigras
A78: Wiesenfuchsschwanz | B78: ap | C78: Reinbestande | G78: 100% Wiesenfuchsschwanz | O78: Wiesenfuchsschw.
A79: Weissklee | B79: tr | C79: Reinbestande | G79: 100% Weissklee | O79: Weissklee
A80: Rotklee | B80: tp | C80: Reinbestande | G80: 100% Rotklee | O80: Rotklee
A81: Luzern | B81: LUZ | C81: Reinbestande | G81: 100% Luzern | O81: Luzerne
A82: Mais | B82: MAIS | C82: Reinbestande | G82: 100% Maïs | O82: MAÏS
A83: MAÏS option équations | C83: Mais GB06 korrigiert | E83: dMO retenue | F83: =AA145 -> 0 | G83: validation maïs ALP12 besoin CB, ADF, NDF
A84: 1 | C84: Mais ALP12 für GP | G84: =IF(A84>1,IF(OR(G6="",G7="",G4=""),1,2),"") ->  | H84: 2,3 ALP12
A85: =IF(B66<>16,2,A84) -> 2 | C85: Mais ALP12 nicht GP | G85: =IF(G84=1,IF(AND(A84>1),1,0)) -> FALSE | H85: si 1 pas de résultats car manque ADF,NDF
A88: DEFINITONStion | B88: TRUE
A89: Trockensubstanzgehalt, 100 wenn die Gehalte in der TS angegeben werden
A90: Rohprotein
A91: Rohfaser
A92: Rohasche
A93: Lignozellulose (ADF)
A94: Zellwände (NDF)
A95: Rohfett (Rohlipide)
A96: Fermentationsprodukte der Silagen % TS angeben > > >
A97: Abbaubarkeit des Rohproteins
A98: Verdaulichkeit der aus dem Futter stammenden Aminosäuren
A99: Verdaulichkeit der Organischen Substanz (Daten in vivo oder Tabelle GB06, Korrekturen Aufwuchs und Stadium ausschalten!)
A100: Verdaulichkeit des Rohprotein (Daten in vivo oder Tabelle GB06)
A101: =CONCATENATE("Verdaulichkeit der OS (",IF(AA145=AC145,K60," gegeben"), "), benutzt für die Berechnung") -> Verdaulichkeit der OS ( gegeben), benutzt für die Berechnung
A102: =CONCATENATE("Verdaulichkeit des RP (",IF(G14="","aus Gleichung","gegeben")," ), benutzt für die Berechnung") -> Verdaulichkeit des RP (aus Gleichung ), benutzt für die Berechnung
A103: Nettoenergie Milch
A104: Nettoenergie Mast
A105: =CONCATENATE("Absorbierbares Protein im Darm, das auf Grund der verfügbaren Energiemenge aufgebaut werden kann ","(",INDEX(E61:E62,F60),")") -> Absorbierbares Protein im Darm, das auf Grund der verfügbaren Energiemenge aufgebaut werden kann (aRP/vASF GB06)
A106: =CONCATENATE("Absorbierbares Protein im Darm, das auf Grund des abgebauten Rohproteins aufgebaut werden kann ","(",INDEX(E61:E62,F60),")") -> Absorbierbares Protein im Darm, das auf Grund des abgebauten Rohproteins aufgebaut werden kann (aRP/vASF GB06)
A107: Absorbierbares Protein im Darm, das aus dem abbaubaren Rohprotein aufgebaut werden kann | I107: Données exprimée dans la MS | L107: Données exprimée dans la MO | O107: HORS CHAMP D'APPLICATION ! | T107: champ mélange | V107: champ cult. pure
A108: Menge Mikroorganismen-Protein, das aus der fermentierbaren Energie aufgebaut werden kann | I108: MS | J108: =G2*10 -> 1000 | K108: g
A109: Menge Mikroorganismen-Protein, das aus dem abbaubaren Rohprotein aufgebaut werden kann | I109: MA | J109: =G3/$J$108*1000 -> 0 | K109: g/kg MS | L109: MAmo | M109: =J109/J115*1000 -> 0 | N109: =IF(M109=0,0,1) -> 0 | O109: =IF($B$66<9,IF(J109<50,Q109,IF(J109>280,Q109,"")),IF(J109<50,Q109,IF(J109>320,Q109,""))) -> RP aus dem Anwendungsbereich | Q109: RP aus dem Anwendungsbereich | T109: 50 - 280 | U109: MA | V109: 50 - 320
A110: Absorbierbares Protein im Darm aus dem Futter | I110: CB | J110: =G4/$J$108*1000 -> 0 | K110: g/kg MS | L110: CBmo | M110: =J110/J115*1000 -> 0 | N110: =IF(M110=0,0,1) -> 0 | O110: =IF($B$66<9,IF(J110<130,Q110,IF(J110>400,Q110,"")),IF(J110<130,Q110,IF(J110>410,Q110,""))) -> RF aus dem Anwendungsbereich | Q110: RF aus dem Anwendungsbereich | T110: 130 - 400 | U110: CB | V110: 130 - 410
A111: Mikrobielles absorbierbares Protein im Darm (FOS x 0.093) | I111: CE | J111: =G5/$J$108*1000 -> 0 | K111: g/kg MS | L111: NDFmo | M111: =J113/J115*1000 -> 0
A112: Umsetzbare Energie | I112: ADF | J112: =G6/$J$108*1000 -> 0 | K112: g/kg MS | L112: ENAmo | M112: =J117/J115*1000 -> 1000 | O112: =IF($B$66<9,IF(J112<170,Q112,IF(J112>420,Q112,"")),IF(J112<150,Q112,IF(J112>450,Q112,""))) -> ADF aus dem Anwendungsbereich | Q112: ADF aus dem Anwendungsbereich | T112: 170 - 420 | U112: ADF | V112: 150 - 450
A113: =IF(G6="","Orientierungswert für Lignozellulose (ADF) aus Gleichung Basis RF und botanische Zus.","Lignozellulose (ADF) gegeben") -> Orientierungswert für Lignozellulose (ADF) aus Gleichung Basis RF und botanische Zus. | I113: NDF | J113: =G7/$J$108*1000 -> 0 | K113: g/kg MS | L113: MAmo2 | M113: =M109^2 -> 0
A114: =IF(G7="","Orientierungswert für Zellwände (NDF) aus Gleichung Basis RF und botanische Zus.","Zellwände (NDF) gegeben") -> Orientierungswert für Zellwände (NDF) aus Gleichung Basis RF und botanische Zus. | I114: MG | J114: =IF(G8="",0,G8/$J$108*1000) -> 0 | K114: g/kg MS | L114: CBmo2 | M114: =M110^2 -> 0 | O114: =IF($B$66<9,IF(AD145<55,Q114,IF(AD145>84,Q114,"")),IF(AD145<45,Q114,IF(AD145>87,Q114,""))) ->  | Q114: vOS aus dem Anwendungsbereich | T114: 55 - 84 | U114: dMO | V114: 45 - 87 | AT114: TYPE | AU114: =INDEX(AU116:AU119,AU115) -> VER | AV114: botanique: | AW114: =C66 -> G
A115: Orientierungswert für Zucker aus Gleichung Basis RF und botanische Zus. | I115: MO | J115: =1000-J111 -> 1000 | K115: g/kg MS | L115: HEMmo | M115: =J116/J115*1000 -> 0 | AU115: =B60 -> 1 | AW115: =B66 -> 1
A116: Milchproduktionspotenzial nach NEL pro kg TS (NEL/3.14) | I116: HEM | J116: =J113-J112 -> 0 | K116: g/kg MS | AT116: en vert | AU116: VER
A117: Milchproduktionspotenzial nach APDE pro kg TS (APDE/50) | I117: ENA | J117: =J115-J109-J110-J114 -> 1000 | K117: g/kg MS | AT117: ensilage | AU117: ENS
A118: Milchproduktionspotenzial nach APDN pro kg TS (APDN/50) | AT118: sec | AU118: SEC
A119: Protein/Energie-Verhältnis (20g Laktation, 18g Galt & Ruhezeit, 19g Mast) | AT119: déshydraté artificiellement | AU119: DZU
A120: * Standardeinstellung, andere Daten können engefügt werden, dann braucht es ein Zurücksetzen für weitere Berchnungen | O120: corrections 2017 dMo selon cycles et stades | X120: dMO corrigée | Y120: =SUM(Z125:AI139)+BC122+AC145 ->  | Z120: correction dMo selon cycles et stades des espèces pures | AA120: =P120 -> 0 | AK120: correction cycle sans stade donné | AR120: correction sans stades | AV120: stade manque
O121: cycle position | P121: 1 | Q121: = cycle | R121: =P121-1 -> 0 | Z121: cycle | AA121: =P121 -> 1 | AB121: 1=sans correct; 2=cycle 1;3=cycle 2+ | AR121: 1er cycle | AV121: 2em et suivants | AZ121: 1er | BA121: 2ème ss | BB121: pour cycle | BC121: correct selon conserve:
O122: stade position | P122: 1 | Q122: = stade | R122: =P122-1 -> 0 | Z122: stade | AA122: =P122 -> 1 | AB122: 1=sans correct; 2=std 2;3=std 3; 4=std 4 | AR122: herbe | AS122: ensilage | AT122: sec | AU122: déshydr. | AV122: herbe | AW122: ensilage | AX122: sec | AY122: déshydr. | BB122: =AA121-1 -> 0 | BC122: =IF(AND(AA121>1,AA122=1),SUM(BC125:BC139),0) -> 0 | BD122: =IF(BC122=0,0,BC122+AC145) -> 0 | BE122: dMO corrigée
A123: corrections pour ensilages | D123: NEL, NEV | E123: PAIE | F123: PAIN | G123: =IF(B60=2,M9,"") ->  | H123: MS | J123: NEL | K123: NEV | L123: PAIE | M123: PAIN | P123: 1er cycle | U123: repousses | Z123: 1er cycle | AE123: repousses | AL123: 1er cycle | AO123: repousses | BE123: selon cycle
A124: MS <20% | D124: -1 | E124: -6 | F124: 0 | G124: 1 | H124: sans corrections =1 | J124: =IF(G124=1,0,IF(G123=0,0,IF(G123<20,D124,IF(G123>50,D125,0)))) -> 0 | K124: =IF(G124=1,0,IF(G123=0,0,IF(G123<20,D124,IF(G123>50,D125,0)))) -> 0 | L124: =IF(G124=1,0,IF(G123=0,0,IF(G123<20,E124,IF(G123>50,E125,0)))) -> 0 | M124: =IF(G124=1,0,IF(G123=0,0,IF(G123<20,F124,IF(G123>50,F125,0)))) -> 0 | P124: stade 1 | Q124: stade 2 | R124: stade 3 | S124: stade 4 | T124: stade 5 | U124: stade 1 | V124: stade 2 | W124: stade 3 | X124: stade 4 | Y124: stade 5 | Z124: stade 1 | AA124: stade 2 | AB124: stade 3 | AC124: stade 4 | AD124: stade 5 | AE124: stade 1 | AF124: stade 2 | AG124: stade 3 | AH124: stade 4 | AI124: stade 5 | AL124: stade 2 | AM124: stade 3 | AN124: stade 4 | AO124: stade 2 | AP124: stade 3 | AQ124: stade 4 | AR124: moy st. 2-3 | AS124: moy st. 2-3 | AT124: moy st. 3-4 | AU124: moy st. 2-3 | AV124: moy st. 2-3 | AW124: moy st. 2-3 | AX124: moy st. 3-4 | AY124: moy st. 2-3 | BE124: sans stade mais
A125: MS >50% | D125: -1 | E125: 6 | F125: 0 | O125: G | P125: 5 | Q125: 5 | R125: 4 | S125: 3 | T125: 0 | U125: -2 | V125: -2 | W125: -2 | X125: -2 | Y125: -3 | Z125: =IF($P$121=2,IF($P$122=2,IF($AC$145=0,"",IF($B$66=1,P125,"")),""),"") ->  | AA125: =IF($P$121=2,IF($P$122=3,IF($AC$145=0,"",IF($B$66=1,Q125,"")),""),"") ->  | AB125: =IF($P$121=2,IF($P$122=4,IF($AC$145=0,"",IF($B$66=1,R125,"")),""),"") ->  | AC125: =IF($P$121=2,IF($P$122=5,IF($AC$145=0,"",IF($B$66=1,S125,"")),""),"") ->  | AD125: =IF($P$121=2,IF($P$122=6,IF($AC$145=0,"",IF($B$66=1,T125,"")),""),"") ->  | AE125: =IF($P$121=3,IF($P$122=2,IF($AC$145=0,"",IF($B$66=1,U125,"")),""),"") ->  | AF125: =IF($P$121=3,IF($P$122=3,IF($AC$145=0,"",IF($B$66=1,V125,"")),""),"") ->  | AG125: =IF($P$121=3,IF($P$122=4,IF($AC$145=0,"",IF($B$66=1,W125,"")),""),"") ->  | AH125: =IF($P$121=3,IF($P$122=5,IF($AC$145=0,"",IF($B$66=1,X125,"")),""),"") ->  | AI125: =IF($P$121=3,IF($P$122=6,IF($AC$145=0,"",IF($B$66=1,Y125,"")),""),"") ->  | AK125: G | AL125: =Q125 -> 5 | AM125: =R125 -> 4 | AN125: 3 | AO125: =V125 -> -2 | AP125: =W125 -> -2 | AQ125: -2 | AR125: =ROUND(AVERAGE(AL125:AM125),1) -> 4.5 | AS125: =ROUND(AVERAGE(AL125:AM125),1) -> 4.5 | AT125: =ROUND(AVERAGE(AM125:AN125),1) -> 3.5 | AU125: =ROUND(AVERAGE(AL125:AM125),1) -> 4.5 | AV125: =ROUND(AVERAGE(AO125:AP125),1) -> -2 | AW125: =ROUND(AVERAGE(AO125:AP125),1) -> -2 | AX125: =ROUND(AVERAGE(AP125:AQ125),1) -> -2 | AY125: =ROUND(AVERAGE(AO125:AP125),1) -> -2 | AZ125: =IF($AV$115=1,AR125,IF($AV$115=2,AS125,IF($AV$115=3,AT125,AU125))) -> 4.5 | BA125: =IF($AV$115=1,AV125,IF($AV$115=2,AW125,IF($AV$115=3,AX125,AY125))) -> -2 | BB125: =IF($BB$122+1=2,AZ125,BA125) -> -2 | BC125: =IF($AW$115=1,BB125,"") -> -2 | BE125: conserve
A126: normal | O126: GR | P126: 6 | Q126: 6 | R126: 5 | S126: 5 | T126: 3 | U126: -1 | V126: -1 | W126: -2 | X126: -4 | Y126: -4 | Z126: =IF($P$121=2,IF($P$122=2,IF($AC$145=0,"",IF($B$66=2,P126,"")),""),"") ->  | AA126: =IF($P$121=2,IF($P$122=3,IF($AC$145=0,"",IF($B$66=2,Q126,"")),""),"") ->  | AB126: =IF($P$121=2,IF($P$122=4,IF($AC$145=0,"",IF($B$66=2,R126,"")),""),"") ->  | AC126: =IF($P$121=2,IF($P$122=5,IF($AC$145=0,"",IF($B$66=2,S126,"")),""),"") ->  | AD126: =IF($P$121=2,IF($P$122=6,IF($AC$145=0,"",IF($B$66=2,T126,"")),""),"") ->  | AE126: =IF($P$121=3,IF($P$122=2,IF($AC$145=0,"",IF($B$66=2,U126,"")),""),"") ->  | AF126: =IF($P$121=3,IF($P$122=3,IF($AC$145=0,"",IF($B$66=2,V126,"")),""),"") ->  | AG126: =IF($P$121=3,IF($P$122=4,IF($AC$145=0,"",IF($B$66=2,W126,"")),""),"") ->  | AH126: =IF($P$121=3,IF($P$122=5,IF($AC$145=0,"",IF($B$66=2,X126,"")),""),"") ->  | AI126: =IF($P$121=3,IF($P$122=6,IF($AC$145=0,"",IF($B$66=2,Y126,"")),""),"") ->  | AK126: GR | AL126: =Q126 -> 6 | AM126: 5 | AN126: 5 | AO126: =V126 -> -1 | AP126: -2 | AQ126: -4 | AR126: =ROUND(AVERAGE(AL126:AM126),1) -> 5.5 | AS126: =ROUND(AVERAGE(AL126:AM126),1) -> 5.5 | AT126: 5 | AU126: =ROUND(AVERAGE(AL126:AM126),1) -> 5.5 | AV126: =ROUND(AVERAGE(AO126:AP126),1) -> -1.5 | AW126: =ROUND(AVERAGE(AO126:AP126),1) -> -1.5 | AX126: -3 | AY126: =ROUND(AVERAGE(AO126:AP126),1) -> -1.5 | AZ126: 5.5 | BA126: -1.5 | BB126: -1.5 | BC126: =IF($AW$115=2,BB126,"") -> 
A127: qualité fermentaire défectueuse | D127: -2 | E127: -6 | F127: 0 | G127: 1 | H127: =INDEX(A126:A128,G127) -> normal | J127: =IF(G127=2,D127,IF(G127=3,D128,0)) -> 0 | K127: =IF(G127=2,D127,IF(G127=3,D128,0)) -> 0 | L127: =IF(G127=2,E127,IF(G127=3,E128,0)) -> 0 | M127: =IF(G127=2,F127,IF(G127=3,F1192,0)) -> 0 | O127: E | P127: 4 | Q127: 4 | R127: 4 | S127: 3 | T127: 0 | U127: -2 | V127: -2 | W127: -3 | X127: -3 | Y127: -3 | Z127: =IF($P$121=2,IF($P$122=2,IF($AC$145=0,"",IF($B$66=3,P127,"")),""),"") ->  | AA127: =IF($P$121=2,IF($P$122=3,IF($AC$145=0,"",IF($B$66=3,Q127,"")),""),"") ->  | AB127: =IF($P$121=2,IF($P$122=4,IF($AC$145=0,"",IF($B$66=3,R127,"")),""),"") ->  | AC127: =IF($P$121=2,IF($P$122=5,IF($AC$145=0,"",IF($B$66=3,S127,"")),""),"") ->  | AD127: =IF($P$121=2,IF($P$122=6,IF($AC$145=0,"",IF($B$66=3,T127,"")),""),"") ->  | AE127: =IF($P$121=3,IF($P$122=2,IF($AC$145=0,"",IF($B$66=3,U127,"")),""),"") ->  | AF127: =IF($P$121=3,IF($P$122=3,IF($AC$145=0,"",IF($B$66=3,V127,"")),""),"") ->  | AG127: =IF($P$121=3,IF($P$122=4,IF($AC$145=0,"",IF($B$66=3,W127,"")),""),"") ->  | AH127: =IF($P$121=3,IF($P$122=5,IF($AC$145=0,"",IF($B$66=3,X127,"")),""),"") ->  | AI127: =IF($P$121=3,IF($P$122=6,IF($AC$145=0,"",IF($B$66=3,Y127,"")),""),"") ->  | AK127: E | AL127: 4 | AM127: 4 | AN127: 3 | AO127: -2 | AP127: -3 | AQ127: -3 | AR127: 4 | AS127: 4 | AT127: 3.5 | AU127: 4 | AV127: -2.5 | AW127: -2.5 | AX127: -3 | AY127: -2.5 | AZ127: 4 | BA127: -2.5 | BB127: -2.5 | BC127: =IF($AW$115=3,BB127,"") -> 
A128: qualité fermentaire mauvaise | D128: -5 | E128: -15 | F128: -3 | O128: ER | P128: 5 | Q128: 5 | R128: 5 | S128: 5 | T128: 2 | U128: -1 | V128: -1 | W128: -2 | X128: -3 | Y128: -3 | Z128: =IF($P$121=2,IF($P$122=2,IF($AC$145=0,"",IF($B$66=4,P128,"")),""),"") ->  | AA128: =IF($P$121=2,IF($P$122=3,IF($AC$145=0,"",IF($B$66=4,Q128,"")),""),"") ->  | AB128: =IF($P$121=2,IF($P$122=4,IF($AC$145=0,"",IF($B$66=4,R128,"")),""),"") ->  | AC128: =IF($P$121=2,IF($P$122=5,IF($AC$145=0,"",IF($B$66=4,S128,"")),""),"") ->  | AD128: =IF($P$121=2,IF($P$122=6,IF($AC$145=0,"",IF($B$66=4,T128,"")),""),"") ->  | AE128: =IF($P$121=3,IF($P$122=2,IF($AC$145=0,"",IF($B$66=4,U128,"")),""),"") ->  | AF128: =IF($P$121=3,IF($P$122=3,IF($AC$145=0,"",IF($B$66=4,V128,"")),""),"") ->  | AG128: =IF($P$121=3,IF($P$122=4,IF($AC$145=0,"",IF($B$66=4,W128,"")),""),"") ->  | AH128: =IF($P$121=3,IF($P$122=5,IF($AC$145=0,"",IF($B$66=4,X128,"")),""),"") ->  | AI128: =IF($P$121=3,IF($P$122=6,IF($AC$145=0,"",IF($B$66=4,Y128,"")),""),"") ->  | AK128: ER | AL128: 5 | AM128: 5 | AN128: 5 | AO128: -1 | AP128: -2 | AQ128: -3 | AR128: 5 | AS128: 5 | AT128: 5 | AU128: 5 | AV128: -1.5 | AW128: -1.5 | AX128: -2.5 | AY128: -1.5 | AZ128: 5 | BA128: -1.5 | BB128: -1.5 | BC128: =IF($AW$115=4,BB128,"") -> 
A129: normal | O129: L | P129: 3 | Q129: 4 | R129: 5 | S129: 5 | T129: 3 | U129: 2 | V129: 1 | W129: 0 | X129: 0 | Y129: -1 | Z129: =IF($P$121=2,IF($P$122=2,IF($AC$145=0,"",IF($B$66=5,P129,"")),""),"") ->  | AA129: =IF($P$121=2,IF($P$122=3,IF($AC$145=0,"",IF($B$66=5,Q129,"")),""),"") ->  | AB129: =IF($P$121=2,IF($P$122=4,IF($AC$145=0,"",IF($B$66=5,R129,"")),""),"") ->  | AC129: =IF($P$121=2,IF($P$122=5,IF($AC$145=0,"",IF($B$66=5,S129,"")),""),"") ->  | AD129: =IF($P$121=2,IF($P$122=6,IF($AC$145=0,"",IF($B$66=5,T129,"")),""),"") ->  | AE129: =IF($P$121=3,IF($P$122=2,IF($AC$145=0,"",IF($B$66=5,U129,"")),""),"") ->  | AF129: =IF($P$121=3,IF($P$122=3,IF($AC$145=0,"",IF($B$66=5,V129,"")),""),"") ->  | AG129: =IF($P$121=3,IF($P$122=4,IF($AC$145=0,"",IF($B$66=5,W129,"")),""),"") ->  | AH129: =IF($P$121=3,IF($P$122=5,IF($AC$145=0,"",IF($B$66=5,X129,"")),""),"") ->  | AI129: =IF($P$121=3,IF($P$122=6,IF($AC$145=0,"",IF($B$66=5,Y129,"")),""),"") ->  | AK129: L | AL129: 4 | AM129: 5 | AN129: 5 | AO129: 1 | AP129: 0 | AQ129: 0 | AR129: 4.5 | AS129: 4.5 | AT129: 5 | AU129: 4.5 | AV129: 0.5 | AW129: 0.5 | AX129: 0 | AY129: 0.5 | AZ129: 4.5 | BA129: 0.5 | BB129: 0.5 | BC129: =IF($AW$115=5,BB129,"") -> 
A130: postfermentations légèrement échauffé | D130: -4 | E130: -15 | F130: -3 | G130: 1 | H130: =INDEX(A129:A130,G130) -> normal | J130: =IF(G130=2,D130,0) -> 0 | K130: =IF(G130=2,D130,0) -> 0 | L130: =IF(G130=2,E130,0) -> 0 | M130: =IF(G130=2,F130,0) -> 0 | O130: DF | P130: 3 | Q130: 3 | R130: 3 | S130: 3 | T130: 2 | U130: -2 | V130: -2 | W130: -2 | X130: -2 | Y130: -4 | Z130: =IF($P$121=2,IF($P$122=2,IF($AC$145=0,"",IF($B$66=6,P130,"")),""),"") ->  | AA130: =IF($P$121=2,IF($P$122=3,IF($AC$145=0,"",IF($B$66=6,Q130,"")),""),"") ->  | AB130: =IF($P$121=2,IF($P$122=4,IF($AC$145=0,"",IF($B$66=6,R130,"")),""),"") ->  | AC130: =IF($P$121=2,IF($P$122=5,IF($AC$145=0,"",IF($B$66=6,S130,"")),""),"") ->  | AD130: =IF($P$121=2,IF($P$122=6,IF($AC$145=0,"",IF($B$66=6,T130,"")),""),"") ->  | AE130: =IF($P$121=3,IF($P$122=2,IF($AC$145=0,"",IF($B$66=6,U130,"")),""),"") ->  | AF130: =IF($P$121=3,IF($P$122=3,IF($AC$145=0,"",IF($B$66=6,V130,"")),""),"") ->  | AG130: =IF($P$121=3,IF($P$122=4,IF($AC$145=0,"",IF($B$66=6,W130,"")),""),"") ->  | AH130: =IF($P$121=3,IF($P$122=5,IF($AC$145=0,"",IF($B$66=6,X130,"")),""),"") ->  | AI130: =IF($P$121=3,IF($P$122=6,IF($AC$145=0,"",IF($B$66=6,Y130,"")),""),"") ->  | AK130: DF | AL130: 3 | AM130: 3 | AN130: 3 | AO130: -2 | AP130: -2 | AQ130: -2 | AR130: 3 | AS130: 3 | AT130: 3 | AU130: 3 | AV130: -2 | AW130: -2 | AX130: -2 | AY130: -2 | AZ130: 3 | BA130: -2 | BB130: -2 | BC130: =IF($AW$115=6,BB130,"") -> 
I131: % corrections | J131: =SUM(J124,J127,J130)/100 -> 0 | K131: =SUM(K124,K127,K130)/100 -> 0 | L131: =SUM(L124,L127,L130)/100 -> 0 | M131: =SUM(M124,M127,M130)/100 -> 0 | O131: DT | P131: 2 | Q131: 2 | R131: 2 | S131: -1 | T131: -5 | U131: 1 | V131: -1 | W131: -4 | X131: -6 | Y131: -11 | Z131: =IF($P$121=2,IF($P$122=2,IF($AC$145=0,"",IF($B$66=7,P131,"")),""),"") ->  | AA131: =IF($P$121=2,IF($P$122=3,IF($AC$145=0,"",IF($B$66=7,Q131,"")),""),"") ->  | AB131: =IF($P$121=2,IF($P$122=4,IF($AC$145=0,"",IF($B$66=7,R131,"")),""),"") ->  | AC131: =IF($P$121=2,IF($P$122=5,IF($AC$145=0,"",IF($B$66=7,S131,"")),""),"") ->  | AD131: =IF($P$121=2,IF($P$122=6,IF($AC$145=0,"",IF($B$66=7,T131,"")),""),"") ->  | AE131: =IF($P$121=3,IF($P$122=2,IF($AC$145=0,"",IF($B$66=7,U131,"")),""),"") ->  | AF131: =IF($P$121=3,IF($P$122=3,IF($AC$145=0,"",IF($B$66=7,V131,"")),""),"") ->  | AG131: =IF($P$121=3,IF($P$122=4,IF($AC$145=0,"",IF($B$66=7,W131,"")),""),"") ->  | AH131: =IF($P$121=3,IF($P$122=5,IF($AC$145=0,"",IF($B$66=7,X131,"")),""),"") ->  | AI131: =IF($P$121=3,IF($P$122=6,IF($AC$145=0,"",IF($B$66=7,Y131,"")),""),"") ->  | AK131: DT | AL131: 2 | AM131: 2 | AN131: -1 | AO131: -1 | AP131: -4 | AQ131: -6 | AR131: 2 | AS131: 2 | AT131: 0.5 | AU131: 2 | AV131: -2.5 | AW131: -2.5 | AX131: -5 | AY131: -2.5 | AZ131: 2 | BA131: -2.5 | BB131: -2.5 | BC131: =IF($AW$115=7,BB131,"") -> 
O132: Dactyle | P132: -2 | Q132: 0 | R132: 3 | S132: 5 | T132: 4 | U132: 1 | V132: 0 | W132: 0 | X132: -3 | Y132: -2 | Z132: =IF($P$121=2,IF($P$122=2,IF($AC$145=0,"",IF($B$66=9,P132,"")),""),"") ->  | AA132: =IF($P$121=2,IF($P$122=3,IF($AC$145=0,"",IF($B$66=9,Q132,"")),""),"") ->  | AB132: =IF($P$121=2,IF($P$122=4,IF($AC$145=0,"",IF($B$66=9,R132,"")),""),"") ->  | AC132: =IF($P$121=2,IF($P$122=5,IF($AC$145=0,"",IF($B$66=9,S132,"")),""),"") ->  | AD132: =IF($P$121=2,IF($P$122=6,IF($AC$145=0,"",IF($B$66=9,T132,"")),""),"") ->  | AE132: =IF($P$121=3,IF($P$122=2,IF($AC$145=0,"",IF($B$66=9,U132,"")),""),"") ->  | AF132: =IF($P$121=3,IF($P$122=3,IF($AC$145=0,"",IF($B$66=9,V132,"")),""),"") ->  | AG132: =IF($P$121=3,IF($P$122=4,IF($AC$145=0,"",IF($B$66=9,W132,"")),""),"") ->  | AH132: =IF($P$121=3,IF($P$122=5,IF($AC$145=0,"",IF($B$66=9,X132,"")),""),"") ->  | AI132: =IF($P$121=3,IF($P$122=6,IF($AC$145=0,"",IF($B$66=9,Y132,"")),""),"") ->  | AK132: Dactyle | AL132: 0 | AM132: 3 | AN132: 5 | AO132: 0 | AP132: 0 | AQ132: -3 | AR132: 1.5 | AS132: 1.5 | AT132: 4 | AU132: 1.5 | AV132: 0 | AW132: 0 | AX132: -1.5 | AY132: 0 | AZ132: 1.5 | BA132: 0 | BB132: 0 | BC132: =IF($AW$115=9,BB132,"") -> 
A133: corrections pour fourrages secs | D133: NEL, NEV | E133: PAIE | F133: PAIN | J133: NEL | K133: NEV | L133: PAIE | M133: PAIN | O133: RG anglais | P133: -2 | Q133: 0 | R133: 3 | S133: 5 | T133: 5 | U133: -1 | V133: -2 | W133: -4 | X133: -4 | Y133: -4 | Z133: =IF($P$121=2,IF($P$122=2,IF($AC$145=0,"",IF($B$66=10,P133,"")),""),"") ->  | AA133: =IF($P$121=2,IF($P$122=3,IF($AC$145=0,"",IF($B$66=10,Q133,"")),""),"") ->  | AB133: =IF($P$121=2,IF($P$122=4,IF($AC$145=0,"",IF($B$66=10,R133,"")),""),"") ->  | AC133: =IF($P$121=2,IF($P$122=5,IF($AC$145=0,"",IF($B$66=10,S133,"")),""),"") ->  | AD133: =IF($P$121=2,IF($P$122=6,IF($AC$145=0,"",IF($B$66=10,T133,"")),""),"") ->  | AE133: =IF($P$121=3,IF($P$122=2,IF($AC$145=0,"",IF($B$66=10,U133,"")),""),"") ->  | AF133: =IF($P$121=3,IF($P$122=3,IF($AC$145=0,"",IF($B$66=10,V133,"")),""),"") ->  | AG133: =IF($P$121=3,IF($P$122=4,IF($AC$145=0,"",IF($B$66=10,W133,"")),""),"") ->  | AH133: =IF($P$121=3,IF($P$122=5,IF($AC$145=0,"",IF($B$66=10,X133,"")),""),"") ->  | AI133: =IF($P$121=3,IF($P$122=6,IF($AC$145=0,"",IF($B$66=10,Y133,"")),""),"") ->  | AK133: RG anglais | AL133: 0 | AM133: 3 | AN133: 5 | AO133: -2 | AP133: -4 | AQ133: -4 | AR133: 1.5 | AS133: 1.5 | AT133: 4 | AU133: 1.5 | AV133: -3 | AW133: -3 | AX133: -4 | AY133: -3 | AZ133: 1.5 | BA133: -3 | BB133: -3 | BC133: =IF($AW$115=10,BB133,"") -> 
A134: séchage au sol | D134: -4 | E134: -3 | F134: 0 | G134: 1 | J134: =IF(G134=2,D134,0) -> 0 | K134: =IF(G134=2,D134,0) -> 0 | L134: =IF(G134=2,E134,0) -> 0 | M134: =IF(G134=2,F134,0) -> 0 | O134: RG itallien | P134: -3 | Q134: -1 | R134: 3 | S134: 4 | T134: -2 | U134: 0 | V134: 3 | W134: 4 | X134: 2 | Y134: -3 | Z134: =IF($P$121=2,IF($P$122=2,IF($AC$145=0,"",IF($B$66=11,P134,"")),""),"") ->  | AA134: =IF($P$121=2,IF($P$122=3,IF($AC$145=0,"",IF($B$66=11,Q134,"")),""),"") ->  | AB134: =IF($P$121=2,IF($P$122=4,IF($AC$145=0,"",IF($B$66=11,R134,"")),""),"") ->  | AC134: =IF($P$121=2,IF($P$122=5,IF($AC$145=0,"",IF($B$66=11,S134,"")),""),"") ->  | AD134: =IF($P$121=2,IF($P$122=6,IF($AC$145=0,"",IF($B$66=11,T134,"")),""),"") ->  | AE134: =IF($P$121=3,IF($P$122=2,IF($AC$145=0,"",IF($B$66=11,U134,"")),""),"") ->  | AF134: =IF($P$121=3,IF($P$122=3,IF($AC$145=0,"",IF($B$66=11,V134,"")),""),"") ->  | AG134: =IF($P$121=3,IF($P$122=4,IF($AC$145=0,"",IF($B$66=11,W134,"")),""),"") ->  | AH134: =IF($P$121=3,IF($P$122=5,IF($AC$145=0,"",IF($B$66=11,X134,"")),""),"") ->  | AI134: =IF($P$121=3,IF($P$122=6,IF($AC$145=0,"",IF($B$66=11,Y134,"")),""),"") ->  | AK134: RG itallien | AL134: -1 | AM134: 3 | AN134: 4 | AO134: 3 | AP134: 4 | AQ134: 2 | AR134: 1 | AS134: 1 | AT134: 3.5 | AU134: 1 | AV134: 3.5 | AW134: 3.5 | AX134: 3 | AY134: 3.5 | AZ134: 1 | BA134: 3.5 | BB134: 3.5 | BC134: =IF($AW$115=11,BB134,"") -> 
A135: 1 jour de pluie | D135: -5 | E135: -8 | F135: -2 | G135: 1 | J135: =IF(G135=2,D135,IF(G135=3,D136,0)) -> 0 | K135: =IF(G135=2,D135,IF(G135=3,D136,0)) -> 0 | L135: =IF(G135=2,E135,IF(G135=3,E136,0)) -> 0 | M135: =IF(G135=2,F135,IF(H135=3,F136,0)) -> 0 | O135: Vulpin | P135: 0 | Q135: 5 | R135: 3 | S135: 2 | T135: 0 | U135: -2 | V135: -3 | W135: -3 | X135: -3 | Y135: -3 | Z135: =IF($P$121=2,IF($P$122=2,IF($AC$145=0,"",IF($B$66=12,P135,"")),""),"") ->  | AA135: =IF($P$121=2,IF($P$122=3,IF($AC$145=0,"",IF($B$66=12,Q135,"")),""),"") ->  | AB135: =IF($P$121=2,IF($P$122=4,IF($AC$145=0,"",IF($B$66=12,R135,"")),""),"") ->  | AC135: =IF($P$121=2,IF($P$122=5,IF($AC$145=0,"",IF($B$66=12,S135,"")),""),"") ->  | AD135: =IF($P$121=2,IF($P$122=6,IF($AC$145=0,"",IF($B$66=12,T135,"")),""),"") ->  | AE135: =IF($P$121=3,IF($P$122=2,IF($AC$145=0,"",IF($B$66=12,U135,"")),""),"") ->  | AF135: =IF($P$121=3,IF($P$122=3,IF($AC$145=0,"",IF($B$66=12,V135,"")),""),"") ->  | AG135: =IF($P$121=3,IF($P$122=4,IF($AC$145=0,"",IF($B$66=12,W135,"")),""),"") ->  | AH135: =IF($P$121=3,IF($P$122=5,IF($AC$145=0,"",IF($B$66=12,X135,"")),""),"") ->  | AI135: =IF($P$121=3,IF($P$122=6,IF($AC$145=0,"",IF($B$66=12,Y135,"")),""),"") ->  | AK135: Vulpin | AL135: 5 | AM135: 3 | AN135: 2 | AO135: -3 | AP135: -3 | AQ135: -3 | AR135: 4 | AS135: 4 | AT135: 2.5 | AU135: 4 | AV135: -3 | AW135: -3 | AX135: -3 | AY135: -3 | AZ135: 4 | BA135: -3 | BB135: -3 | BC135: =IF($AW$115=12,BB135,"") -> 
A136: 2 jours et plus de pluie | D136: -8 | E136: -15 | F136: -3 | O136: Trèfle blanc | P136: 2 | Q136: 3 | R136: 3 | S136: 2 | T136: 1 | U136: 1 | V136: 1 | W136: 1 | X136: 0 | Y136: -3 | Z136: =IF($P$121=2,IF($P$122=2,IF($AC$145=0,"",IF($B$66=13,P136,"")),""),"") ->  | AA136: =IF($P$121=2,IF($P$122=3,IF($AC$145=0,"",IF($B$66=13,Q136,"")),""),"") ->  | AB136: =IF($P$121=2,IF($P$122=4,IF($AC$145=0,"",IF($B$66=13,R136,"")),""),"") ->  | AC136: =IF($P$121=2,IF($P$122=5,IF($AC$145=0,"",IF($B$66=13,S136,"")),""),"") ->  | AD136: =IF($P$121=2,IF($P$122=6,IF($AC$145=0,"",IF($B$66=13,T136,"")),""),"") ->  | AE136: =IF($P$121=3,IF($P$122=2,IF($AC$145=0,"",IF($B$66=13,U136,"")),""),"") ->  | AF136: =IF($P$121=3,IF($P$122=3,IF($AC$145=0,"",IF($B$66=13,V136,"")),""),"") ->  | AG136: =IF($P$121=3,IF($P$122=4,IF($AC$145=0,"",IF($B$66=13,W136,"")),""),"") ->  | AH136: =IF($P$121=3,IF($P$122=5,IF($AC$145=0,"",IF($B$66=13,X136,"")),""),"") ->  | AI136: =IF($P$121=3,IF($P$122=6,IF($AC$145=0,"",IF($B$66=13,Y136,"")),""),"") ->  | AK136: Trèfle blanc | AL136: 3 | AM136: 3 | AN136: 2 | AO136: 1 | AP136: 1 | AQ136: 0 | AR136: 3 | AS136: 3 | AT136: 2.5 | AU136: 3 | AV136: 1 | AW136: 1 | AX136: 0.5 | AY136: 1 | AZ136: 3 | BA136: 1 | BB136: 1 | BC136: =IF($AW$115=13,BB136,"") -> 
A137: Echauffement, légèrement brun | D137: 0 | E137: 3 | F137: 0 | G137: 1 | J137: =IF(G137=2,D137,IF(G137=3,D138,0)) -> 0 | K137: =IF(G137=2,D137,IF(G137=3,D138,0)) -> 0 | L137: =IF(G137=2,E137,IF(G137=3,E138,0)) -> 0 | M137: =IF(G137=2,F137,IF(H137=3,F138,0)) -> 0 | O137: Trèfle violet | P137: 0 | Q137: 3 | R137: 3 | S137: 2 | T137: 0 | U137: -2 | V137: -1 | W137: -1 | X137: -1 | Y137: -3 | Z137: =IF($P$121=2,IF($P$122=2,IF($AC$145=0,"",IF($B$66=14,P137,"")),""),"") ->  | AA137: =IF($P$121=2,IF($P$122=3,IF($AC$145=0,"",IF($B$66=14,Q137,"")),""),"") ->  | AB137: =IF($P$121=2,IF($P$122=4,IF($AC$145=0,"",IF($B$66=14,R137,"")),""),"") ->  | AC137: =IF($P$121=2,IF($P$122=5,IF($AC$145=0,"",IF($B$66=14,S137,"")),""),"") ->  | AD137: =IF($P$121=2,IF($P$122=6,IF($AC$145=0,"",IF($B$66=14,T137,"")),""),"") ->  | AE137: =IF($P$121=3,IF($P$122=2,IF($AC$145=0,"",IF($B$66=14,U137,"")),""),"") ->  | AF137: =IF($P$121=3,IF($P$122=3,IF($AC$145=0,"",IF($B$66=14,V137,"")),""),"") ->  | AG137: =IF($P$121=3,IF($P$122=4,IF($AC$145=0,"",IF($B$66=14,W137,"")),""),"") ->  | AH137: =IF($P$121=3,IF($P$122=5,IF($AC$145=0,"",IF($B$66=14,X137,"")),""),"") ->  | AI137: =IF($P$121=3,IF($P$122=6,IF($AC$145=0,"",IF($B$66=14,Y137,"")),""),"") ->  | AK137: Trèfle violet | AL137: 3 | AM137: 3 | AN137: 2 | AO137: -1 | AP137: -1 | AQ137: -1 | AR137: 3 | AS137: 3 | AT137: 2.5 | AU137: 3 | AV137: -1 | AW137: -1 | AX137: -1 | AY137: -1 | AZ137: 3 | BA137: -1 | BB137: -1 | BC137: =IF($AW$115=14,BB137,"") -> 
A138: Echauffement, brun odeur de roussi | D138: -5 | E138: -1 | F138: -2 | I138: foins / regains | O138: Luzerne | P138: 1 | Q138: 1 | R138: 1 | S138: 1 | T138: 1 | U138: -3 | V138: -2 | W138: -1 | X138: -2 | Y138: -1 | Z138: =IF($P$121=2,IF($P$122=2,IF($AC$145=0,"",IF($B$66=15,P138,"")),""),"") ->  | AA138: =IF($P$121=2,IF($P$122=3,IF($AC$145=0,"",IF($B$66=15,Q138,"")),""),"") ->  | AB138: =IF($P$121=2,IF($P$122=4,IF($AC$145=0,"",IF($B$66=15,R138,"")),""),"") ->  | AC138: =IF($P$121=2,IF($P$122=5,IF($AC$145=0,"",IF($B$66=15,S138,"")),""),"") ->  | AD138: =IF($P$121=2,IF($P$122=6,IF($AC$145=0,"",IF($B$66=15,T138,"")),""),"") ->  | AE138: =IF($P$121=3,IF($P$122=2,IF($AC$145=0,"",IF($B$66=15,U138,"")),""),"") ->  | AF138: =IF($P$121=3,IF($P$122=3,IF($AC$145=0,"",IF($B$66=15,V138,"")),""),"") ->  | AG138: =IF($P$121=3,IF($P$122=4,IF($AC$145=0,"",IF($B$66=15,W138,"")),""),"") ->  | AH138: =IF($P$121=3,IF($P$122=5,IF($AC$145=0,"",IF($B$66=15,X138,"")),""),"") ->  | AI138: =IF($P$121=3,IF($P$122=6,IF($AC$145=0,"",IF($B$66=15,Y138,"")),""),"") ->  | AK138: Luzerne | AL138: 1 | AM138: 1 | AN138: 1 | AO138: -2 | AP138: -1 | AQ138: -2 | AR138: 1 | AS138: 1 | AT138: 1 | AU138: 1 | AV138: -1.5 | AW138: -1.5 | AX138: -1.5 | AY138: -1.5 | AZ138: 1 | BA138: -1.5 | BB138: -1.5 | BC138: =IF($AW$115=15,BB138,"") -> 
I139: % corrections | J139: =SUM(J134,J135,J137)/100 -> 0 | K139: =SUM(K134,K135,K137)/100 -> 0 | L139: =SUM(L134,L135,L137)/100 -> 0 | M139: =SUM(M134,M135,M137)/100 -> 0 | O139: indéterminé | P139: 5 | Q139: 5 | R139: 5 | S139: 4 | T139: 4 | U139: -3 | V139: -3 | W139: -4 | X139: -3 | Y139: -3 | Z139: =IF($P$121=2,IF($P$122=2,IF($AC$145=0,"",IF($B$66=8,P139,"")),""),"") ->  | AA139: =IF($P$121=2,IF($P$122=3,IF($AC$145=0,"",IF($B$66=8,Q139,"")),""),"") ->  | AB139: =IF($P$121=2,IF($P$122=4,IF($AC$145=0,"",IF($B$66=8,R139,"")),""),"") ->  | AC139: =IF($P$121=2,IF($P$122=5,IF($AC$145=0,"",IF($B$66=8,S139,"")),""),"") ->  | AD139: =IF($P$121=2,IF($P$122=6,IF($AC$145=0,"",IF($B$66=8,T139,"")),""),"") ->  | AE139: =IF($P$121=3,IF($P$122=2,IF($AC$145=0,"",IF($B$66=8,U139,"")),""),"") ->  | AF139: =IF($P$121=3,IF($P$122=3,IF($AC$145=0,"",IF($B$66=8,V139,"")),""),"") ->  | AG139: =IF($P$121=3,IF($P$122=4,IF($AC$145=0,"",IF($B$66=8,W139,"")),""),"") ->  | AH139: =IF($P$121=3,IF($P$122=5,IF($AC$145=0,"",IF($B$66=8,X139,"")),""),"") ->  | AI139: =IF($P$121=3,IF($P$122=6,IF($AC$145=0,"",IF($B$66=8,Y139,"")),""),"") ->  | AK139: indéterminé | AL139: 5 | AM139: 5 | AN139: 4 | AO139: -3 | AP139: -4 | AQ139: -3 | AR139: 5 | AS139: 5 | AT139: 4.5 | AU139: 5 | AV139: -3.5 | AW139: -3.5 | AX139: -3.5 | AY139: -3.5 | AZ139: 5 | BA139: -3.5 | BB139: -3.5 | BC139: =IF($AW$115=8,BB139,"") -> 
H140: corrections | I140: =INDEX(A61:A64,B60) -> Grünfutter | J140: =IF(B60=2,J131,IF(B60=3,J139,0)) -> 0 | K140: =IF(B60=2,K131,IF(B60=3,K139,0)) -> 0 | L140: =IF(B60=2,L131,IF(B60=3,L139,0)) -> 0 | M140: =IF(B60=2,M131,IF(B60=3,M139,0)) -> 0
A141: =CONCATENATE(B60,B66) -> 11
U143: données MA,CB existantes
A144: EQUATIONS dMO et ADF, NDF, Sucres | P144: priorité ADF donné | V144: =SUM(N109:N110) -> 0 | Y144: conserve | Z144: bota | AA144: =ISERROR(AA145) -> FALSE | AB144: dMO donné prioritaire | AC144: dMO utilisée | AD144: dMO pour correction cycle-stade | AE144: ADFreg | AF144: ADFreg | AG144: NDFreg | AH144: NDFreg | AI144: SUCREreg | AJ144: SUCREreg
D145: MA | E145: CB | F145: ADF donné | G145: NDF donné | H145: CE | I145: ADF reg2006 | J145: NDF reg | K145: sucre reg | L145: NDF(donné/reg) | M145: ADF(donné/reg) | N145: MO | O145: MA/MO | P145: CB/MO | Q145: ADF/MO | R145: MA2/MO | S145: CB2/MO | T145: ADF2/MO | U145: dMO par CB | V145: dMO par ADF | W145: LV99 | X145: dMO reg | AA145: =SUM(AA146:AA209) -> 0 | AB145: dMO | AC145: =IF(AA144=TRUE,"",IF(G13<>AA145,G13,AA145)) ->  | AD145: =IF(Y120=0,AC145,Y120) ->  | AF145: =(SUM(AF146:AF209))*G2/100 -> 0 | AH145: =(SUM(AH146:AH209))*G2/100 -> 0 | AJ145: =(SUM(AJ146:AJ209))*G2/100 -> 0
B146: vert | C146: G | D146: =$J$109 -> 0 | E146: =$J$110 -> 0 | F146: =$J$112 -> 0 | G146: =$J$113 -> 0 | H146: =$J$111 -> 0 | I146: =IF(E146=0,"",1.0503*E146 + 18.642) ->  | J146: =IF(E146=0,"", 1.753*E146 + 40.45) ->  | K146: =IF(E146=0,"", -0.0035*E146^2 + 1.7676*E146 - 115.4) ->  | L146: =IF(G146="",J146,G146) -> 0 | M146: =IF(F146="",I146,F146) -> 0 | N146: =1000-H146 -> 1000 | O146: =D146/N146*1000 -> 0 | P146: =E146/N146*1000 -> 0 | Q146: =M146/N146*1000 -> 0 | R146: =O146^2 -> 0 | S146: =P146^2 -> 0 | T146: =Q146^2 -> 0 | U146: =IF(E146=0,"",34+0.1654*O146+0.1776*P146-0.000257*R146-0.000391*S146) ->  | V146: =IF(M146=0,"",25.7+0.1654*O146+0.2169*Q146-0.000256*R146-0.000413*T146) ->  | W146: =IF(V144=0,"",84.8+0.0109*O146-0.000167*S146) ->  | X146: =IF($J$60=1,U146,IF($J$60=2,V146,W146)) ->  | Y146: =IF(X146=U146,"dMO par CB",IF(X146=V146,"dMO par ADF","dMO reg LV99")) -> dMO par CB | Z146: =IF($C$60="VER",X146,"") ->  | AA146: =IF($C$66="G",Z146,0) ->  | AB146: G | AE146: =IF($C$60="VER",I146,"") ->  | AF146: =IF($C$66="G",AE146,0) ->  | AG146: =IF($C$60="VER",J146,"") ->  | AH146: =IF($C$66="G",AG146,0) ->  | AI146: =IF($C$60="VER",K146,"") ->  | AJ146: =IF($C$66="G",AI146,0) -> 
B147: vert | C147: GR | D147: 0 | E147: 0 | F147: 0 | G147: 0 | H147: 0 | I147: =IF(E147=0,"", 1.0649*E147 + 14.478) ->  | J147: =IF(E147=0,"", 1.913*E147 - 1.668) ->  | K147: =IF(E147=0,"", 0.0037*E147^2 - 1.8885*E147 + 396.24) ->  | L147: =IF(G147="",J147,G147) -> 0 | M147: =IF(F147="",I147,F147) -> 0 | N147: 1000 | O147: 0 | P147: 0 | Q147: =M147/N147*1000 -> 0 | R147: =O147^2 -> 0 | S147: 0 | T147: 0 | U147: =IF(E147=0,"",21.9+0.1209*O147+0.358*P147-0.000186*R147-0.000794*S147) ->  | V147: =IF(M147=0,"",13.3+0.1209*O147+0.3823*Q147-0.000186*R147-0.000746*T147) ->  | W147: =IF(V144=0,"",87.9+0.0006*O147+0.0028*P147-0.000179*S147) ->  | Y147: =IF(X147=U147,"dMO par CB",IF(X147=V147,"dMO par ADF","dMO reg LV99")) -> dMO par CB | AA147: =IF($C$66="GR",Z147,0) -> 0 | AB147: GR | AF147: =IF($C$66="GR",AE147,0) -> 0 | AH147: =IF($C$66="GR",AG147,0) -> 0 | AJ147: =IF($C$66="GR",AI147,0) -> 0
B148: vert | C148: E | D148: 0 | E148: 0 | F148: 0 | G148: 0 | H148: 0 | I148: =IF(E148=0,"", 1.0238*E148 + 29.95) ->  | J148: =IF(E148=0,"", 1.7735*E148 + 20.628) ->  | K148: =IF(E148=0,"", -0.0027*E148^2 + 1.2332*E148 - 27.716) ->  | L148: =IF(G148="",J148,G148) -> 0 | M148: 0 | N148: 1000 | O148: 0 | P148: 0 | Q148: 0 | R148: 0 | S148: 0 | T148: 0 | U148: =IF(E148=0,"",40.6+0.1599*O148+0.1431*P148-0.000248*R148-0.000351*S148) ->  | V148: =IF(M148=0,"",32.3+0.1599*O148+0.1866*Q148-0.000248*R148-0.000382*T148) ->  | W148: =IF(V144=0,"",83.5+0.0114*O148-0.000145*S148) ->  | Y148: dMO par CB | AA148: =IF($C$66="E",Z148,0) -> 0 | AB148: E | AF148: =IF($C$66="E",AE148,0) -> 0 | AH148: =IF($C$66="E",AG148,0) -> 0 | AJ148: =IF($C$66="E",AI148,0) -> 0
B149: vert | C149: ER | D149: 0 | E149: 0 | F149: 0 | G149: 0 | H149: 0 | I149: =IF(E149=0,"", 1.0747*E149 + 18.157) ->  | J149: =IF(E149=0,"",1.9227*E149 - 15.022) ->  | K149: =IF(E149=0,"", 0.0008*E149^2 - 0.4282*E149 + 201.3) ->  | L149: 0 | M149: 0 | N149: 1000 | O149: 0 | P149: 0 | Q149: 0 | R149: 0 | S149: 0 | T149: 0 | U149: =IF(E149=0,"",43.2+0.0859*O149+0.2559*P149-0.000132*R149-0.000678*S149) ->  | V149: =IF(M149=0,"",34.4+0.0863*O149+0.2914*Q149-0.000133*R149-0.000647*T149) ->  | W149: =IF(V144=0,"",94.4+0.0011*O149-0.0466*P149-0.000075*S149) ->  | Y149: dMO par CB | AA149: =IF($C$66="ER",Z149,0) -> 0 | AB149: ER | AF149: =IF($C$66="ER",AE149,0) -> 0 | AH149: =IF($C$66="ER",AG149,0) -> 0 | AJ149: =IF($C$66="ER",AI149,0) -> 0
B150: vert | C150: L | D150: 0 | E150: 0 | F150: 0 | G150: 0 | H150: 0 | I150: =IF(E150=0,"", 1.0964*E150 + 22.686) ->  | J150: =IF(E150=0,"", 1.5566*E150 + 34.674) ->  | K150: =IF(E150=0,"", -0.0013*E150^2 + 0.666*E150 + 36.244) ->  | L150: 0 | M150: 0 | N150: 1000 | O150: 0 | P150: 0 | Q150: 0 | R150: 0 | S150: 0 | T150: 0 | U150: =IF(E150=0,"",86-0.000231*S150) ->  | V150: =IF(M150=0,"",87.4-0.000179*T150) ->  | W150: =IF(V144=0,"",72.6+0.0035*O150+0.1206*P150-0.000435*S150) ->  | Y150: dMO par CB | AA150: =IF($C$66="L",Z150,0) -> 0 | AB150: L | AF150: =IF($C$66="L",AE150,0) -> 0 | AH150: =IF($C$66="L",AG150,0) -> 0 | AJ150: =IF($C$66="L",AI150,0) -> 0
B151: vert | C151: DF | D151: 0 | E151: 0 | F151: 0 | G151: 0 | H151: 0 | I151: =IF(E151=0,"", 1.1167*E151 + 24.749) ->  | J151: =IF(E151=0,"", 1.9332*E151 - 31.121) ->  | K151: =IF(E151=0,"", 0.0035*E151^2 - 1.3962*E151 + 265.53) ->  | L151: 0 | M151: 0 | N151: 1000 | O151: 0 | P151: 0 | Q151: 0 | R151: 0 | S151: 0 | T151: 0 | U151: =IF(E151=0,"",58.9+0.0792*O151+0.132*P151-0.000121*R151-0.000428*S151) ->  | V151: =IF(M151=0,"",48.6+0.0779*O151+0.2008*Q151-0.000118*R151-0.000487*T151) ->  | W151: =IF(V144=0,"",174.6-0.1409*O151-0.4803*P151+0.000543*S151) ->  | Y151: dMO par CB | AA151: =IF($C$66="DF",Z151,0) -> 0 | AB151: DF | AF151: =IF($C$66="DF",AE151,0) -> 0 | AH151: =IF($C$66="DF",AG151,0) -> 0 | AJ151: =IF($C$66="DF",AI151,0) -> 0
B152: vert | C152: DT | D152: 0 | E152: 0 | F152: 0 | G152: 0 | H152: 0 | I152: =IF(E152=0,"", 1.1896*E152 + 14.282) ->  | J152: =IF(E152=0,"", 1.9337*E152 - 32.211) ->  | K152: =IF(E152=0,"", 0.0011*E152^2 - 0.6024*E152 + 209.31) ->  | L152: 0 | M152: 0 | N152: 1000 | O152: 0 | P152: 0 | Q152: 0 | R152: 0 | S152: 0 | T152: 0 | U152: =IF(E152=0,"",43.6+0.1806*O152+0.1384*P152-0.000298*R152-0.000475*S152) ->  | V152: =IF(M152=0,"",35.2+0.1813*O152+0.1512*Q152-0.000299*R152-0.000311*T152) ->  | W152: =IF(V144=0,"",174.6-0.1409*O152-0.4803*P152+0.000543*S152) ->  | Y152: dMO par CB | AA152: =IF($C$66="DT",Z152,0) -> 0 | AB152: DT | AF152: =IF($C$66="DT",AE152,0) -> 0 | AH152: =IF($C$66="DT",AG152,0) -> 0 | AJ152: =IF($C$66="DT",AI152,0) -> 0
B153: vert | C153: IND | D153: 0 | E153: 0 | F153: 0 | G153: 0 | H153: 0 | I153: =IF(E153=0,"", 0.9296*E153 + 55.229) ->  | J153: =IF(E153=0,"", 1.8457*E153 - 10.667) ->  | K153: =IF(E153=0,"", -0.0074*E153^2 + 3.2716*E153 - 221.76) ->  | L153: 0 | M153: 0 | N153: 1000 | O153: 0 | P153: 0 | Q153: 0 | R153: 0 | S153: 0 | T153: 0 | U153: =IF(E153=0,"",56.7+0.1262*O153+0.0939*P153-0.000231*R153-0.000312*S153) ->  | V153: =IF(M153=0,"",54.8+0.1121*O153+0.1221*Q153-0.000207*R153-0.000335*T153) ->  | W153: =IF(V144=0,"",72.7+0.0291*O153+0.0481*P153-0.000211*S153) ->  | Y153: dMO par CB | AA153: =IF($C$66="INC",Z153,0) -> 0 | AB153: IND | AF153: =IF($C$66="INC",AE153,0) -> 0 | AH153: =IF($C$66="INC",AG153,0) -> 0 | AJ153: =IF($C$66="INC",AI153,0) -> 0
B154: vert | C154: dg | D154: 0 | E154: 0 | F154: 0 | G154: 0 | H154: 0 | I154: =IF(E154=0,"", 0.9853*E154 + 28.437) ->  | J154: =IF(E154=0,"", 1.3785*E154 + 156.77) ->  | K154: =IF(E154=0,"", -0.0086*E154^2 + 5.0791*E154 - 639.52) ->  | L154: 0 | M154: 0 | N154: 1000 | O154: 0 | P154: 0 | Q154: 0 | R154: 0 | S154: 0 | T154: 0 | U154: =IF(E154=0,"",93.6-0.000221*S154) ->  | V154: =IF(M154=0,"",96.3-0.000212*T154) ->  | Y154: dMO par CB | AA154: =IF($C$66="dg",Z154,0) -> 0 | AB154: dg | AF154: =IF($C$66="dg",AE154,0) -> 0 | AH154: =IF($C$66="dg",AG154,0) -> 0 | AJ154: =IF($C$66="dg",AI154,0) -> 0
B155: vert | C155: lp | D155: 0 | E155: 0 | F155: 0 | G155: 0 | H155: 0 | I155: =IF(E155=0,"", 2.106*E155 - 35.434) ->  | J155: =IF(E155=0,"", 1.1817*E155 - 20.908) ->  | K155: =IF(E155=0,"", 0.0136*E155^2 - 7.0911*E155 + 1098.3) ->  | L155: 0 | M155: 0 | N155: 1000 | O155: 0 | P155: 0 | Q155: 0 | R155: 0 | S155: 0 | T155: 0 | U155: =IF(E155=0,"",95.5+0.0122*O155-0.000316*S155) ->  | V155: =IF(M155=0,"",98.3+0.0013*O155-0.000279*T155) ->  | W155: =IF(W144=0,"",74.4+0.0085*O155+0.1103*P155-0.000411*S155) ->  | Y155: dMO par CB | AA155: =IF($C$66="lp",Z155,0) -> 0 | AB155: lp | AC155: =IF($J$60=3,W161,0) -> 0 | AD155: dMOmaïs LV99 | AF155: =IF($C$66="lp",AE155,0) -> 0 | AH155: =IF($C$66="lp",AG155,0) -> 0 | AJ155: =IF($C$66="lp",AI155,0) -> 0
B156: vert | C156: li | D156: 0 | E156: 0 | F156: 0 | G156: 0 | H156: 0 | I156: =IF(E156=0,"", 1.2035*E156 - 16.67) ->  | J156: =IF(E156=0,"", 1.7517*E156 + 47.237) ->  | K156: =IF(E156=0,"", -0.001*E156^2 + 0.3864*E156 + 171.38) ->  | L156: 0 | M156: 0 | N156: 1000 | O156: 0 | P156: 0 | Q156: 0 | R156: 0 | S156: 0 | T156: 0 | U156: =IF(E156=0,"",101.7-0.000446*S156) ->  | V156: =IF(M156=0,"",101.1-0.000339*T156) ->  | W156: =IF(W144=0,"",74.4+0.0085*O156+0.1103*P156-0.000411*S156) ->  | Y156: dMO par CB | AA156: =IF($C$66="li",Z156,0) -> 0 | AB156: li | AC156: =IF(AND($A$84=4,$J$60=1),U161,0) -> 0 | AD156: dMOmaïs LV06 par CB (INRA) | AF156: =IF($C$66="li",AE156,0) -> 0 | AH156: =IF($C$66="li",AG156,0) -> 0 | AJ156: =IF($C$66="li",AI156,0) -> 0
B157: vert | C157: ap | D157: 0 | E157: 0 | F157: 0 | G157: 0 | H157: 0 | I157: =IF(E157=0,"", 1.2025*E157 - 25.099) ->  | J157: =IF(E157=0,"", 2.1605*E157 - 53.052) ->  | K157: =IF(E157=0,"", 0.0044*E157^2 - 2.8995*E157 + 547.51) ->  | L157: 0 | M157: 0 | N157: 1000 | O157: 0 | P157: 0 | Q157: 0 | R157: 0 | S157: 0 | T157: 0 | U157: =IF(E157=0,"",90.1+0.0414*O157-0.000309*S157) ->  | V157: =IF(M157=0,"",98.6+0.0144*O157-0.000282*T157) ->  | Y157: dMO par CB | AA157: =IF($C$66="ap",Z157,0) -> 0 | AB157: ap | AC157: =IF(AND($A$84=4,$J$60=2),U161,0) -> 0 | AD157: dMO maïs LV06 par ADFNDF (INRA) | AF157: =IF($C$66="ap",AE157,0) -> 0 | AH157: =IF($C$66="ap",AG157,0) -> 0 | AJ157: =IF($C$66="ap",AI157,0) -> 0
B158: vert | C158: tr | D158: 0 | E158: 0 | F158: 0 | G158: 0 | H158: 0 | I158: =IF(E158=0,"", 1.2727*E158 + 8.4545) ->  | J158: =IF(E158=0,"", 1.5973*E158 - 9.5709) ->  | K158: =IF(E158=0,"", -0.0069*E158^2 + 2.2686*E158 - 100.25) ->  | L158: 0 | M158: 0 | N158: 1000 | O158: 0 | P158: 0 | Q158: 0 | R158: 0 | S158: 0 | T158: 0 | U158: =IF(E158=0,"",58.2+0.0732*O158-0.000022*S158) ->  | V158: =IF(M158=0,"",61.7+0.0642*O158-0.00003*T158) ->  | Y158: dMO par CB | AA158: =IF($C$66="tr",Z158,0) -> 0 | AB158: tr | AC158: =IF(AND($A$84=1,$J$60=1),100*((((N161*U161/100)*1.2812)-180.35)/N161),0) ->  | AD158: dMOmaïscorr. Par MOD dMOCB: 1.2812 x MOD CB -180.35 | AF158: =IF($C$66="tr",AE158,0) -> 0 | AH158: =IF($C$66="tr",AG158,0) -> 0 | AJ158: =IF($C$66="tr",AI158,0) -> 0
B159: vert | C159: tp | D159: 0 | E159: 0 | F159: 0 | G159: 0 | H159: 0 | I159: =IF(E159=0,"", 1.125*E159 + 20.242) ->  | J159: =IF(E159=0,"", 1.3119*E159 + 58.139) ->  | K159: =IF(E159=0,"", -0.0004*E159^2 + 0.0843*E159 +101.68) ->  | L159: 0 | M159: 0 | N159: 1000 | O159: 0 | P159: 0 | Q159: 0 | R159: 0 | S159: 0 | T159: 0 | U159: =IF(E159=0,"",78.8+0.000047*R159-0.000154*S159) ->  | V159: =IF(M159=0,"",80.2+0.000041*R159-0.000118*T159) ->  | Y159: dMO par CB | AA159: =IF($C$66="tp",Z159,0) -> 0 | AB159: tp | AC159: =IF(AND($A$84=1,$J$60=2),100*((((N161*V161/100)*1.2653)-156.12)/N161),0) -> 0 | AD159: dMOmaïs corr. Par MOD dMOADF : 1.2653 x MOD ADF - 156.12 | AF159: =IF($C$66="tp",AE159,0) -> 0 | AH159: =IF($C$66="tp",AG159,0) -> 0 | AJ159: =IF($C$66="tp",AI159,0) -> 0
B160: vert | C160: luz | D160: 0 | E160: 0 | F160: 0 | G160: 0 | H160: 0 | I160: =IF(E160=0,"",1.0526*E160 + 34.944) ->  | J160: =IF(E160=0,"", 1.2979*E160 + 32.529) ->  | K160: =IF(E160=0,"", -0.00004*E160^2 - 0.0411*E160 + 71.168) ->  | L160: 0 | M160: 0 | N160: 1000 | O160: 0 | P160: 0 | Q160: 0 | R160: 0 | S160: 0 | T160: 0 | U160: =IF(E160=0,"",52.4+0.0898*O160-0.000062*S160) ->  | V160: =IF(M160=0,"",56.7+0.0796*O160-0.00006*T160) ->  | W160: =IF(W144=0,"",100.1-0.0989*P160) ->  | Y160: dMO par CB | AA160: =IF($C$66="LUZ",Z160,0) -> 0 | AB160: luz | AC160: =IF(AND($A$84=2,$J$60<3),100*((-1016.7+($J$115*1.8)+(($J$109*$J$117/1000)*1.106)+(($M$109*$M$115/1000)*(-3.01))+(($M$110*$M$111/1000)*(-0.0013))+10.3)/$J$115),0) -> 0 | AD160: dMOmaïs PE équation ALP12 | AF160: =IF($C$66="LUZ",AE160,0) -> 0 | AH160: =IF($C$66="LUZ",AG160,0) -> 0 | AJ160: =IF($C$66="LUZ",AI160,0) -> 0
B161: vert | C161: maïs | D161: 0 | E161: 0 | F161: 0 | G161: 0 | H161: 0 | I161: =IF(E161=0,"", 1.0966*E161 + 16.236) ->  | J161: =IF(E161=0,"",1.5282*E161 + 125.25) ->  | K161: =IF(E161=0,"", 0.2348*E161 + 4.8502) ->  | L161: 0 | M161: 0 | N161: 1000 | O161: 0 | P161: 0 | Q161: 0 | R161: 0 | S161: 0 | T161: 0 | U161: =IF(E161=0,"",79.4+0.0652*O161-0.0591*P161) ->  | V161: =IF(M161=0,"",IF(L161=0,"",75.7+0.0701*O161+0.0156*L161/N161*1000-0.072*Q161)) ->  | W161: =IF(W144=0,"",82.5+0.0758*O161-0.0729*P161) ->  | Y161: dMO par CB | AA161: =IF(Z161="","",IF($C$66="MAIS",SUM(AC155:AC161),0)) ->  | AB161: maïs | AC161: =IF(AND($A$84=3,$J$60<3),100*((-1016.7+($J$115*1.8)+(($J$109*$J$117/1000)*1.106)+(($M$109*$M$115/1000)*(-3.01))+(($M$110*$M$111/1000)*(-0.0013))-10.3)/$J$115),0) -> 0 | AD161: dMOmaïs pas PE équation ALP12 | AF161: =IF($C$66="MAIS",AE161,0) -> 0 | AH161: =IF($C$66="MAIS",AG161,0) -> 0 | AJ161: =IF($C$66="MAIS",AI161,0) -> 0
B162: ensilé | C162: G | D162: 0 | E162: 0 | F162: 0 | G162: 0 | H162: 0 | I162: =IF(E162=0,"", 0.9982*E162 + 38.072) ->  | J162: =IF(E162=0,"", 1.5508*E162 + 35.621) ->  | K162: =IF(E162=0,"", -0.0017*E162^2 + 0.9258*E162 - 84.881) ->  | L162: 0 | M162: 0 | N162: 1000 | O162: 0 | P162: 0 | Q162: 0 | R162: 0 | S162: 0 | T162: 0 | U162: =IF(E162=0,"",26.3+0.1653*O162+0.2041*P162-0.000241*R162-0.000419*S162) ->  | V162: =IF(M162=0,"",10.8+0.1652*O162+0.2793*Q162-0.00024*R162-0.000484*T162) ->  | W162: =IF(V144=0,"",110.8-0.000032*R162-0.1298*P162) ->  | Y162: dMO par CB | Z162: =IF($C$60="ENS",X162,"") ->  | AA162: =IF($C$66="G",Z162,0) ->  | AB162: G | AE162: =IF($C$60="ENS",I162,"") ->  | AF162: =IF($C$66="G",AE162,0) ->  | AG162: =IF($C$60="ENS",J162,"") ->  | AH162: =IF($C$66="G",AG162,0) ->  | AI162: =IF($C$60="ENS",K162,"") ->  | AJ162: =IF($C$66="G",AI162,0) -> 
B163: ensilé | C163: GR | D163: 0 | E163: 0 | F163: 0 | G163: 0 | H163: 0 | I163: =IF(E163=0,"", 1.0241*E163 + 30.808) ->  | J163: =IF(E163=0,"", 1.7027*E163 - 6.0565) ->  | K163: =IF(E163=0,"",0.0017*E163^2 - 0.8951*E163 + 178.35) ->  | L163: 0 | M163: 0 | N163: 1000 | O163: 0 | P163: 0 | Q163: 0 | R163: 0 | S163: 0 | T163: 0 | U163: =IF(E163=0,"",10.4+0.1206*O163+0.4102*P163-0.000174*R163-0.000849*S163) ->  | V163: =IF(M163=0,"",-9.4+0.1206*O163+0.4916*Q163-0.000174*R163-0.000872*T163) ->  | W163: =IF(V144=0,"",94.1-0.0067*O163-0.0262*P163-0.000141*S163) ->  | Y163: dMO par CB | Z163: =IF($C$60="ENS",X163,"") ->  | AA163: =IF($C$66="GR",Z163,0) -> 0 | AB163: GR | AF163: =IF($C$66="GR",AE163,0) -> 0 | AH163: =IF($C$66="GR",AG163,0) -> 0 | AJ163: =IF($C$66="GR",AI163,0) -> 0
B164: ensilé | C164: E | D164: 0 | E164: 0 | F164: 0 | G164: 0 | H164: 0 | I164: =IF(E164=0,"", 1.0005*E164 + 42.48) ->  | J164: =IF(E164=0,"", 1.6001*E164 + 10.376) ->  | K164: =IF(E164=0,"", -0.0005*E164^2 + 0.2288*E164 +16.541) ->  | L164: 0 | M164: 0 | N164: 1000 | O164: 0 | P164: 0 | Q164: 0 | R164: 0 | S164: 0 | T164: 0 | U164: =IF(E164=0,"",34.1+0.1596*O164+0.1653*P164-0.000233*R164-0.000376*S164) ->  | V164: =IF(M164=0,"",19.4+0.1596*O164+0.2424*Q164-0.000232*R164-0.000447*T164) ->  | W164: =IF(V144=0,"",122.1-0.0423*O164-0.1478*P164) ->  | Y164: dMO par CB | AA164: =IF($C$66="E",Z164,0) -> 0 | AB164: E | AF164: =IF($C$66="E",AE164,0) -> 0 | AH164: =IF($C$66="E",AG164,0) -> 0 | AJ164: =IF($C$66="E",AI164,0) -> 0
B165: ensilé | C165: ER | D165: 0 | E165: 0 | F165: 0 | G165: 0 | H165: 0 | I165: =IF(E165=0,"", 1.026*E165 + 35.952) ->  | J165: =IF(E165=0,"", 1.7144*E165 - 17.949) ->  | K165: =IF(E165=0,"", 0.0001*E165^2 - 0.081*E165 + 68.852) ->  | L165: 0 | M165: 0 | N165: 1000 | O165: 0 | P165: 0 | Q165: 0 | R165: 0 | S165: 0 | T165: 0 | U165: =IF(E165=0,"",34.9+0.0857*O165+0.2967*P165-0.000124*R165-0.000724*S165) ->  | V165: =IF(M165=0,"",16.9+0.0864*O165+0.3815*Q165-0.000125*R165-0.000755*T165) ->  | W165: =IF(V144=0,"",95.4-0.0002*O165-0.0513*P165-0.000068*S165) ->  | Y165: dMO par CB | AA165: =IF($C$66="ER",Z165,0) -> 0 | AB165: ER | AF165: =IF($C$66="ER",AE165,0) -> 0 | AH165: =IF($C$66="ER",AG165,0) -> 0 | AJ165: =IF($C$66="ER",AI165,0) -> 0
B166: ensilé | C166: L | D166: 0 | E166: 0 | F166: 0 | G166: 0 | H166: 0 | I166: =IF(E166=0,"", 1.0405*E166 + 41.457) ->  | J166: =IF(E166=0,"", 1.369*E166 + 34.55) ->  | K166: =IF(E166=0,"", 0.00003*E166^2 -0.051*E166 + 53.265) ->  | L166: 0 | M166: 0 | N166: 1000 | O166: 0 | P166: 0 | Q166: 0 | R166: 0 | S166: 0 | T166: 0 | U166: =IF(E166=0,"",85.8-0.000229*S166) ->  | V166: =IF(M166=0,"",88.3-0.000181*T166) ->  | W166: =IF(V144=0,"",70.4+0.0086*O166+0.1247*P166-0.000436*S166) ->  | Y166: dMO par CB | AA166: =IF($C$66="L",Z166,0) -> 0 | AB166: L | AF166: =IF($C$66="L",AE166,0) -> 0 | AH166: =IF($C$66="L",AG166,0) -> 0 | AJ166: =IF($C$66="L",AI166,0) -> 0
B167: ensilé | C167: DF | D167: 0 | E167: 0 | F167: 0 | G167: 0 | H167: 0 | I167: =IF(E167=0,"",1.0842*E167 + 38.447) ->  | J167: =IF(E167=0,"", 1.7333*E167 - 34.721) ->  | K167: =IF(E167=0,"", 0.0015*E167^2 - 0.6373*E167 + 114.42) ->  | L167: 0 | M167: 0 | N167: 1000 | O167: 0 | P167: 0 | Q167: 0 | R167: 0 | S167: 0 | T167: 0 | U167: =IF(E167=0,"",54+0.078*O167+0.1557*P167-0.000111*R167-0.000457*S167) ->  | V167: =IF(M167=0,"",36.1+0.0759*O167+0.268*Q167-0.000107*R167-0.000572*T167) ->  | W167: =IF(V144=0,"",122.4-0.0213*O167-0.2763*P167+0.000294*S167) ->  | Y167: dMO par CB | AA167: =IF($C$66="DF",Z167,0) -> 0 | AB167: DF | AF167: =IF($C$66="DF",AE167,0) -> 0 | AH167: =IF($C$66="DF",AG167,0) -> 0 | AJ167: =IF($C$66="DF",AI167,0) -> 0
B168: ensilé | C168: DT | D168: 0 | E168: 0 | F168: 0 | G168: 0 | H168: 0 | I168: =IF(E168=0,"", 1.1428*E168 + 29.545) ->  | J168: =IF(E168=0,"", 1.7401*E168 - 37.006) ->  | K168: =IF(E168=0,"", 0.0008*E168^2 - 0.3693*E168 + 94.79) ->  | L168: 0 | M168: 0 | N168: 1000 | O168: 0 | P168: 0 | Q168: 0 | R168: 0 | S168: 0 | T168: 0 | U168: =IF(E168=0,"",37.4+0.1809*O168+0.1622*P168-0.00028*R168-0.0005*S168) ->  | V168: =IF(M168=0,"",24.2+0.1819*O168+0.1929*Q168-0.000282*R168-0.000355*T168) ->  | W168: =IF(V144=0,"",122.4-0.0213*O168-0.2763*P168+0.000294*S168) ->  | Y168: dMO par CB | AA168: =IF($C$66="DT",Z168,0) -> 0 | AB168: DT | AF168: =IF($C$66="DT",AE168,0) -> 0 | AH168: =IF($C$66="DT",AG168,0) -> 0 | AJ168: =IF($C$66="DT",AI168,0) -> 0
B169: ensilé | C169: IND | D169: 0 | E169: 0 | F169: 0 | G169: 0 | H169: 0 | I169: =IF(E169=0,"", 0.8941*E169 + 68.218) ->  | J169: =IF(E169=0,"", 1.6092*E169 + 18.402) ->  | K169: =IF(E169=0,"", -0.0031*E169^2 + 1.4524*E169 - 117.39) ->  | L169: 0 | M169: 0 | N169: 1000 | O169: 0 | P169: 0 | Q169: 0 | R169: 0 | S169: 0 | T169: 0 | U169: =IF(E169=0,"",51.8+0.1275*O169+0.1116*P169-0.000219*R169-0.000333*S169) ->  | V169: =IF(M169=0,"",45.7+0.1145*O169+0.1661*Q169-0.000199*R169-0.00039*T169) ->  | W169: =IF(V144=0,"",61.6+0.0386*O169+0.0965*P169-0.000274*S169) ->  | Y169: dMO par CB | AA169: =IF($C$66="INC",Z169,0) -> 0 | AB169: IND | AF169: =IF($C$66="INC",AE169,0) -> 0 | AH169: =IF($C$66="INC",AG169,0) -> 0 | AJ169: =IF($C$66="INC",AI169,0) -> 0
B170: ensilé | C170: dg | D170: 0 | E170: 0 | F170: 0 | G170: 0 | H170: 0 | I170: =IF(E170=0,"", 0.9309*E170 + 50.049) ->  | J170: =IF(E170=0,"", 1.2196*E170 + 143.54) ->  | K170: =IF(E170=0,"", 0.0004*E170^2 -0.2612*E170 +82.006) ->  | L170: 0 | M170: 0 | N170: 1000 | O170: 0 | P170: 0 | Q170: 0 | R170: 0 | S170: 0 | T170: 0 | U170: =IF(E170=0,"",94.5-0.000225*S170) ->  | V170: =IF(M170=0,"",99.2-0.000224*T170) ->  | Y170: dMO par CB | AA170: =IF($C$66="dg",Z170,0) -> 0 | AB170: dg | AF170: =IF($C$66="dg",AE170,0) -> 0 | AH170: =IF($C$66="dg",AG170,0) -> 0 | AJ170: =IF($C$66="dg",AI170,0) -> 0
B171: ensilé | C171: lp | D171: 0 | E171: 0 | F171: 0 | G171: 0 | H171: 0 | I171: =IF(E171=0,"", 1.122*E171 - 0.7226) ->  | J171: =IF(E171=0,"", 1.8755*E171 - 38.083) ->  | K171: =IF(E171=0,"", 0.0064*E171^2 - 3.4633*E171 + 538.08) ->  | L171: 0 | M171: 0 | N171: 1000 | O171: 0 | P171: 0 | Q171: 0 | R171: 0 | S171: 0 | T171: 0 | U171: =IF(E171=0,"",101.5-0.000352*S171) ->  | V171: =IF(M171=0,"",102.2-0.000293*T171) ->  | W171: =IF(W144=0,"",109.7-0.0205*O171-0.0766*P171-0.000151*S171) ->  | Y171: dMO par CB | AA171: =IF($C$66="lp",Z171,0) -> 0 | AB171: lp | AC171: =IF($J$60=3,W177,0) -> 0 | AD171: dMOmaïs LV99 | AF171: =IF($C$66="lp",AE171,0) -> 0 | AH171: =IF($C$66="lp",AG171,0) -> 0 | AJ171: =IF($C$66="lp",AI171,0) -> 0
B172: ensilé | C172: li | D172: 0 | E172: 0 | F172: 0 | G172: 0 | H172: 0 | I172: =IF(E172=0,"", 1.1351*E172 + 4.7669) ->  | J172: =IF(E172=0,"", 1.5509*E172 + 41.592) ->  | K172: =IF(E172=0,"", -0.0005*E172^2 + 0.1982*E172 + 62.47) ->  | L172: 0 | M172: 0 | N172: 1000 | O172: 0 | P172: 0 | Q172: 0 | R172: 0 | S172: 0 | T172: 0 | U172: =IF(E172=0,"",103.8-0.000449*S172) ->  | V172: =IF(M172=0,"",104.1-0.000341*T172) ->  | W172: =IF(W144=0,"",109.7-0.0205*O172-0.0766*P172-0.000151*S172) ->  | Y172: dMO par CB | AA172: =IF($C$66="li",Z172,0) -> 0 | AB172: li | AC172: =IF(AND($A$84=4,$J$60=1),U177,0) -> 0 | AD172: dMOmaïs LV06 par CB (INRA) | AF172: =IF($C$66="li",AE172,0) -> 0 | AH172: =IF($C$66="li",AG172,0) -> 0 | AJ172: =IF($C$66="li",AI172,0) -> 0
B173: ensilé | C173: ap | D173: 0 | E173: 0 | F173: 0 | G173: 0 | H173: 0 | I173: =IF(E173=0,"", 1.1742*E173 - 13.802) ->  | J173: =IF(E173=0,"", 1.9325*E173 - 56.89) ->  | K173: =IF(E173=0,"", 0.0016*E173^2 - 1.119*E173 + 218.21) ->  | L173: 0 | M173: 0 | N173: 1000 | O173: 0 | P173: 0 | Q173: 0 | R173: 0 | S173: 0 | T173: 0 | U173: =IF(E173=0,"",86.1+0.0573*O173-0.000291*S173) ->  | V173: =IF(M173=0,"",101.8+0.0173*O173-0.000293*T173) ->  | Y173: dMO par CB | AA173: =IF($C$66="ap",Z173,0) -> 0 | AB173: ap | AC173: =IF(AND($A$84=4,$J$60=2),U177,0) -> 0 | AD173: dMO maïs LV06 par ADFNDF (INRA) | AF173: =IF($C$66="ap",AE173,0) -> 0 | AH173: =IF($C$66="ap",AG173,0) -> 0 | AJ173: =IF($C$66="ap",AI173,0) -> 0
B174: ensilé | C174: tr | D174: 0 | E174: 0 | F174: 0 | G174: 0 | H174: 0 | I174: =IF(E174=0,"", 1.2468*E174 + 18.486) ->  | J174: =IF(E174=0,"", 1.4135*E174 - 7.8475) ->  | K174: =IF(E174=0,"", -0.0035*E174^2 + 1.2495*E174 - 80.005) ->  | L174: 0 | M174: 0 | N174: 1000 | O174: 0 | P174: 0 | Q174: 0 | R174: 0 | S174: 0 | T174: 0 | U174: =IF(E174=0,"",86.5-0.000261*S174) ->  | V174: =IF(M174=0,"",87.1-0.000152*T174) ->  | Y174: dMO par CB | AA174: =IF($C$66="tr",Z174,0) -> 0 | AB174: tr | AC174: =IF(AND($A$84=1,$J$60=1),100*((((N177*U177/100)*1.2812)-180.35)/N177),0) ->  | AD174: dMOmaïscorr. Par MOD dMOCB: 1.2812 x MOD CB -180.35 | AF174: =IF($C$66="tr",AE174,0) -> 0 | AH174: =IF($C$66="tr",AG174,0) -> 0 | AJ174: =IF($C$66="tr",AI174,0) -> 0
B175: ensilé | C175: tp | D175: 0 | E175: 0 | F175: 0 | G175: 0 | H175: 0 | I175: =IF(E175=0,"", 1.0699*E175 + 38.695) ->  | J175: =IF(E175=0,"", 1.1597*E175 + 56.057) ->  | K175: =IF(E175=0,"", -0.0001*E175^2 + 0.0244*E175 +37.2) ->  | L175: 0 | M175: 0 | N175: 1000 | O175: 0 | P175: 0 | Q175: 0 | R175: 0 | S175: 0 | T175: 0 | U175: =IF(E175=0,"",82.5-0.000189*S175) ->  | V175: =IF(M175=0,"",84.1-0.000141*T175) ->  | Y175: dMO par CB | AA175: =IF($C$66="tp",Z175,0) -> 0 | AB175: tp | AC175: =IF(AND($A$84=1,$J$60=2),100*((((N177*V177/100)*1.2653)-156.12)/N177),0) -> 0 | AD175: dMOmaïs corr. Par MOD dMOADF : 1.2653 x MOD ADF - 156.12 | AF175: =IF($C$66="tp",AE175,0) -> 0 | AH175: =IF($C$66="tp",AG175,0) -> 0 | AJ175: =IF($C$66="tp",AI175,0) -> 0
B176: ensilé | C176: luz | D176: 0 | E176: 0 | F176: 0 | G176: 0 | H176: 0 | I176: =IF(E176=0,"", 1.0188*E176 + 49.137) ->  | J176: =IF(E176=0,"", 1.1564*E176 + 31.521) ->  | K176: =IF(E176=0,"", 0.00002*E176^2 - 0.0342*E176 + 25.721) ->  | L176: 0 | M176: 0 | N176: 1000 | O176: 0 | P176: 0 | Q176: 0 | R176: 0 | S176: 0 | T176: 0 | U176: =IF(E176=0,"",72.3+0.0249*O176-0.000128*S176) ->  | V176: =IF(M176=0,"",65.3+0.0517*O176-0.000088*T176) ->  | W176: =IF(W144=0,"",80.5+0.0133*O176-0.0051*P176-0.000135*S176) ->  | Y176: dMO par CB | AA176: =IF($C$66="LUZ",Z176,0) -> 0 | AB176: luz | AC176: =IF(AND($A$84=2,$J$60<3),100*((-1016.7+($J$115*1.8)+(($J$109*$J$117/1000)*1.106)+(($M$109*$M$115/1000)*(-3.01))+(($M$110*$M$111/1000)*(-0.0013))+10.3)/$J$115),0) -> 0 | AD176: dMOmaïs PE équation ALP12 | AF176: =IF($C$66="LUZ",AE176,0) -> 0 | AH176: =IF($C$66="LUZ",AG176,0) -> 0 | AJ176: =IF($C$66="LUZ",AI176,0) -> 0
B177: ensilé | C177: maïs | D177: 0 | E177: 0 | F177: 0 | G177: 0 | H177: 0 | I177: =IF(E177=0,"",1.1218*E177 + 6.4254) ->  | J177: =IF(E177=0,"", 1.4325*E177 + 157.81) ->  | K177: =IF(E177=0,"", -0.0003*E177^2 +0.1992*E177 -14.604) ->  | L177: 0 | M177: 0 | N177: 1000 | O177: 0 | P177: 0 | Q177: 0 | R177: 0 | S177: 0 | T177: 0 | U177: =IF(E177=0,"",79.4+0.0652*O177-0.0591*P177) ->  | V177: =IF(M177=0,"",IF(L177=0,"",75.7+0.0701*O177+0.0156*L177/N177*1000-0.072*Q177)) ->  | W177: =IF(W144=0,"",97.6-0.1711*P177+0.00028*S177) ->  | Y177: dMO par CB | AA177: =IF(Z177="","",IF($C$66="MAIS",SUM(AC171:AC177),0)) ->  | AB177: maïs | AC177: =IF(AND($A$84=3,$J$60<3),100*((-1016.7+($J$115*1.8)+(($J$109*$J$117/1000)*1.106)+(($M$109*$M$115/1000)*(-3.01))+(($M$110*$M$111/1000)*(-0.0013))-10.3)/$J$115),0) -> 0 | AD177: dMOmaïs pas PE équation ALP12 | AF177: =IF($C$66="MAIS",AE177,0) -> 0 | AH177: =IF($C$66="MAIS",AG177,0) -> 0 | AJ177: =IF($C$66="MAIS",AI177,0) -> 0
B178: séché | C178: G | D178: 0 | E178: 0 | F178: 0 | G178: 0 | H178: 0 | I178: =IF(E178=0,"", 0.9804*E178 + 36.115) ->  | J178: =IF(E178=0,"", 1.577*E178 + 73.373) ->  | K178: =IF(E178=0,"", -0.0006*E178^2 + 0.2497*E178 + 60.394) ->  | L178: 0 | M178: 0 | N178: 1000 | O178: 0 | P178: 0 | Q178: 0 | R178: 0 | S178: 0 | T178: 0 | U178: =IF(E178=0,"",28.5+0.1769*O178+0.173*P178-0.000313*R178-0.000351*S178) ->  | V178: =IF(M178=0,"",20.4+0.1769*O178+0.209*Q178-0.000312*R178-0.000371*T178) ->  | W178: =IF(V144=0,"",116.1-0.000075*R178-0.1976*P178+0.000132*S178) ->  | Y178: dMO par CB | Z178: =IF($C$60="SEC",X178,"") ->  | AA178: =IF($C$66="G",Z178,0) ->  | AB178: G | AE178: =IF($C$60="SEC",I178,"") ->  | AF178: =IF($C$66="G",AE178,0) ->  | AG178: =IF($C$60="SEC",J178,"") ->  | AH178: =IF($C$66="G",AG178,0) ->  | AI178: =IF($C$60="SEC",K178,"") ->  | AJ178: =IF($C$66="G",AI178,0) -> 
B179: séché | C179: GR | D179: 0 | E179: 0 | F179: 0 | G179: 0 | H179: 0 | I179: =IF(E179=0,"", 1.0684*E179 + 12.246) ->  | J179: =IF(E179=0,"", 1.9027*E179 - 15.55) ->  | K179: =IF(E179=0,"", 0.0023*E179^2 - 1.3048*E179 + 306.95) ->  | L179: 0 | M179: 0 | N179: 1000 | O179: 0 | P179: 0 | Q179: 0 | R179: 0 | S179: 0 | T179: 0 | U179: =IF(E179=0,"",14.8+0.1292*O179+0.3494*P179-0.000226*R179-0.000713*S179) ->  | V179: =IF(M179=0,"",6.6+0.1292*O179+0.3694*Q179-0.000226*R179-0.00067*T179) ->  | W179: =IF(V144=0,"",75+0.0117*O179+0.0288*P179-0.000175*S179) ->  | Y179: dMO par CB | Z179: =IF($C$60="SEC",X179,"") ->  | AA179: =IF($C$66="GR",Z179,0) -> 0 | AB179: GR | AF179: =IF($C$66="GR",AE179,0) -> 0 | AH179: =IF($C$66="GR",AG179,0) -> 0 | AJ179: =IF($C$66="GR",AI179,0) -> 0
B180: séché | C180: E | D180: 0 | E180: 0 | F180: 0 | G180: 0 | H180: 0 | I180: =IF(E180=0,"", 0.9673*E180 + 43.126) ->  | J180: =IF(E180=0,"", 1.6443*E180 + 38.422) ->  | K180: =IF(E180=0,"", -0.0004*E180^2 + 0.1396*E180 + 78.539) ->  | L180: 0 | M180: 0 | N180: 1000 | O180: 0 | P180: 0 | Q180: 0 | R180: 0 | S180: 0 | T180: 0 | U180: =IF(E180=0,"",35.1+0.171*O180+0.1408*P180-0.000302*R180-0.000315*S180) ->  | V180: =IF(M180=0,"",26.9+0.1711*O180+0.1809*Q180-0.000302*R180-0.000343*T180) ->  | W180: =IF(V144=0,"",110.7-0.0476*O180-0.121*P180) ->  | Y180: dMO par CB | AA180: =IF($C$66="E",Z180,0) -> 0 | AB180: E | AF180: =IF($C$66="E",AE180,0) -> 0 | AH180: =IF($C$66="E",AG180,0) -> 0 | AJ180: =IF($C$66="E",AI180,0) -> 0
B181: séché | C181: ER | D181: 0 | E181: 0 | F181: 0 | G181: 0 | H181: 0 | I181: =IF(E181=0,"", 1.0747*E181 + 16.812) ->  | J181: =IF(E181=0,"", 1.9253*E181 - 31.412) ->  | K181: =IF(E181=0,"", 0.0007*E181^2 - 0.3657*E181 + 166.76) ->  | L181: 0 | M181: 0 | N181: 1000 | O181: 0 | P181: 0 | Q181: 0 | R181: 0 | S181: 0 | T181: 0 | U181: =IF(E181=0,"",35.8+0.092*O181+0.2539*P181-0.000162*R181-0.000609*S181) ->  | V181: =IF(M181=0,"",27.3+0.0924*O181+0.2846*Q181-0.000162*R181-0.000581*T181) ->  | W181: =IF(V144=0,"",91.6-0.0072*O181-0.0513*P181-0.000055*S181) ->  | Y181: dMO par CB | AA181: =IF($C$66="ER",Z181,0) -> 0 | AB181: ER | AF181: =IF($C$66="ER",AE181,0) -> 0 | AH181: =IF($C$66="ER",AG181,0) -> 0 | AJ181: =IF($C$66="ER",AI181,0) -> 0
B182: séché | C182: L | D182: 0 | E182: 0 | F182: 0 | G182: 0 | H182: 0 | I182: =IF(E182=0,"", 1.0964*E182 + 20.95) ->  | J182: =IF(E182=0,"", 1.547*E182 + 27.134) ->  | K182: =IF(E182=0,"", 0.001*E182^2 -0.4922*E182 + 153.24) ->  | L182: 0 | M182: 0 | N182: 1000 | O182: 0 | P182: 0 | Q182: 0 | R182: 0 | S182: 0 | T182: 0 | U182: =IF(E182=0,"",80.4-0.000189*S182) ->  | V182: =IF(M182=0,"",81.6-0.000149*T182) ->  | W182: =IF(V144=0,"",118.8-0.000229*R182-0.1546*P182) ->  | Y182: dMO par CB | AA182: =IF($C$66="L",Z182,0) -> 0 | AB182: L | AF182: =IF($C$66="L",AE182,0) -> 0 | AH182: =IF($C$66="L",AG182,0) -> 0 | AJ182: =IF($C$66="L",AI182,0) -> 0
B183: séché | C183: DF | D183: 0 | E183: 0 | F183: 0 | G183: 0 | H183: 0 | I183: =IF(E183=0,"", 0.9484*E183 + 54.064) ->  | J183: =IF(E183=0,"", 1.8063*E183 - 23.954) ->  | K183: =IF(E183=0,"", 0.0004*E183^2 - 0.266*E183 + 140.2) ->  | L183: 0 | M183: 0 | N183: 1000 | O183: 0 | P183: 0 | Q183: 0 | R183: 0 | S183: 0 | T183: 0 | U183: =IF(E183=0,"",52.2+0.0845*O183+0.1341*P183-0.000147*R183-0.000385*S183) ->  | V183: =IF(M183=0,"",41.7+0.0829*O183+0.1981*Q183-0.000143*R183-0.000439*T183) ->  | W183: =IF(V144=0,"",133.5-0.0638*O183-0.3265*P183+0.000369*S183) ->  | Y183: dMO par CB | AA183: =IF($C$66="DF",Z183,0) -> 0 | AB183: DF | AF183: =IF($C$66="DF",AE183,0) -> 0 | AH183: =IF($C$66="DF",AG183,0) -> 0 | AJ183: =IF($C$66="DF",AI183,0) -> 0
B184: séché | C184: DT | D184: 0 | E184: 0 | F184: 0 | G184: 0 | H184: 0 | I184: =IF(E184=0,"", 1.2405*E184 + 1.1376) ->  | J184: =IF(E184=0,"", 1.8784*E184 - 37.912) ->  | K184: =IF(E184=0,"", 0.0004*E184^2 - 0.2928*E184 + 153.75) ->  | L184: 0 | M184: 0 | N184: 1000 | O184: 0 | P184: 0 | Q184: 0 | R184: 0 | S184: 0 | T184: 0 | U184: =IF(E184=0,"",37.6+0.194*O184+0.1411*P184-0.000363*R184-0.000425*S184) ->  | V184: =IF(M184=0,"",29.9+0.1947*O184+0.1464*Q184-0.000365*R184-0.000278*T184) ->  | W184: =IF(V144=0,"",133.5-0.0638*O184-0.3265*P184+0.000369*S184) ->  | Y184: dMO par CB | AA184: =IF($C$66="DT",Z184,0) -> 0 | AB184: DT | AF184: =IF($C$66="DT",AE184,0) -> 0 | AH184: =IF($C$66="DT",AG184,0) -> 0 | AJ184: =IF($C$66="DT",AI184,0) -> 0
B185: séché | C185: IND | D185: 0 | E185: 0 | F185: 0 | G185: 0 | H185: 0 | I185: =IF(E185=0,"", 1.0607*E185 + 25.317) ->  | J185: =IF(E185=0,"", 1.5436*E193 + 68.821) ->  | K185: =IF(E185=0,"", -0.003*E185^2 + 1.4813*E185 - 73.603) ->  | L185: 0 | M185: 0 | N185: 1000 | O185: 0 | P185: 0 | Q185: 0 | R185: 0 | S185: 0 | T185: 0 | U185: =IF(E185=0,"",50.6+0.136*O185+0.0952*P185-0.000282*R185-0.00028*S185) ->  | V185: =IF(M185=0,"",48.5+0.121*O185+0.1214*Q185-0.000254*R185-0.0003*T185) ->  | W185: =IF(V144=0,"",70.6+0.0815*O185-0.000173*R185-0.000109*S185) ->  | Y185: dMO par CB | AA185: =IF($C$66="INC",Z185,0) -> 0 | AB185: IND | AF185: =IF($C$66="INC",AE185,0) -> 0 | AH185: =IF($C$66="INC",AG185,0) -> 0 | AJ185: =IF($C$66="INC",AI185,0) -> 0
B186: séché | C186: dg | D186: 0 | E186: 0 | F186: 0 | G186: 0 | H186: 0 | I186: =IF(E186=0,"", 0.9741*E186 + 31.782) ->  | J186: =IF(E186=0,"", 1.358*E186 + 156) ->  | K186: =IF(E186=0,"", 0.0011*E186^2 -0.6995*E186 +195.45) ->  | L186: 0 | M186: 0 | N186: 1000 | O186: 0 | P186: 0 | Q186: 0 | R186: 0 | S186: 0 | T186: 0 | U186: =IF(E186=0,"",87.6-0.000187*S186) ->  | V186: =IF(M186=0,"",90.1-0.00018*T186) ->  | Y186: dMO par CB | AA186: =IF($C$66="dg",Z186,0) -> 0 | AB186: dg | AF186: =IF($C$66="dg",AE186,0) -> 0 | AH186: =IF($C$66="dg",AG186,0) -> 0 | AJ186: =IF($C$66="dg",AI186,0) -> 0
B187: séché | C187: lp | D187: 0 | E187: 0 | F187: 0 | G187: 0 | H187: 0 | I187: =IF(E187=0,"", 1.1871*E187 - 25.321) ->  | J187: =IF(E187=0,"", 2.0965*E187 - 52.379) ->  | K187: =IF(E187=0,"", 0.0109*E187^2 - 6.0701*E187 + 988.42) ->  | L187: 0 | M187: 0 | N187: 1000 | O187: 0 | P187: 0 | Q187: 0 | R187: 0 | S187: 0 | T187: 0 | U187: =IF(E187=0,"",93.5-0.000291*S187) ->  | V187: =IF(M187=0,"",92.3-0.000236*T187) ->  | W187: =IF(W144=0,"",131.1-0.0159*O187-0.3102*P187+0.000369*S187) ->  | Y187: dMO par CB | AA187: =IF($C$66="lp",Z187,0) -> 0 | AB187: lp | AF187: =IF($C$66="lp",AE187,0) -> 0 | AH187: =IF($C$66="lp",AG187,0) -> 0 | AJ187: =IF($C$66="lp",AI187,0) -> 0
B188: séché | C188: li | D188: 0 | E188: 0 | F188: 0 | G188: 0 | H188: 0 | I188: =IF(E188=0,"", 1.2035*E188 - 20.333) ->  | J188: =IF(E188=0,"", 1.7517*E188 + 34.706) ->  | K188: =IF(E188=0,"", -0.0004*E188^2 + 0.1567*E188 + 154.25) ->  | L188: 0 | M188: 0 | N188: 1000 | O188: 0 | P188: 0 | Q188: 0 | R188: 0 | S188: 0 | T188: 0 | U188: =IF(E188=0,"",95.5-0.00037*S188) ->  | V188: =IF(M188=0,"",93.9-0.000277*T188) ->  | W188: =IF(W144=0,"",131.1-0.0159*O188-0.3102*P188+0.000369*S188) ->  | Y188: dMO par CB | AA188: =IF($C$66="li",Z188,0) -> 0 | AB188: li | AF188: =IF($C$66="li",AE188,0) -> 0 | AH188: =IF($C$66="li",AG188,0) -> 0 | AJ188: =IF($C$66="li",AI188,0) -> 0
B189: séché | C189: ap | D189: 0 | E189: 0 | F189: 0 | G189: 0 | H189: 0 | I189: =IF(E189=0,"", 1.2149*E189 - 32.263) ->  | J189: =IF(E189=0,"", 2.1722*E189 - 76.853) ->  | K189: =IF(E189=0,"", 0.0032*E189^2 - 2.2697*E189 + 456.68) ->  | L189: 0 | M189: 0 | N189: 1000 | O189: 0 | P189: 0 | Q189: 0 | R189: 0 | S189: 0 | T189: 0 | U189: =IF(E189=0,"",98-0.000322*S189) ->  | V189: =IF(M189=0,"",95.8-0.000249*T189) ->  | Y189: dMO par CB | AA189: =IF($C$66="ap",Z189,0) -> 0 | AB189: ap | AF189: =IF($C$66="ap",AE189,0) -> 0 | AH189: =IF($C$66="ap",AG189,0) -> 0 | AJ189: =IF($C$66="ap",AI189,0) -> 0
B190: séché | C190: tr | D190: 0 | E190: 0 | F190: 0 | G190: 0 | H190: 0 | I190: =IF(E190=0,"", 1.2727*E190 + 3.5455) ->  | J190: =IF(E190=0,"", 1.5621*E190 - 13.457) ->  | K190: =IF(E190=0,"", -0.0069*E190^2 + 2.517*E190 - 160.32) ->  | L190: 0 | M190: 0 | N190: 1000 | O190: 0 | P190: 0 | Q190: 0 | R190: 0 | S190: 0 | T190: 0 | U190: =IF(E190=0,"",81-0.000216*S190) ->  | V190: =IF(M190=0,"",80.9-0.000129*T190) ->  | Y190: dMO par CB | AA190: =IF($C$66="tr",Z190,0) -> 0 | AB190: tr | AF190: =IF($C$66="tr",AE190,0) -> 0 | AH190: =IF($C$66="tr",AG190,0) -> 0 | AJ190: =IF($C$66="tr",AI190,0) -> 0
B191: séché | C191: tp | D191: 0 | E191: 0 | F191: 0 | G191: 0 | H191: 0 | I191: =IF(E191=0,"", 1.125*E191 + 17.991) ->  | J191: =IF(E191=0,"", 1.3119*E191 + 52.525) ->  | K191: =IF(E191=0,"", -0.002*E191^2 -0.0002*E191 +89.572) ->  | L191: 0 | M191: 0 | N191: 1000 | O191: 0 | P191: 0 | Q191: 0 | R191: 0 | S191: 0 | T191: 0 | U191: =IF(E191=0,"",77.6-0.000156*S191) ->  | V191: =IF(M191=0,"",78.3-0.000116*T191) ->  | Y191: dMO par CB | AA191: =IF($C$66="tp",Z191,0) -> 0 | AB191: tp | AF191: =IF($C$66="tp",AE191,0) -> 0 | AH191: =IF($C$66="tp",AG191,0) -> 0 | AJ191: =IF($C$66="tp",AI191,0) -> 0
B192: séché | C192: luz | D192: 0 | E192: 0 | F192: 0 | G192: 0 | H192: 0 | I192: =IF(E192=0,"", 1.057*E192 + 32.991) ->  | J192: =IF(E192=0,"", 1.2979*E192 + 27.166) ->  | K192: =IF(E192=0,"",0.0001*E192^2 - 0.1174*E192 + 68.617) ->  | L192: 0 | M192: 0 | N192: 1000 | O192: 0 | P192: 0 | Q192: 0 | R192: 0 | S192: 0 | T192: 0 | U192: =IF(E192=0,"",76.8-0.000131*S192) ->  | V192: =IF(M192=0,"",78.1-0.000107*T192) ->  | W192: =IF(W144=0,"",96.8-0.0218*O192-0.0655*P192-0.000057*S192) ->  | Y192: dMO par CB | AA192: =IF($C$66="LUZ",Z192,0) -> 0 | AB192: luz | AF192: =IF($C$66="LUZ",AE192,0) -> 0 | AH192: =IF($C$66="LUZ",AG192,0) -> 0 | AJ192: =IF($C$66="LUZ",AI192,0) -> 0
B193: séché | C193: maïs | D193: 0 | E193: 0 | F193: 0 | G193: 0 | H193: 0 | I193: =IF(E193=0,"","pas d'équation") ->  | J193: =IF(E193=0,"","pas d'équation") ->  | K193: =IF(E193=0,"","pas d'équation") ->  | L193: 0 | M193: 0 | X193: 0 | Y193: dMO par CB | Z193: =IF($C$60="SEC",X193,"") ->  | AA193: =IF($C$66="MAIS",Z193,0) -> 0 | AB193: maïs | AF193: =IF($C$66="MAIS",AE193,0) -> 0 | AH193: =IF($C$66="MAIS",AG193,0) -> 0 | AJ193: =IF($C$66="MAIS",AI193,0) -> 0
B194: dzu | C194: G | D194: 0 | E194: 0 | F194: 0 | G194: 0 | H194: 0 | I194: =IF(E194=0,"", 1.0106*E194 + 40.486) ->  | J194: =IF(E194=0,"", 1.7104*E194 + 59.376) ->  | K194: =IF(E194=0,"", -0.0011*E194^2 + 0.5214*E194 +31.798) ->  | L194: 0 | M194: 0 | N194: 1000 | O194: =D194/N194*1000 -> 0 | P194: =E194/N194*1000 -> 0 | Q194: 0 | R194: 0 | S194: 0 | T194: 0 | U194: =IF(E194=0,"",65.3+0.0869*O194+0.0692*P194-0.000175*R194-0.000299*S194) ->  | V194: =IF(F194=0,"",57.4+0.1132*O194+0.1171*Q194-0.000271*R194-0.000336*T194) ->  | W194: =IF(V144=0,"",82.5-0.000145*S194) ->  | Y194: dMO par CB | Z194: =IF($C$60="DZU",X194,"") ->  | AA194: =IF($C$66="G",Z194,0) ->  | AB194: G | AE194: =IF($C$60="DZU",I194,"") ->  | AF194: =IF($C$66="G",AE194,0) ->  | AG194: =IF($C$60="DZU",J194,"") ->  | AH194: =IF($C$66="G",AG194,0) ->  | AI194: =IF($C$60="DZU",K194,"") ->  | AJ194: =IF($C$66="G",AI194,0) -> 
B195: dzu | C195: GR | D195: 0 | E195: 0 | F195: 0 | G195: 0 | H195: 0 | I195: =IF(E195=0,"",1.0697*E195 + 25.013) ->  | J195: =IF(E195=0,"", 1.889*E195 + 11.584) ->  | K195: =IF(E195=0,"", 0.0023*E195^2 - 1.2472*E195 + 298.7) ->  | L195: 0 | M195: 0 | N195: 1000 | O195: 0 | P195: 0 | Q195: 0 | R195: 0 | S195: 0 | T195: 0 | U195: =IF(E195=0,"",63.8+0.1905*P195-0.000602*S195) ->  | V195: =IF(F195=0,"",41.4+0.3186*Q195-0.000707*T195) ->  | W195: =IF(V144=0,"",82.7-0.000124*S195) ->  | Y195: dMO par CB | Z195: =IF($C$60="DZU",X195,"") ->  | AA195: =IF($C$66="GR",Z195,0) -> 0 | AB195: GR | AE195: =IF($C$60="DZU",I195,"") ->  | AF195: =IF($C$66="GR",AE195,0) -> 0 | AH195: =IF($C$66="GR",AG195,0) -> 0 | AJ195: =IF($C$66="GR",AI195,0) -> 0
B196: dzu | C196: E | D196: 0 | E196: 0 | F196: 0 | G196: 0 | H196: 0 | I196: =IF(E196=0,"", 1.0213*E196 + 42.825) ->  | J196: =IF(E196=0,"", 1.7604*E196 + 32.268) ->  | K196: =IF(E196=0,"", -0.0008*E196^2 + 0.3532*E196 +57.161) ->  | L196: 0 | M196: 0 | N196: 1000 | O196: 0 | P196: 0 | Q196: 0 | R196: 0 | S196: 0 | T196: 0 | U196: =IF(E196=0,"",80.8+0.0383*P196-0.000285*S196) ->  | V196: =IF(F196=0,"",66.4+0.1432*Q196-0.000404*T196) ->  | W196: =IF(V144=0,"",84.1-0.00003*R196-0.000145*S196) ->  | Y196: dMO par CB | AA196: =IF($C$66="E",Z196,0) -> 0 | AB196: E | AF196: =IF($C$66="E",AE196,0) -> 0 | AH196: =IF($C$66="E",AG196,0) -> 0 | AJ196: =IF($C$66="E",AI196,0) -> 0
B197: dzu | C197: ER | D197: 0 | E197: 0 | F197: 0 | G197: 0 | H197: 0 | I197: =IF(E197=0,"", 1.022*E197 + 42.236) ->  | J197: =IF(E197=0,"", 1.8612*E197 + 7.4654) ->  | K197: =IF(E197=0,"", 0.0011*E197^2 - 0.5642*E197 + 193.99) ->  | L197: 0 | M197: 0 | N197: 1000 | O197: 0 | P197: 0 | Q197: 0 | R197: 0 | S197: 0 | T197: 0 | U197: =IF(E197=0,"",63.2+0.1888*P197-0.00061*S197) ->  | V197: =IF(F197=0,"",42.7+0.309*Q197-0.000697*T197) ->  | W197: =IF(V144=0,"",84.4-0.0029*O197-0.000124*S197) ->  | Y197: dMO par CB | AA197: =IF($C$66="ER",Z197,0) -> 0 | AB197: ER | AF197: =IF($C$66="ER",AE197,0) -> 0 | AH197: =IF($C$66="ER",AG197,0) -> 0 | AJ197: =IF($C$66="ER",AI197,0) -> 0
B198: dzu | C198: L | D198: 0 | E198: 0 | F198: 0 | G198: 0 | H198: 0 | I198: =IF(E198=0,"", 1.0657*E198 + 41.069) ->  | J198: =IF(E198=0,"", 1.5277*E198 + 51.073) ->  | K198: =IF(E198=0,"", 0.0007*E198^2 -0.3378*E198 + 140.87) ->  | L198: 0 | M198: 0 | N198: 1000 | O198: 0 | P198: 0 | Q198: 0 | R198: 0 | S198: 0 | T198: 0 | U198: =IF(E198=0,"",74.8+0.0693*P198-0.000363*S198) ->  | V198: =IF(F198=0,"",68.3+0.1159*Q198-0.00036*T198) ->  | W198: =IF(V144=0,"",91.5-0.0336*O198-0.00018*S198) ->  | Y198: dMO par CB | AA198: =IF($C$66="L",Z198,0) -> 0 | AB198: L | AF198: =IF($C$66="L",AE198,0) -> 0 | AH198: =IF($C$66="L",AG198,0) -> 0 | AJ198: =IF($C$66="L",AI198,0) -> 0
B199: dzu | C199: DF | D199: 0 | E199: 0 | F199: 0 | G199: 0 | H199: 0 | I199: =IF(E199=0,"", 1.1106*E199 + 38.491) ->  | J199: =IF(E199=0,"", 1.9114*E199 - 18.378) ->  | K199: =IF(E199=0,"", 0.0031*E199^2 - 1.2797*E199 + 238.44) ->  | L199: 0 | M199: 0 | N199: 1000 | O199: 0 | P199: 0 | Q199: 0 | R199: 0 | S199: 0 | T199: 0 | U199: =IF(E199=0,"",70.2+0.1057*P199-0.000414*S199) ->  | V199: =IF(F199=0,"",50.21+0.2478*Q199-0.000582*T199) ->  | W199: =IF(V144=0,"",82-0.000232*S199) ->  | Y199: dMO par CB | AA199: =IF($C$66="DF",Z199,0) -> 0 | AB199: DF | AF199: =IF($C$66="DF",AE199,0) -> 0 | AH199: =IF($C$66="DF",AG199,0) -> 0 | AJ199: =IF($C$66="DF",AI199,0) -> 0
B200: dzu | C200: DT | D200: 0 | E200: 0 | F200: 0 | G200: 0 | H200: 0 | I200: =IF(E200=0,"", 1.1808*E200 + 28.253) ->  | J200: =IF(E200=0,"", 1.9087*E200 - 18.369) ->  | K200: =IF(E200=0,"", 0.0013*E200^2 - 0.6398*E200 + 190.2) ->  | L200: 0 | M200: 0 | N200: 1000 | O200: 0 | P200: 0 | Q200: 0 | R200: 0 | S200: 0 | T200: 0 | U200: =IF(E200=0,"",56.6+0.1229*O200+0.1021*P200-0.000237*R200-0.000459*S200) ->  | V200: =IF(F200=0,"",48.4+0.2396*O200+0.0452*Q200-0.000507*R200-0.0002*T200) ->  | W200: =IF(V144=0,"",82-0.000323*S200) ->  | Y200: dMO par CB | AA200: =IF($C$66="DT",Z200,0) -> 0 | AB200: DT | AF200: =IF($C$66="DT",AE200,0) -> 0 | AH200: =IF($C$66="DT",AG200,0) -> 0 | AJ200: =IF($C$66="DT",AI200,0) -> 0
B201: dzu | C201: IND | D201: 0 | E201: 0 | F201: 0 | G201: 0 | H201: 0 | I201: =IF(E201=0,"", 0.912*E201 + 69.778) ->  | J201: =IF(E201=0,"", 1.9765*E201 - 28.485) ->  | K201: =IF(E201=0,"", -0.0061*E201^2 + 2.7316*E201 - 190.18) ->  | L201: 0 | M201: 0 | N201: 1000 | O201: 0 | P201: 0 | Q201: 0 | R201: 0 | S201: 0 | T201: 0 | U201: =IF(E201=0,"",48.6+0.1603*O201+0.071*P201-0.000344*R201-0.00025*S201) ->  | V201: =IF(F201=0,"",42.8+0.145*O201+0.1241*Q201-0.00032*R201-0.000305*T201) ->  | W201: =IF(V144=0,"",76.6+0.0165*O201-0.000097*S201) ->  | Y201: dMO par CB | AA201: =IF($C$66="INC",Z201,0) -> 0 | AB201: IND | AF201: =IF($C$66="INC",AE201,0) -> 0 | AH201: =IF($C$66="INC",AG201,0) -> 0 | AJ201: =IF($C$66="INC",AI201,0) -> 0
B202: dzu | C202: dg | D202: 0 | E202: 0 | F202: 0 | G202: 0 | H202: 0 | I202: =IF(E202=0,"", 0.9485*E202 + 50.603) ->  | J202: =IF(E202=0,"", 1.3544*E202 + 173.43) ->  | K202: =IF(E202=0,"", 0.0003*E202^2 -0.2328*E202+130.78) ->  | L202: 0 | M202: 0 | N202: 1000 | O202: 0 | P202: 0 | Q202: 0 | R202: 0 | S202: 0 | T202: 0 | U202: =IF(E202=0,"",0) ->  | W202: =IF(V144=0,"",0) ->  | Y202: dMO par CB | AA202: =IF($C$66="dg",Z202,0) -> 0 | AB202: dg | AF202: =IF($C$66="dg",AE202,0) -> 0 | AH202: =IF($C$66="dg",AG202,0) -> 0 | AJ202: =IF($C$66="dg",AI202,0) -> 0
B203: dzu | C203: lp | D203: 0 | E203: 0 | F203: 0 | G203: 0 | H203: 0 | I203: =IF(E203=0,"", 1.1394*E203 + 0.7383) ->  | J203: =IF(E203=0,"", 2.0725*E203 - 20.701) ->  | K203: =IF(E203=0,"", 0.012*E203^2 - 6.3581*E203 + 991.84) ->  | L203: 0 | M203: 0 | N203: 1000 | O203: 0 | P203: 0 | Q203: 0 | R203: 0 | S203: 0 | T203: 0 | Y203: dMO par CB | AA203: =IF($C$66="lp",Z203,0) -> 0 | AB203: lp | AC203: =IF($J$60=3,W209,0) -> 0 | AD203: dMOmaïs LV99 | AF203: =IF($C$66="lp",AE203,0) -> 0 | AH203: =IF($C$66="lp",AG203,0) -> 0 | AJ203: =IF($C$66="lp",AI203,0) -> 0
B204: dzu | C204: li | D204: 0 | E204: 0 | F204: 0 | G204: 0 | H204: 0 | I204: =IF(E204=0,"", 1.1721*E204 + 2.3354) ->  | J204: =IF(E204=0,"", 1.722*E204 + 63.087) ->  | K204: =IF(E204=0,"", -0.0009*E204^2 + 0.3681*E204 + 141.55) ->  | L204: 0 | M204: 0 | N204: 1000 | O204: 0 | P204: 0 | Q204: 0 | R204: 0 | S204: 0 | T204: 0 | Y204: dMO par CB | AA204: =IF($C$66="li",Z204,0) -> 0 | AB204: li | AC204: =IF(AND($A$84=4,$J$60=1),U208,0) -> 0 | AD204: dMOmaïs LV06 par CB (INRA) | AF204: =IF($C$66="li",AE204,0) -> 0 | AH204: =IF($C$66="li",AG204,0) -> 0 | AJ204: =IF($C$66="li",AI204,0) -> 0
B205: dzu | C205: ap | D205: 0 | E205: 0 | F205: 0 | G205: 0 | H205: 0 | I205: =IF(E205=0,"", 1.1677*E205 - 4.0533) ->  | J205: =IF(E205=0,"",2.1029*E205 - 30.814) ->  | K205: =IF(E205=0,"", 0.004*E205^2 - 2.6453*E205 + 498.69) ->  | L205: 0 | M205: 0 | N205: 1000 | O205: 0 | P205: 0 | Q205: 0 | R205: 0 | S205: 0 | T205: 0 | U205: =IF(E205=0,"",0) ->  | Y205: dMO par CB | AA205: =IF($C$66="ap",Z205,0) -> 0 | AB205: ap | AC205: =IF(AND($A$84=4,$J$60=2),U208,0) -> 0 | AD205: dMO maïs LV06 par ADFNDF (INRA) | AF205: =IF($C$66="ap",AE205,0) -> 0 | AH205: =IF($C$66="ap",AG205,0) -> 0 | AJ205: =IF($C$66="ap",AI205,0) -> 0
B206: dzu | C206: tr | D206: 0 | E206: 0 | F206: 0 | G206: 0 | H206: 0 | I206: =IF(E206=0,"", 1.2857*E206 + 18.429) ->  | J206: =IF(E206=0,"", 1.5594*E206 + 8.3748) ->  | K206: =IF(E206=0,"", -0.0063*E206^2 + 2.1074*E206 - 104.16) ->  | L206: 0 | M206: 0 | N206: 1000 | O206: 0 | P206: 0 | Q206: 0 | R206: 0 | S206: 0 | T206: 0 | U206: =IF(E206=0,"",0) ->  | Y206: dMO par CB | AA206: =IF($C$66="tr",Z206,0) -> 0 | AB206: tr | AC206: =IF(AND($A$84=1,$J$60=1),100*((((N209*U209/100)*1.2812)-180.35)/N209),0) ->  | AD206: dMOmaïscorr. Par MOD dMOCB: 1.2812 x MOD CB -180.35 | AF206: =IF($C$66="tr",AE206,0) -> 0 | AH206: =IF($C$66="tr",AG206,0) -> 0 | AJ206: =IF($C$66="tr",AI206,0) -> 0
B207: dzu | C207: tp | D207: 0 | E207: 0 | F207: 0 | G207: 0 | H207: 0 | I207: =IF(E207=0,"", 1.1148*E207 + 35.265) ->  | J207: =IF(E207=0,"", 1.2903*E207 + 74.94) ->  | K207: =IF(E207=0,"", 0.0001*E207^2 -0.0619*E207 +95.389) ->  | L207: 0 | M207: 0 | N207: 1000 | O207: 0 | P207: 0 | Q207: 0 | R207: 0 | S207: 0 | T207: 0 | U207: =IF(E207=0,"",0) ->  | Y207: dMO par CB | AA207: =IF($C$66="tp",Z207,0) -> 0 | AB207: tp | AC207: =IF(AND($A$84=1,$J$60=2),100*((((N209*V209/100)*1.2653)-156.12)/N209),0) -> 0 | AD207: dMOmaïs corr. Par MOD dMOADF : 1.2653 x MOD ADF - 156.12 | AF207: =IF($C$66="tp",AE207,0) -> 0 | AH207: =IF($C$66="tp",AG207,0) -> 0 | AJ207: =IF($C$66="tp",AI207,0) -> 0
B208: dzu | C208: luz | D208: 0 | E208: 0 | F208: 0 | G208: 0 | H208: 0 | I208: =IF(E208=0,"", 1.0342*E208 + 51.855) ->  | J208: =IF(E208=0,"",1.2761*E208 + 49.236) ->  | K208: =IF(E208=0,"", 0.00005*E208^2 - 0.0826*E208 + 66.837) ->  | L208: 0 | M208: 0 | N208: 1000 | O208: 0 | P208: 0 | Q208: 0 | R208: 0 | S208: 0 | T208: 0 | U208: =IF(E208=0,"",78.7-0.000149*S208) ->  | V208: =IF(M208=0,"",80.8-0.000118*T208) ->  | W208: =IF(W144=0,"",115.3-0.0479*O208-0.1409*P208+0.000063*S208) ->  | Y208: dMO par CB | AA208: =IF($C$66="LUZ",Z208,0) -> 0 | AB208: luz | AC208: =IF(AND($A$84=2,$J$60<3),100*((-1016.7+($J$115*1.8)+(($J$109*$J$117/1000)*1.106)+(($M$109*$M$115/1000)*(-3.01))+(($M$110*$M$111/1000)*(-0.0013))+10.3)/$J$115),0) -> 0 | AD208: dMOmaïs PE équation ALP12 | AF208: =IF($C$66="LUZ",AE208,0) -> 0 | AH208: =IF($C$66="LUZ",AG208,0) -> 0 | AJ208: =IF($C$66="LUZ",AI208,0) -> 0
B209: dzu | C209: maïs | D209: 0 | E209: 0 | F209: 0 | G209: 0 | H209: 0 | I209: =IF(E209=0,"", 1.1186*E209 + 8.0113) ->  | J209: =IF(E209=0,"", 1.4381*E209 +155.24) ->  | K209: =IF(E209=0,"", 0.0028*E209^2 + 1.2371*E209 -74.894) ->  | L209: 0 | M209: 0 | N209: 1000 | O209: 0 | P209: 0 | Q209: 0 | R209: 0 | S209: 0 | T209: 0 | U209: =IF(E209=0,"",79.4+0.0652*O209-0.0591*P209) ->  | V209: =IF(M209=0,"",IF(L209=0,"",75.7+0.0701*O209+0.0156*L209/N209*1000-0.072*Q209)) ->  | W209: =IF(W144=0,"",69.2+0.164*O209-0.000218*S209) ->  | Y209: dMO par CB | AA209: =IF(Z209="","",IF($C$66="MAIS",SUM(AC203:AC209),0)) ->  | AB209: maïs | AC209: =IF(AND($A$84=3,$J$60<3),100*((-1016.7+($J$115*1.8)+(($J$109*$J$117/1000)*1.106)+(($M$109*$M$115/1000)*(-3.01))+(($M$110*$M$111/1000)*(-0.0013))-10.3)/$J$115),0) -> 0 | AD209: dMOmaïs pas PE équation ALP12 | AF209: =IF($C$66="MAIS",AE209,0) -> 0 | AH209: =IF($C$66="MAIS",AG209,0) -> 0 | AJ209: =IF($C$66="MAIS",AI209,0) -> 0
I210: pas de régressions ou rég. LV99 | U210: pas de regressions
I211: reg ARY base dig-feva
A213: Calcul de la valeur énergétique des fourrages
A215: EB | B215: =IF(B66=16,B218,B217) -> 18.8
A217: EB exc.maïs | B217: =0.0188*J115+0.0078*J109 -> 18.8
... 63 more rows
